{"text_format":"3","workbook":"xlsx","n_sheets":8,"sheets":["附录C(投资规模)","附录C(用地规模)","附录C(信息咨询)","附录C(非差额累进)","附录C(工日单价)","附录D","附录E","工作内容"],"not_rendered":{"defined_names":3},"read":"whole","date_system":"1900"}

{"sheet":"附录C(投资规模)","index":0,"n_rows":20,"n_cols":9,"rows_kept":20,"merged":[[0,1,0,2],[0,3,0,4],[0,5,0,6],[1,1,1,2]]}
["预算编码","预算基数（C）",null,"基本工作基准预算（元）",null,"可选工作基准预算（元）"]
[null,"万元",null,"基准费率（‰）","最大金额（元)","基准费率（‰）","最大金额（元)"]
["C1-1",0,{"$f":"B4","v":100},10,{"v":0,"d":"0.00"},2,{"v":0,"d":"0.00"},0,{"$f":"H3&\":{ref:'\"&A3&\"',staLine:\"&B3&\",endLine:\"&C3&\",basic:{staPrice:\"&E3&\",rate:\"&D3/1000&\"},optional:{staPrice:\"&G3&\",rate:\"&F3/1000&\"}}\"","v":"0:{ref:'C1-1',staLine:0,endLine:100,basic:{staPrice:0,rate:0.01},optional:{staPrice:0,rate:0.002}}"}]
["C1-2",100,{"$f":"B5","v":300},8,{"$f":"IF(ISNUMBER(E2),E2+($B4-$B3)*D3*10,($B4-$B3)*D3*10)","v":{"v":10000,"d":"10,000.00"}},1.6,{"$f":"IF(ISNUMBER(G2),G2+($B4-$B3)*F3*10,($B4-$B3)*F3*10)","v":{"v":2000,"d":"2,000.00"}},1,{"$f":"H4&\":{ref:'\"&A4&\"',staLine:\"&B4&\",endLine:\"&C4&\",basic:{staPrice:\"&E4&\",rate:\"&D4/1000&\"},optional:{staPrice:\"&G4&\",rate:\"&F4/1000&\"}}\"","v":"1:{ref:'C1-2',staLine:100,endLine:300,basic:{staPrice:10000,rate:0.008},optional:{staPrice:2000,rate:0.0016}}"}]
["C1-3",300,500,5,{"$f":"IF(ISNUMBER(E4),E4+($B5-$B4)*D4*10,($B5-$B4)*D4*10)","v":{"v":26000,"d":"26,000.00"}},1,{"$f":"IF(ISNUMBER(G4),G4+($B5-$B4)*F4*10,($B5-$B4)*F4*10)","v":{"v":5200,"d":"5,200.00"}},2,"2:{ref:'C1-3',staLine:300,endLine:500,basic:{staPrice:26000,rate:0.005},optional:{staPrice:5200,rate:0.001}}"]
["C1-4",500,{"v":1000,"d":"1,000"},4,{"v":36000,"d":"36,000.00"},0.8,{"v":7200,"d":"7,200.00"},3,"3:{ref:'C1-4',staLine:500,endLine:1000,basic:{staPrice:36000,rate:0.004},optional:{staPrice:7200,rate:0.0008}}"]
["C1-5",{"v":1000,"d":"1,000"},{"v":5000,"d":"5,000"},3,{"v":56000,"d":"56,000.00"},0.6,{"v":11200,"d":"11,200.00"},4,"4:{ref:'C1-5',staLine:1000,endLine:5000,basic:{staPrice:56000,rate:0.003},optional:{staPrice:11200,rate:0.0006}}"]
["C1-6",{"v":5000,"d":"5,000"},{"v":10000,"d":"10,000"},2,{"v":176000,"d":"176,000.00"},0.4,{"v":35200,"d":"35,200.00"},5,"5:{ref:'C1-6',staLine:5000,endLine:10000,basic:{staPrice:176000,rate:0.002},optional:{staPrice:35200,rate:0.0004}}"]
["C1-7",{"v":10000,"d":"10,000"},{"v":30000,"d":"30,000"},1.6,{"v":276000,"d":"276,000.00"},0.32,{"v":55200,"d":"55,200.00"},6,"6:{ref:'C1-7',staLine:10000,endLine:30000,basic:{staPrice:276000,rate:0.0016},optional:{staPrice:55200,rate:0.00032}}"]
["C1-8",{"v":30000,"d":"30,000"},{"v":50000,"d":"50,000"},1.3,{"v":596000,"d":"596,000.00"},0.26,{"v":119200,"d":"119,200.00"},7,"7:{ref:'C1-8',staLine:30000,endLine:50000,basic:{staPrice:596000,rate:0.0013},optional:{staPrice:119200,rate:0.00026}}"]
["C1-9",{"v":50000,"d":"50,000"},{"v":100000,"d":"100,000"},1,{"v":856000,"d":"856,000.00"},0.2,{"v":171200,"d":"171,200.00"},8,"8:{ref:'C1-9',staLine:50000,endLine:100000,basic:{staPrice:856000,rate:0.001},optional:{staPrice:171200,rate:0.0002}}"]
["C1-10",{"v":100000,"d":"100,000"},{"v":150000,"d":"150,000"},0.9,{"v":1356000,"d":"1,356,000.00"},0.18,{"v":271200,"d":"271,200.00"},9,"9:{ref:'C1-10',staLine:100000,endLine:150000,basic:{staPrice:1356000,rate:0.0009},optional:{staPrice:271200,rate:0.00018}}"]
["C1-11",{"v":150000,"d":"150,000"},{"v":200000,"d":"200,000"},0.8,{"v":1806000,"d":"1,806,000.00"},0.16,{"v":361200,"d":"361,200.00"},10,"10:{ref:'C1-11',staLine:150000,endLine:200000,basic:{staPrice:1806000,rate:0.0008},optional:{staPrice:361200,rate:0.00016}}"]
["C1-12",{"v":200000,"d":"200,000"},{"v":300000,"d":"300,000"},0.7,{"v":2206000,"d":"2,206,000.00"},0.14,{"v":441200,"d":"441,200.00"},11,"11:{ref:'C1-12',staLine:200000,endLine:300000,basic:{staPrice:2206000,rate:0.0007},optional:{staPrice:441200,rate:0.00014}}"]
["C1-13",{"v":300000,"d":"300,000"},{"v":400000,"d":"400,000"},0.6,{"v":2906000,"d":"2,906,000.00"},0.12,{"v":581200,"d":"581,200.00"},12,"12:{ref:'C1-13',staLine:300000,endLine:400000,basic:{staPrice:2906000,rate:0.0006},optional:{staPrice:581200,rate:0.00012}}"]
["C1-14",{"v":400000,"d":"400,000"},{"v":600000,"d":"600,000"},0.5,{"v":3506000,"d":"3,506,000.00"},0.1,{"v":701200,"d":"701,200.00"},13,"13:{ref:'C1-14',staLine:400000,endLine:600000,basic:{staPrice:3506000,rate:0.0005},optional:{staPrice:701200,rate:0.0001}}"]
["C1-15",{"v":600000,"d":"600,000"},{"v":800000,"d":"800,000"},0.4,{"v":4506000,"d":"4,506,000.00"},0.08,{"v":901200,"d":"901,200.00"},14,"14:{ref:'C1-15',staLine:600000,endLine:800000,basic:{staPrice:4506000,rate:0.0004},optional:{staPrice:901200,rate:0.00008}}"]
["C1-16",{"v":800000,"d":"800,000"},{"v":1000000,"d":"1,000,000"},0.3,{"v":5306000,"d":"5,306,000.00"},0.06,{"v":1061200,"d":"1,061,200.00"},15,"15:{ref:'C1-16',staLine:800000,endLine:1000000,basic:{staPrice:5306000,rate:0.0003},optional:{staPrice:1061200,rate:0.00006}}"]
["C1-17",{"v":1000000,"d":"1,000,000"},"null",0.25,{"v":5906000,"d":"5,906,000.00"},0.05,{"v":1181200,"d":"1,181,200.00"},16,"16:{ref:'C1-17',staLine:1000000,endLine:null,basic:{staPrice:5906000,rate:0.00025},optional:{staPrice:1181200,rate:0.00005}}"]
[{"$nulls":8},{"$f":"\"{\"&_xlfn.TEXTJOIN(\",\",TRUE,I3:I19)&\",}\"","v":"{0:{ref:'C1-1',staLine:0,endLine:100,basic:{staPrice:0,rate:0.01},optional:{staPrice:0,rate:0.002}},1:{ref:'C1-2',staLine:100,endLine:300,basic:{staPrice:10000,rate:0.008},optional:{staPrice:2000,rate:0.0016}},2:{ref:'C1-3',staLine:300,endLine:500,basic:{staPrice:26000,rate:0.005},optional:{staPrice:5200,rate:0.001}},3:{ref:'C1-4',staLine:500,endLine:1000,basic:{staPrice:36000,rate:0.004},optional:{staPrice:7200,rate:0.0008}},4:{ref:'C1-5',staLine:1000,endLine:5000,basic:{staPrice:56000,rate:0.003},optional:{staPrice:11200,rate:0.0006}},5:{ref:'C1-6',staLine:5000,endLine:10000,basic:{staPrice:176000,rate:0.002},optional:{staPrice:35200,rate:0.0004}},6:{ref:'C1-7',staLine:10000,endLine:30000,basic:{staPrice:276000,rate:0.0016},optional:{staPrice:55200,rate:0.00032}},7:{ref:'C1-8',staLine:30000,endLine:50000,basic:{staPrice:596000,rate:0.0013},optional:{staPrice:119200,rate:0.00026}},8:{ref:'C1-9',staLine:50000,endLine:100000,basic:{staPrice:856000,rate:0.001},optional:{staPrice:171200,rate:0.0002}},9:{ref:'C1-10',staLine:100000,endLine:150000,basic:{staPrice:1356000,rate:0.0009},optional:{staPrice:271200,rate:0.00018}},10:{ref:'C1-11',staLine:150000,endLine:200000,basic:{staPrice:1806000,rate:0.0008},optional:{staPrice:361200,rate:0.00016}},11:{ref:'C1-12',staLine:200000,endLine:300000,basic:{staPrice:2206000,rate:0.0007},optional:{staPrice:441200,rate:0.00014}},12:{ref:'C1-13',staLine:300000,endLine:400000,basic:{staPrice:2906000,rate:0.0006},optional:{staPrice:581200,rate:0.00012}},13:{ref:'C1-14',staLine:400000,endLine:600000,basic:{staPrice:3506000,rate:0.0005},optional:{staPrice:701200,rate:0.0001}},14:{ref:'C1-15',staLine:600000,endLine:800000,basic:{staPrice:4506000,rate:0.0004},optional:{staPrice:901200,rate:0.00008}},15:{ref:'C1-16',staLine:800000,endLine:1000000,basic:{staPrice:5306000,rate:0.0003},optional:{staPrice:1061200,rate:0.00006}},16:{ref:'C1-17',staLine:1000000,endLine:null,basic:{staPrice:5906000,rate:0.00025},optional:{staPrice:1181200,rate:0.00005}},}"}]

{"sheet":"附录C(用地规模)","index":1,"n_rows":9,"n_cols":9,"rows_kept":9,"merged":[[0,1,0,2],[0,3,0,4],[0,5,0,6],[1,1,1,2]]}
["预算编码","预算基数（S）",null,"基本工作基准预算（元）",null,"可选工作基准预算（元）"]
[null,"亩",null,"基准单价(元/亩)","最大金额（元)","基准单价(元/亩)","最大金额（元)"]
["C2-1",0,{"$f":"B4","v":50},200,{"v":0,"d":"0.00"},40,{"v":0,"d":"0.00"},0,{"$f":"H3&\":{ref:'\"&A3&\"',staLine:\"&B3&\",endLine:\"&C3&\",basic:{staPrice:\"&E3&\",rate:\"&D3&\"},optional:{staPrice:\"&G3&\",rate:\"&F3&\"}}\"","v":"0:{ref:'C2-1',staLine:0,endLine:50,basic:{staPrice:0,rate:200},optional:{staPrice:0,rate:40}}"}]
["C2-2",50,{"$f":"B5","v":100},160,{"$f":"IF(ISNUMBER(E2),E2+($B4-$B3)*D3,($B4-$B3)*D3)","v":{"v":10000,"d":"10,000.00"}},32,{"$f":"IF(ISNUMBER(G2),G2+($B4-$B3)*F3,($B4-$B3)*F3)","v":{"v":2000,"d":"2,000.00"}},1,"1:{ref:'C2-2',staLine:50,endLine:100,basic:{staPrice:10000,rate:160},optional:{staPrice:2000,rate:32}}"]
["C2-3",100,{"$f":"B6","v":500},120,{"$f":"IF(ISNUMBER(E4),E4+($B5-$B4)*D4,($B5-$B4)*D4)","v":{"v":18000,"d":"18,000.00"}},24,{"$f":"IF(ISNUMBER(G4),G4+($B5-$B4)*F4,($B5-$B4)*F4)","v":{"v":3600,"d":"3,600.00"}},2,"2:{ref:'C2-3',staLine:100,endLine:500,basic:{staPrice:18000,rate:120},optional:{staPrice:3600,rate:24}}"]
["C2-4",500,{"$f":"B7","v":{"v":1000,"d":"1,000"}},80,{"$f":"IF(ISNUMBER(E5),E5+($B6-$B5)*D5,($B6-$B5)*D5)","v":{"v":66000,"d":"66,000.00"}},16,{"$f":"IF(ISNUMBER(G5),G5+($B6-$B5)*F5,($B6-$B5)*F5)","v":{"v":13200,"d":"13,200.00"}},3,"3:{ref:'C2-4',staLine:500,endLine:1000,basic:{staPrice:66000,rate:80},optional:{staPrice:13200,rate:16}}"]
["C2-5",{"v":1000,"d":"1,000"},{"$f":"B8","v":{"v":5000,"d":"5,000"}},60,{"$f":"IF(ISNUMBER(E6),E6+($B7-$B6)*D6,($B7-$B6)*D6)","v":{"v":106000,"d":"106,000.00"}},12,{"$f":"IF(ISNUMBER(G6),G6+($B7-$B6)*F6,($B7-$B6)*F6)","v":{"v":21200,"d":"21,200.00"}},4,"4:{ref:'C2-5',staLine:1000,endLine:5000,basic:{staPrice:106000,rate:60},optional:{staPrice:21200,rate:12}}"]
["C2-6",{"v":5000,"d":"5,000"},"null",20,{"$f":"IF(ISNUMBER(E7),E7+($B8-$B7)*D7,($B8-$B7)*D7)","v":{"v":346000,"d":"346,000.00"}},4,{"$f":"IF(ISNUMBER(G7),G7+($B8-$B7)*F7,($B8-$B7)*F7)","v":{"v":69200,"d":"69,200.00"}},5,"5:{ref:'C2-6',staLine:5000,endLine:null,basic:{staPrice:346000,rate:20},optional:{staPrice:69200,rate:4}}"]
[{"$nulls":8},{"$f":"\"{\"&_xlfn.TEXTJOIN(\",\",TRUE,I3:I8)&\",}\"","v":"{0:{ref:'C2-1',staLine:0,endLine:50,basic:{staPrice:0,rate:200},optional:{staPrice:0,rate:40}},1:{ref:'C2-2',staLine:50,endLine:100,basic:{staPrice:10000,rate:160},optional:{staPrice:2000,rate:32}},2:{ref:'C2-3',staLine:100,endLine:500,basic:{staPrice:18000,rate:120},optional:{staPrice:3600,rate:24}},3:{ref:'C2-4',staLine:500,endLine:1000,basic:{staPrice:66000,rate:80},optional:{staPrice:13200,rate:16}},4:{ref:'C2-5',staLine:1000,endLine:5000,basic:{staPrice:106000,rate:60},optional:{staPrice:21200,rate:12}},5:{ref:'C2-6',staLine:5000,endLine:null,basic:{staPrice:346000,rate:20},optional:{staPrice:69200,rate:4}},}"}]

{"sheet":"附录C(信息咨询)","index":2,"n_rows":8,"n_cols":7,"rows_kept":8,"merged":[[0,1,0,2],[0,3,0,4],[1,1,1,2]]}
["预算编码","预算基数（C）",null,"基本工作基准预算（元）"]
[null,"条",null,"基准单价(元/条)","最大金额（元)"]
["C8-1",0,{"$f":"B4","v":10},500,{"v":0,"d":"0.00"},0,{"$f":"F3&\":{ref:'\"&A3&\"',staLine:\"&B3&\",endLine:\"&C3&\",staPrice:\"&E3&\",rate:\"&D3&\"}\"","v":"0:{ref:'C8-1',staLine:0,endLine:10,staPrice:0,rate:500}"}]
["C8-2",10,{"$f":"B5","v":30},400,{"$f":"IF(ISNUMBER(E2),E2+($B4-$B3)*D3,($B4-$B3)*D3)","v":{"v":5000,"d":"5,000.00"}},1,{"$f":"F4&\":{ref:'\"&A4&\"',staLine:\"&B4&\",endLine:\"&C4&\",staPrice:\"&E4&\",rate:\"&D4&\"}\"","v":"1:{ref:'C8-2',staLine:10,endLine:30,staPrice:5000,rate:400}"}]
["C8-3",30,{"$f":"B6","v":50},300,{"$f":"IF(ISNUMBER(E4),E4+($B5-$B4)*D4,($B5-$B4)*D4)","v":{"v":13000,"d":"13,000.00"}},2,{"$f":"F5&\":{ref:'\"&A5&\"',staLine:\"&B5&\",endLine:\"&C5&\",staPrice:\"&E5&\",rate:\"&D5&\"}\"","v":"2:{ref:'C8-3',staLine:30,endLine:50,staPrice:13000,rate:300}"}]
["C8-4",50,{"$f":"B7","v":100},200,{"$f":"IF(ISNUMBER(E5),E5+($B6-$B5)*D5,($B6-$B5)*D5)","v":{"v":19000,"d":"19,000.00"}},3,{"$f":"F6&\":{ref:'\"&A6&\"',staLine:\"&B6&\",endLine:\"&C6&\",staPrice:\"&E6&\",rate:\"&D6&\"}\"","v":"3:{ref:'C8-4',staLine:50,endLine:100,staPrice:19000,rate:200}"}]
["C8-5",100,"null",100,{"$f":"IF(ISNUMBER(E6),E6+($B7-$B6)*D6,($B7-$B6)*D6)","v":{"v":29000,"d":"29,000.00"}},4,{"$f":"F7&\":{ref:'\"&A7&\"',staLine:\"&B7&\",endLine:\"&C7&\",staPrice:\"&E7&\",rate:\"&D7&\"}\"","v":"4:{ref:'C8-5',staLine:100,endLine:null,staPrice:29000,rate:100}"}]
[{"$nulls":6},{"$f":"\"{\"&_xlfn.TEXTJOIN(\",\",TRUE,G3:G7)&\",}\"","v":"{0:{ref:'C8-1',staLine:0,endLine:10,staPrice:0,rate:500},1:{ref:'C8-2',staLine:10,endLine:30,staPrice:5000,rate:400},2:{ref:'C8-3',staLine:30,endLine:50,staPrice:13000,rate:300},3:{ref:'C8-4',staLine:50,endLine:100,staPrice:19000,rate:200},4:{ref:'C8-5',staLine:100,endLine:null,staPrice:29000,rate:100},}"}]

{"sheet":"附录C(非差额累进)","index":3,"n_rows":45,"n_cols":13,"rows_kept":45}
[15,"C4-1","工程造价日常顾问","服务月份数",null,true,0.3,0.5,0.4,"万元/月",10000,{"$f":"ROW()-1","v":0},{"$f":"L1&\":{serviceID:\"&A1&\",ref:'\"&B1&\"',name:'\"&C1&\"',basicParam:'\"&D1&\"',required:\"&F1&\",unit:'\"&J1&\"',conversion:\"&K1&\",maxPrice:\"&H1&\",minPrice:\"&G1&\",defPrice:\"&I1&\",desc:'\"&E1&\"'}\"","v":"0:{serviceID:15,ref:'C4-1',name:'工程造价日常顾问',basicParam:'服务月份数',required:TRUE,unit:'万元/月',conversion:10000,maxPrice:0.5,minPrice:0.3,defPrice:0.4,desc:''}"}]
[15,"C4-2","工程造价专项顾问","服务项目的造价金额","适用于涉及造价费用类的顾问",true,"null","null",0.01,"%",0.01,{"$f":"ROW()-1","v":1},{"$f":"L2&\":{serviceID:\"&A2&\",ref:'\"&B2&\"',name:'\"&C2&\"',basicParam:'\"&D2&\"',required:\"&F2&\",unit:'\"&J2&\"',conversion:\"&K2&\",maxPrice:\"&H2&\",minPrice:\"&G2&\",defPrice:\"&I2&\",desc:'\"&E2&\"'}\"","v":"1:{serviceID:15,ref:'C4-2',name:'工程造价专项顾问',basicParam:'服务项目的造价金额',required:TRUE,unit:'%',conversion:0.01,maxPrice:null,minPrice:null,defPrice:0.01,desc:'适用于涉及造价费用类的顾问'}"}]
[16,"C5-1","组织与调研工作","调研次数",null,true,1,2,{"$f":"AVERAGE(G3:H3)","v":1.5},"万元/次",10000,2,"2:{serviceID:16,ref:'C5-1',name:'组织与调研工作',basicParam:'调研次数',required:TRUE,unit:'万元/次',conversion:10000,maxPrice:2,minPrice:1,defPrice:1.5,desc:''}"]
[16,"C5-2-1","文件编写工作","文件份数","主编",true,3,5,4,"万元/份",10000,3,"3:{serviceID:16,ref:'C5-2-1',name:'文件编写工作',basicParam:'文件份数',required:TRUE,unit:'万元/份',conversion:10000,maxPrice:5,minPrice:3,defPrice:4,desc:'主编'}"]
[16,"C5-2-2","文件编写工作","文件份数","参编",true,1,3,2,"万元/份",10000,4,"4:{serviceID:16,ref:'C5-2-2',name:'文件编写工作',basicParam:'文件份数',required:TRUE,unit:'万元/份',conversion:10000,maxPrice:3,minPrice:1,defPrice:2,desc:'参编'}"]
[16,"C5-3-1","评审工作","评审次数","大型评审",false,8,20,14,"万元/次",10000,5,"5:{serviceID:16,ref:'C5-3-1',name:'评审工作',basicParam:'评审次数',required:FALSE,unit:'万元/次',conversion:10000,maxPrice:20,minPrice:8,defPrice:14,desc:'大型评审'}"]
[16,"C5-3-2","评审工作","评审次数","中型评审",false,5,10,7.5,"万元/次",10000,6,"6:{serviceID:16,ref:'C5-3-2',name:'评审工作',basicParam:'评审次数',required:FALSE,unit:'万元/次',conversion:10000,maxPrice:10,minPrice:5,defPrice:7.5,desc:'中型评审'}"]
[16,"C5-3-3","评审工作","评审次数","小型评审",false,3,6,4.5,"万元/次",10000,7,"7:{serviceID:16,ref:'C5-3-3',name:'评审工作',basicParam:'评审次数',required:FALSE,unit:'万元/次',conversion:10000,maxPrice:6,minPrice:3,defPrice:4.5,desc:'小型评审'}"]
[17,"C6-1","组织与调研工作","调研次数",null,true,1,2,1.5,"万元/次",10000,8,"8:{serviceID:17,ref:'C6-1',name:'组织与调研工作',basicParam:'调研次数',required:TRUE,unit:'万元/次',conversion:10000,maxPrice:2,minPrice:1,defPrice:1.5,desc:''}"]
[17,"C6-2-1","研究及编写报告","文件份数","国家级",true,20,50,35,"万元/份",10000,9,"9:{serviceID:17,ref:'C6-2-1',name:'研究及编写报告',basicParam:'文件份数',required:TRUE,unit:'万元/份',conversion:10000,maxPrice:50,minPrice:20,defPrice:35,desc:'国家级'}"]
[17,"C6-2-2","研究及编写报告","文件份数","省部级",true,10,20,15,"万元/份",10000,10,"10:{serviceID:17,ref:'C6-2-2',name:'研究及编写报告',basicParam:'文件份数',required:TRUE,unit:'万元/份',conversion:10000,maxPrice:20,minPrice:10,defPrice:15,desc:'省部级'}"]
[17,"C6-2-3","研究及编写报告","文件份数","其他级",true,5,10,7.5,"万元/份",10000,{"$f":"ROW()-1","v":11},"11:{serviceID:17,ref:'C6-2-3',name:'研究及编写报告',basicParam:'文件份数',required:TRUE,unit:'万元/份',conversion:10000,maxPrice:10,minPrice:5,defPrice:7.5,desc:'其他级'}"]
[17,"C6-3-1","标准与技术性指导文件的编制","文件与标准的数量","复杂标准",true,50,80,65,"万元/份",10000,12,"12:{serviceID:17,ref:'C6-3-1',name:'标准与技术性指导文件的编制',basicParam:'文件与标准的数量',required:TRUE,unit:'万元/份',conversion:10000,maxPrice:80,minPrice:50,defPrice:65,desc:'复杂标准'}"]
[17,"C6-3-2","标准与技术性指导文件的编制","文件与标准的数量","较复杂标准",true,20,50,35,"万元/份",10000,13,"13:{serviceID:17,ref:'C6-3-2',name:'标准与技术性指导文件的编制',basicParam:'文件与标准的数量',required:TRUE,unit:'万元/份',conversion:10000,maxPrice:50,minPrice:20,defPrice:35,desc:'较复杂标准'}"]
[17,"C6-3-3","标准与技术性指导文件的编制","文件与标准的数量","一般标准",true,10,20,15,"万元/份",10000,14,"14:{serviceID:17,ref:'C6-3-3',name:'标准与技术性指导文件的编制',basicParam:'文件与标准的数量',required:TRUE,unit:'万元/份',conversion:10000,maxPrice:20,minPrice:10,defPrice:15,desc:'一般标准'}"]
[17,"C6-3-4","标准与技术性指导文件的编制","文件与标准的数量","简单标准",true,5,10,7.5,"万元/份",10000,15,"15:{serviceID:17,ref:'C6-3-4',name:'标准与技术性指导文件的编制',basicParam:'文件与标准的数量',required:TRUE,unit:'万元/份',conversion:10000,maxPrice:10,minPrice:5,defPrice:7.5,desc:'简单标准'}"]
[17,"C6-4-1","评审与验收工作","评审与验收次数","大型评审",false,8,20,14,"万元/次",10000,16,"16:{serviceID:17,ref:'C6-4-1',name:'评审与验收工作',basicParam:'评审与验收次数',required:FALSE,unit:'万元/次',conversion:10000,maxPrice:20,minPrice:8,defPrice:14,desc:'大型评审'}"]
[17,"C6-4-2","评审与验收工作","评审与验收次数","中型评审",false,5,10,7.5,"万元/次",10000,17,"17:{serviceID:17,ref:'C6-4-2',name:'评审与验收工作',basicParam:'评审与验收次数',required:FALSE,unit:'万元/次',conversion:10000,maxPrice:10,minPrice:5,defPrice:7.5,desc:'中型评审'}"]
[17,"C6-4-3","评审与验收工作","评审与验收次数","小型评审",false,3,6,4.5,"万元/次",10000,18,"18:{serviceID:17,ref:'C6-4-3',name:'评审与验收工作',basicParam:'评审与验收次数',required:FALSE,unit:'万元/次',conversion:10000,maxPrice:6,minPrice:3,defPrice:4.5,desc:'小型评审'}"]
[17,"C6-5-1","培训与宣贯工作","项目数量","培训与宣贯材料",false,1,3,2,"万元/次",10000,19,"19:{serviceID:17,ref:'C6-5-1',name:'培训与宣贯工作',basicParam:'项目数量',required:FALSE,unit:'万元/次',conversion:10000,maxPrice:3,minPrice:1,defPrice:2,desc:'培训与宣贯材料'}"]
[17,"C6-5-2","培训与宣贯工作","培训与宣贯次数","组织培训与宣贯",false,0.5,1,0.75,"万元/次",10000,20,"20:{serviceID:17,ref:'C6-5-2',name:'培训与宣贯工作',basicParam:'培训与宣贯次数',required:FALSE,unit:'万元/次',conversion:10000,maxPrice:1,minPrice:0.5,defPrice:0.75,desc:'组织培训与宣贯'}"]
[18,"C7-1","组织与调研工作","调研次数",null,true,1,2,1.5,"万元/次",10000,{"$f":"ROW()-1","v":21},"21:{serviceID:18,ref:'C7-1',name:'组织与调研工作',basicParam:'调研次数',required:TRUE,unit:'万元/次',conversion:10000,maxPrice:2,minPrice:1,defPrice:1.5,desc:''}"]
[18,"C7-2","编制大纲","项目数量","包括技术与定额子目研究",true,2,3,2.5,"万元/个",10000,22,"22:{serviceID:18,ref:'C7-2',name:'编制大纲',basicParam:'项目数量',required:TRUE,unit:'万元/个',conversion:10000,maxPrice:3,minPrice:2,defPrice:2.5,desc:'包括技术与定额子目研究'}"]
[18,"C7-3","数据采集与测定","采集组数","现场采集方式时计",true,0.2,0.8,0.5,"万元/组",10000,23,"23:{serviceID:18,ref:'C7-3',name:'数据采集与测定',basicParam:'采集组数',required:TRUE,unit:'万元/组',conversion:10000,maxPrice:0.8,minPrice:0.2,defPrice:0.5,desc:'现场采集方式时计'}"]
[18,"C7-4-1","数据整理与分析","定额子目条数","简单定额",true,0.1,0.3,0.2,"万元/条",10000,24,"24:{serviceID:18,ref:'C7-4-1',name:'数据整理与分析',basicParam:'定额子目条数',required:TRUE,unit:'万元/条',conversion:10000,maxPrice:0.3,minPrice:0.1,defPrice:0.2,desc:'简单定额'}"]
[18,"C7-4-2","数据整理与分析","定额子目条数","复杂定额",true,0.3,3,1.65,"万元/条",10000,25,"25:{serviceID:18,ref:'C7-4-2',name:'数据整理与分析',basicParam:'定额子目条数',required:TRUE,unit:'万元/条',conversion:10000,maxPrice:3,minPrice:0.3,defPrice:1.65,desc:'复杂定额'}"]
[18,"C7-5","编写定额测定报告","项目数量",null,true,2,5,3.5,"万元/份",10000,26,"26:{serviceID:18,ref:'C7-5',name:'编写定额测定报告',basicParam:'项目数量',required:TRUE,unit:'万元/份',conversion:10000,maxPrice:5,minPrice:2,defPrice:3.5,desc:''}"]
[18,"C7-6-1","编制定额文本和释义","基本费用","20条定额子目内",true,0.5,1,0.75,"万元/份",10000,27,"27:{serviceID:18,ref:'C7-6-1',name:'编制定额文本和释义',basicParam:'基本费用',required:TRUE,unit:'万元/份',conversion:10000,maxPrice:1,minPrice:0.5,defPrice:0.75,desc:'20条定额子目内'}"]
[18,"C7-6-2","编制定额文本和释义","定额子目条数","超过20条每增加1条",true,0.1,0.2,0.15,"万元/条",10000,28,"28:{serviceID:18,ref:'C7-6-2',name:'编制定额文本和释义',basicParam:'定额子目条数',required:TRUE,unit:'万元/条',conversion:10000,maxPrice:0.2,minPrice:0.1,defPrice:0.15,desc:'超过20条每增加1条'}"]
[18,"C7-7-1","评审与验收工作","评审与验收次数","大型评审",false,8,20,14,"万元/次",10000,29,"29:{serviceID:18,ref:'C7-7-1',name:'评审与验收工作',basicParam:'评审与验收次数',required:FALSE,unit:'万元/次',conversion:10000,maxPrice:20,minPrice:8,defPrice:14,desc:'大型评审'}"]
[18,"C7-7-2","评审与验收工作","评审与验收次数","中型评审",false,5,10,7.5,"万元/次",10000,30,"30:{serviceID:18,ref:'C7-7-2',name:'评审与验收工作',basicParam:'评审与验收次数',required:FALSE,unit:'万元/次',conversion:10000,maxPrice:10,minPrice:5,defPrice:7.5,desc:'中型评审'}"]
[18,"C7-7-3","评审与验收工作","评审与验收次数","小型评审",false,3,6,4.5,"万元/次",10000,{"$f":"ROW()-1","v":31},"31:{serviceID:18,ref:'C7-7-3',name:'评审与验收工作',basicParam:'评审与验收次数',required:FALSE,unit:'万元/次',conversion:10000,maxPrice:6,minPrice:3,defPrice:4.5,desc:'小型评审'}"]
[18,"C7-8-1","培训与宣贯工作","项目数量","培训与宣贯材料",false,1,3,2,"万元/次",10000,32,"32:{serviceID:18,ref:'C7-8-1',name:'培训与宣贯工作',basicParam:'项目数量',required:FALSE,unit:'万元/次',conversion:10000,maxPrice:3,minPrice:1,defPrice:2,desc:'培训与宣贯材料'}"]
[18,"C7-8-2","培训与宣贯工作","培训与宣贯次数","组织培训与宣贯",false,0.5,1,0.75,"万元/次",10000,33,"33:{serviceID:18,ref:'C7-8-2',name:'培训与宣贯工作',basicParam:'培训与宣贯次数',required:FALSE,unit:'万元/次',conversion:10000,maxPrice:1,minPrice:0.5,defPrice:0.75,desc:'组织培训与宣贯'}"]
[19,"C8-1","Q≤10条","价格信息数量",null,true,"null","null",500,"元/条",1,34,"34:{serviceID:19,ref:'C8-1',name:'Q≤10条',basicParam:'价格信息数量',required:TRUE,unit:'元/条',conversion:1,maxPrice:null,minPrice:null,defPrice:500,desc:''}"]
[19,"C8-2","10条<Q≤30条","价格信息数量",null,true,"null","null",400,"元/条",1,35,"35:{serviceID:19,ref:'C8-2',name:'10条<Q≤30条',basicParam:'价格信息数量',required:TRUE,unit:'元/条',conversion:1,maxPrice:null,minPrice:null,defPrice:400,desc:''}"]
[19,"C8-3","30条<Q≤50条","价格信息数量",null,true,"null","null",300,"元/条",1,36,"36:{serviceID:19,ref:'C8-3',name:'30条<Q≤50条',basicParam:'价格信息数量',required:TRUE,unit:'元/条',conversion:1,maxPrice:null,minPrice:null,defPrice:300,desc:''}"]
[19,"C8-4","50条<Q≤100条","价格信息数量",null,true,"null","null",200,"元/条",1,37,"37:{serviceID:19,ref:'C8-4',name:'50条<Q≤100条',basicParam:'价格信息数量',required:TRUE,unit:'元/条',conversion:1,maxPrice:null,minPrice:null,defPrice:200,desc:''}"]
[19,"C8-5","Q>100条","价格信息数量",null,true,"null","null",100,"元/条",1,38,"38:{serviceID:19,ref:'C8-5',name:'Q>100条',basicParam:'价格信息数量',required:TRUE,unit:'元/条',conversion:1,maxPrice:null,minPrice:null,defPrice:100,desc:''}"]
[{"$nulls":12},{"$f":"\"{\"&_xlfn.TEXTJOIN(\",\",TRUE,M1:M39)&\",}\"","v":"{0:{serviceID:15,ref:'C4-1',name:'工程造价日常顾问',basicParam:'服务月份数',required:TRUE,unit:'万元/月',conversion:10000,maxPrice:0.5,minPrice:0.3,defPrice:0.4,desc:''},1:{serviceID:15,ref:'C4-2',name:'工程造价专项顾问',basicParam:'服务项目的造价金额',required:TRUE,unit:'%',conversion:0.01,maxPrice:null,minPrice:null,defPrice:0.01,desc:'适用于涉及造价费用类的顾问'},2:{serviceID:16,ref:'C5-1',name:'组织与调研工作',basicParam:'调研次数',required:TRUE,unit:'万元/次',conversion:10000,maxPrice:2,minPrice:1,defPrice:1.5,desc:''},3:{serviceID:16,ref:'C5-2-1',name:'文件编写工作',basicParam:'文件份数',required:TRUE,unit:'万元/份',conversion:10000,maxPrice:5,minPrice:3,defPrice:4,desc:'主编'},4:{serviceID:16,ref:'C5-2-2',name:'文件编写工作',basicParam:'文件份数',required:TRUE,unit:'万元/份',conversion:10000,maxPrice:3,minPrice:1,defPrice:2,desc:'参编'},5:{serviceID:16,ref:'C5-3-1',name:'评审工作',basicParam:'评审次数',required:FALSE,unit:'万元/次',conversion:10000,maxPrice:20,minPrice:8,defPrice:14,desc:'大型评审'},6:{serviceID:16,ref:'C5-3-2',name:'评审工作',basicParam:'评审次数',required:FALSE,unit:'万元/次',conversion:10000,maxPrice:10,minPrice:5,defPrice:7.5,desc:'中型评审'},7:{serviceID:16,ref:'C5-3-3',name:'评审工作',basicParam:'评审次数',required:FALSE,unit:'万元/次',conversion:10000,maxPrice:6,minPrice:3,defPrice:4.5,desc:'小型评审'},8:{serviceID:17,ref:'C6-1',name:'组织与调研工作',basicParam:'调研次数',required:TRUE,unit:'万元/次',conversion:10000,maxPrice:2,minPrice:1,defPrice:1.5,desc:''},9:{serviceID:17,ref:'C6-2-1',name:'研究及编写报告',basicParam:'文件份数',required:TRUE,unit:'万元/份',conversion:10000,maxPrice:50,minPrice:20,defPrice:35,desc:'国家级'},10:{serviceID:17,ref:'C6-2-2',name:'研究及编写报告',basicParam:'文件份数',required:TRUE,unit:'万元/份',conversion:10000,maxPrice:20,minPrice:10,defPrice:15,desc:'省部级'},11:{serviceID:17,ref:'C6-2-3',name:'研究及编写报告',basicParam:'文件份数',required:TRUE,unit:'万元/份',conversion:10000,maxPrice:10,minPrice:5,defPrice:7.5,desc:'其他级'},12:{serviceID:17,ref:'C6-3-1',name:'标准与技术性指导文件的编制',basicParam:'文件与标准的数量',required:TRUE,unit:'万元/份',conversion:10000,maxPrice:80,minPrice:50,defPrice:65,desc:'复杂标准'},13:{serviceID:17,ref:'C6-3-2',name:'标准与技术性指导文件的编制',basicParam:'文件与标准的数量',required:TRUE,unit:'万元/份',conversion:10000,maxPrice:50,minPrice:20,defPrice:35,desc:'较复杂标准'},14:{serviceID:17,ref:'C6-3-3',name:'标准与技术性指导文件的编制',basicParam:'文件与标准的数量',required:TRUE,unit:'万元/份',conversion:10000,maxPrice:20,minPrice:10,defPrice:15,desc:'一般标准'},15:{serviceID:17,ref:'C6-3-4',name:'标准与技术性指导文件的编制',basicParam:'文件与标准的数量',required:TRUE,unit:'万元/份',conversion:10000,maxPrice:10,minPrice:5,defPrice:7.5,desc:'简单标准'},16:{serviceID:17,ref:'C6-4-1',name:'评审与验收工作',basicParam:'评审与验收次数',required:FALSE,unit:'万元/次',conversion:10000,maxPrice:20,minPrice:8,defPrice:14,desc:'大型评审'},17:{serviceID:17,ref:'C6-4-2',name:'评审与验收工作',basicParam:'评审与验收次数',required:FALSE,unit:'万元/次',conversion:10000,maxPrice:10,minPrice:5,defPrice:7.5,desc:'中型评审'},18:{serviceID:17,ref:'C6-4-3',name:'评审与验收工作',basicParam:'评审与验收次数',required:FALSE,unit:'万元/次',conversion:10000,maxPrice:6,minPrice:3,defPrice:4.5,desc:'小型评审'},19:{serviceID:17,ref:'C6-5-1',name:'培训与宣贯工作',basicParam:'项目数量',required:FALSE,unit:'万元/次',conversion:10000,maxPrice:3,minPrice:1,defPrice:2,desc:'培训与宣贯材料'},20:{serviceID:17,ref:'C6-5-2',name:'培训与宣贯工作',basicParam:'培训与宣贯次数',required:FALSE,unit:'万元/次',conversion:10000,maxPrice:1,minPrice:0.5,defPrice:0.75,desc:'组织培训与宣贯'},21:{serviceID:18,ref:'C7-1',name:'组织与调研工作',basicParam:'调研次数',required:TRUE,unit:'万元/次',conversion:10000,maxPrice:2,minPrice:1,defPrice:1.5,desc:''},22:{serviceID:18,ref:'C7-2',name:'编制大纲',basicParam:'项目数量',required:TRUE,unit:'万元/个',conversion:10000,maxPrice:3,minPrice:2,defPrice:2.5,desc:'包括技术与定额子目研究'},23:{serviceID:18,ref:'C7-3',name:'数据采集与测定',basicParam:'采集组数',required:TRUE,unit:'万元/组',conversion:10000,maxPrice:0.8,minPrice:0.2,defPrice:0.5,desc:'现场采集方式时计'},24:{serviceID:18,ref:'C7-4-1',name:'数据整理与分析',basicParam:'定额子目条数',required:TRUE,unit:'万元/条',conversion:10000,maxPrice:0.3,minPrice:0.1,defPrice:0.2,desc:'简单定额'},25:{serviceID:18,ref:'C7-4-2',name:'数据整理与分析',basicParam:'定额子目条数',required:TRUE,unit:'万元/条',conversion:10000,maxPrice:3,minPrice:0.3,defPrice:1.65,desc:'复杂定额'},26:{serviceID:18,ref:'C7-5',name:'编写定额测定报告',basicParam:'项目数量',required:TRUE,unit:'万元/份',conversion:10000,maxPrice:5,minPrice:2,defPrice:3.5,desc:''},27:{serviceID:18,ref:'C7-6-1',name:'编制定额文本和释义',basicParam:'基本费用',required:TRUE,unit:'万元/份',conversion:10000,maxPrice:1,minPrice:0.5,defPrice:0.75,desc:'20条定额子目内'},28:{serviceID:18,ref:'C7-6-2',name:'编制定额文本和释义',basicParam:'定额子目条数',required:TRUE,unit:'万元/条',conversion:10000,maxPrice:0.2,minPrice:0.1,defPrice:0.15,desc:'超过20条每增加1条'},29:{serviceID:18,ref:'C7-7-1',name:'评审与验收工作',basicParam:'评审与验收次数',required:FALSE,unit:'万元/次',conversion:10000,maxPrice:20,minPrice:8,defPrice:14,desc:'大型评审'},30:{serviceID:18,ref:'C7-7-2',name:'评审与验收工作',basicParam:'评审与验收次数',required:FALSE,unit:'万元/次',conversion:10000,maxPrice:10,minPrice:5,defPrice:7.5,desc:'中型评审'},31:{serviceID:18,ref:'C7-7-3',name:'评审与验收工作',basicParam:'评审与验收次数',required:FALSE,unit:'万元/次',conversion:10000,maxPrice:6,minPrice:3,defPrice:4.5,desc:'小型评审'},32:{serviceID:18,ref:'C7-8-1',name:'培训与宣贯工作',basicParam:'项目数量',required:FALSE,unit:'万元/次',conversion:10000,maxPrice:3,minPrice:1,defPrice:2,desc:'培训与宣贯材料'},33:{serviceID:18,ref:'C7-8-2',name:'培训与宣贯工作',basicParam:'培训与宣贯次数',required:FALSE,unit:'万元/次',conversion:10000,maxPrice:1,minPrice:0.5,defPrice:0.75,desc:'组织培训与宣贯'},34:{serviceID:19,ref:'C8-1',name:'Q≤10条',basicParam:'价格信息数量',required:TRUE,unit:'元/条',conversion:1,maxPrice:null,minPrice:null,defPrice:500,desc:''},35:{serviceID:19,ref:'C8-2',name:'10条<Q≤30条',basicParam:'价格信息数量',required:TRUE,unit:'元/条',conversion:1,maxPrice:null,minPrice:null,defPrice:400,desc:''},36:{serviceID:19,ref:'C8-3',name:'30条<Q≤50条',basicParam:'价格信息数量',required:TRUE,unit:'元/条',conversion:1,maxPrice:null,minPrice:null,defPrice:300,desc:''},37:{serviceID:19,ref:'C8-4',name:'50条<Q≤100条',basicParam:'价格信息数量',required:TRUE,unit:'元/条',conversion:1,maxPrice:null,minPrice:null,defPrice:200,desc:''},38:{serviceID:19,ref:'C8-5',name:'Q>100条',basicParam:'价格信息数量',required:TRUE,unit:'元/条',conversion:1,maxPrice:null,minPrice:null,defPrice:100,desc:''},}"}]
[15,null,{"$f":"_xlfn.TEXTJOIN(\",\",TRUE,IF($A$1:$A$39=A41,$L$1:$L$39,\"\"))","v":"0,1"}]
[16,null,{"$f":"_xlfn.TEXTJOIN(\",\",TRUE,IF($A$1:$A$39=A42,$L$1:$L$39,\"\"))","v":"2,3,4,5,6,7"}]
[17,null,{"$f":"_xlfn.TEXTJOIN(\",\",TRUE,IF($A$1:$A$39=A43,$L$1:$L$39,\"\"))","v":"8,9,10,11,12,13,14,15,16,17,18,19,20"}]
[18,null,{"$f":"_xlfn.TEXTJOIN(\",\",TRUE,IF($A$1:$A$39=A44,$L$1:$L$39,\"\"))","v":"21,22,23,24,25,26,27,28,29,30,31,32,33"}]
[19,null,{"$f":"_xlfn.TEXTJOIN(\",\",TRUE,IF($A$1:$A$39=A45,$L$1:$L$39,\"\"))","v":"34,35,36,37,38"}]

{"sheet":"附录C(工日单价)","index":4,"n_rows":9,"n_cols":8,"rows_kept":9}
["C9-1-1","技术员及其他",600,800,{"$f":"AVERAGE(C1:D1)","v":700},2.3,0,{"$f":"G1&\":{ref:'\"&A1&\"',name:'\"&B1&\"',maxPrice:\"&D1&\",minPrice:\"&C1&\",defPrice:\"&E1&\",manageCoe:\"&F1&\"}\"","v":"0:{ref:'C9-1-1',name:'技术员及其他',maxPrice:800,minPrice:600,defPrice:700,manageCoe:2.3}"}]
["C9-1-2","助理工程师",800,1000,{"$f":"AVERAGE(C2:D2)","v":900},2.3,1,{"$f":"G2&\":{ref:'\"&A2&\"',name:'\"&B2&\"',maxPrice:\"&D2&\",minPrice:\"&C2&\",defPrice:\"&E2&\",manageCoe:\"&F2&\"}\"","v":"1:{ref:'C9-1-2',name:'助理工程师',maxPrice:1000,minPrice:800,defPrice:900,manageCoe:2.3}"}]
["C9-1-3","中级工程师或二级造价工程师",1000,1500,1250,2.2,2,"2:{ref:'C9-1-3',name:'中级工程师或二级造价工程师',maxPrice:1500,minPrice:1000,defPrice:1250,manageCoe:2.2}"]
["C9-1-4","高级工程师或一级造价工程师",1500,1800,1650,2.1,3,"3:{ref:'C9-1-4',name:'高级工程师或一级造价工程师',maxPrice:1800,minPrice:1500,defPrice:1650,manageCoe:2.1}"]
["C9-1-5","正高级工程师或资深专家",2000,2500,2250,2,4,"4:{ref:'C9-1-5',name:'正高级工程师或资深专家',maxPrice:2500,minPrice:2000,defPrice:2250,manageCoe:2}"]
["C9-2-1","二级造价工程师且具备中级工程师资格",1200,1500,1350,2.2,5,"5:{ref:'C9-2-1',name:'二级造价工程师且具备中级工程师资格',maxPrice:1500,minPrice:1200,defPrice:1350,manageCoe:2.2}"]
["C9-3-1","一级造价工程师且具备中级工程师资格",1500,1800,1650,2.1,6,"6:{ref:'C9-3-1',name:'一级造价工程师且具备中级工程师资格',maxPrice:1800,minPrice:1500,defPrice:1650,manageCoe:2.1}"]
["C9-3-2","一级造价工程师且具备高级工程师资格",1800,2000,1900,2.05,7,"7:{ref:'C9-3-2',name:'一级造价工程师且具备高级工程师资格',maxPrice:2000,minPrice:1800,defPrice:1900,manageCoe:2.05}"]
[{"$nulls":7},{"$f":"\"{\"&_xlfn.TEXTJOIN(\",\",TRUE,H1:H8)&\",}\"","v":"{0:{ref:'C9-1-1',name:'技术员及其他',maxPrice:800,minPrice:600,defPrice:700,manageCoe:2.3},1:{ref:'C9-1-2',name:'助理工程师',maxPrice:1000,minPrice:800,defPrice:900,manageCoe:2.3},2:{ref:'C9-1-3',name:'中级工程师或二级造价工程师',maxPrice:1500,minPrice:1000,defPrice:1250,manageCoe:2.2},3:{ref:'C9-1-4',name:'高级工程师或一级造价工程师',maxPrice:1800,minPrice:1500,defPrice:1650,manageCoe:2.1},4:{ref:'C9-1-5',name:'正高级工程师或资深专家',maxPrice:2500,minPrice:2000,defPrice:2250,manageCoe:2},5:{ref:'C9-2-1',name:'二级造价工程师且具备中级工程师资格',maxPrice:1500,minPrice:1200,defPrice:1350,manageCoe:2.2},6:{ref:'C9-3-1',name:'一级造价工程师且具备中级工程师资格',maxPrice:1800,minPrice:1500,defPrice:1650,manageCoe:2.1},7:{ref:'C9-3-2',name:'一级造价工程师且具备高级工程师资格',maxPrice:2000,minPrice:1800,defPrice:1900,manageCoe:2.05},}"}]

{"sheet":"附录D","index":5,"n_rows":39,"n_cols":17,"rows_kept":39}
[{"$nulls":6},"id","order","scale","onlyCostScale","amount","workDay","isRoad","isRailway","isWaterway","mutiple"]
["D1","全过程造价咨询","null","null",1,null,{"$f":"ROW()-2","v":0},{"$f":"ROW()-1","v":1},true,true,false,true,true,true,true,false,{"$f":"G2&\":{ref:'\"&A2&\"',name:'\"&B2&\"',maxCoe:\"&D2&\",minCoe:\"&C2&\",defCoe:\"&E2&\",desc:'\"&F2&\"',isRoad:\"&M2&\",isRailway:\"&N2&\",isWaterway:\"&O2&\",mutiple:\"&P2&\",order:\"&H2&\",scale:\"&I2&\",onlyCostScale:\"&J2&\",amount:\"&K2&\",workDay:\"&L2&\"}\"","v":"0:{ref:'D1',name:'全过程造价咨询',maxCoe:null,minCoe:null,defCoe:1,desc:'',isRoad:TRUE,isRailway:TRUE,isWaterway:TRUE,mutiple:FALSE,order:1,scale:TRUE,onlyCostScale:TRUE,amount:FALSE,workDay:TRUE}"}]
["D2","分阶段造价咨询","null","null","null",null,{"$f":"ROW()-2","v":1},{"$f":"ROW()-1","v":2},"null","null","null","null",true,true,true,false,"1:{ref:'D2',name:'分阶段造价咨询',maxCoe:null,minCoe:null,defCoe:null,desc:'',isRoad:TRUE,isRailway:TRUE,isWaterway:TRUE,mutiple:FALSE,order:2,scale:null,onlyCostScale:null,amount:null,workDay:null}"]
["D2-1","前期阶段造价咨询","null","null",0.5,null,2,3,true,true,false,true,true,true,true,false,"2:{ref:'D2-1',name:'前期阶段造价咨询',maxCoe:null,minCoe:null,defCoe:0.5,desc:'',isRoad:TRUE,isRailway:TRUE,isWaterway:TRUE,mutiple:FALSE,order:3,scale:TRUE,onlyCostScale:TRUE,amount:FALSE,workDay:TRUE}"]
["D2-2-1","实施阶段造价咨询（公路、水运）","null","null",0.55,"本系数适用于公路和水运工程。",3,4,true,true,false,true,true,false,true,false,"3:{ref:'D2-2-1',name:'实施阶段造价咨询（公路、水运）',maxCoe:null,minCoe:null,defCoe:0.55,desc:'本系数适用于公路和水运工程。',isRoad:TRUE,isRailway:FALSE,isWaterway:TRUE,mutiple:FALSE,order:4,scale:TRUE,onlyCostScale:TRUE,amount:FALSE,workDay:TRUE}"]
["D2-2-2","实施阶段造价咨询（铁路）","null","null",0.6,"本系数适用于铁路工程。",4,5,true,true,false,true,false,true,false,false,"4:{ref:'D2-2-2',name:'实施阶段造价咨询（铁路）',maxCoe:null,minCoe:null,defCoe:0.6,desc:'本系数适用于铁路工程。',isRoad:FALSE,isRailway:TRUE,isWaterway:FALSE,mutiple:FALSE,order:5,scale:TRUE,onlyCostScale:TRUE,amount:FALSE,workDay:TRUE}"]
["D3","基本造价咨询","null","null","null",null,5,6,"null","null","null","null",true,true,true,false,"5:{ref:'D3',name:'基本造价咨询',maxCoe:null,minCoe:null,defCoe:null,desc:'',isRoad:TRUE,isRailway:TRUE,isWaterway:TRUE,mutiple:FALSE,order:6,scale:null,onlyCostScale:null,amount:null,workDay:null}"]
["D3-1","投资估算","null","null",0.1,"委托同一咨询人同时负责D3-1和D3-2时，D3-1和D3-2的合计调整系数为0.25。",6,7,true,true,false,true,true,true,true,false,"6:{ref:'D3-1',name:'投资估算',maxCoe:null,minCoe:null,defCoe:0.1,desc:'委托同一咨询人同时负责D3-1和D3-2时，D3-1和D3-2的合计调整系数为0.25。',isRoad:TRUE,isRailway:TRUE,isWaterway:TRUE,mutiple:FALSE,order:7,scale:TRUE,onlyCostScale:TRUE,amount:FALSE,workDay:TRUE}"]
["D3-2","设计概算","null","null",0.2,null,7,8,true,true,false,true,true,true,true,false,"7:{ref:'D3-2',name:'设计概算',maxCoe:null,minCoe:null,defCoe:0.2,desc:'',isRoad:TRUE,isRailway:TRUE,isWaterway:TRUE,mutiple:FALSE,order:8,scale:TRUE,onlyCostScale:TRUE,amount:FALSE,workDay:TRUE}"]
["D3-3","施工图预算","null","null",0.25,"委托同一咨询人同时负责D3-3和D3-4时，D3-3和D3-4的合计调整系数为0.3。",8,9,true,false,false,true,true,true,true,false,"8:{ref:'D3-3',name:'施工图预算',maxCoe:null,minCoe:null,defCoe:0.25,desc:'委托同一咨询人同时负责D3-3和D3-4时，D3-3和D3-4的合计调整系数为0.3。',isRoad:TRUE,isRailway:TRUE,isWaterway:TRUE,mutiple:FALSE,order:9,scale:TRUE,onlyCostScale:FALSE,amount:FALSE,workDay:TRUE}"]
["D3-4","招标工程量清单及清单预算（或最高投标限价）","null","null",0.15,null,9,10,true,false,false,true,true,true,true,false,"9:{ref:'D3-4',name:'招标工程量清单及清单预算（或最高投标限价）',maxCoe:null,minCoe:null,defCoe:0.15,desc:'',isRoad:TRUE,isRailway:TRUE,isWaterway:TRUE,mutiple:FALSE,order:10,scale:TRUE,onlyCostScale:FALSE,amount:FALSE,workDay:TRUE}"]
["D3-5","清理概算（仅限铁路）","null","null",0.2,"本系数适用于铁路工程。",10,11,true,true,false,true,false,true,false,false,"10:{ref:'D3-5',name:'清理概算（仅限铁路）',maxCoe:null,minCoe:null,defCoe:0.2,desc:'本系数适用于铁路工程。',isRoad:FALSE,isRailway:TRUE,isWaterway:FALSE,mutiple:FALSE,order:11,scale:TRUE,onlyCostScale:TRUE,amount:FALSE,workDay:TRUE}"]
["D3-6-1","合同（工程）结算","null","null",0.3,"本系数适用于公路和水运工程。",{"$f":"ROW()-2","v":11},{"$f":"ROW()-1","v":12},true,false,false,true,true,false,true,false,"11:{ref:'D3-6-1',name:'合同（工程）结算',maxCoe:null,minCoe:null,defCoe:0.3,desc:'本系数适用于公路和水运工程。',isRoad:TRUE,isRailway:FALSE,isWaterway:TRUE,mutiple:FALSE,order:12,scale:TRUE,onlyCostScale:FALSE,amount:FALSE,workDay:TRUE}"]
["D3-6-2","合同（工程）结算","null","null",0.2,"本系数适用于铁路工程。",12,13,true,false,false,true,false,true,false,false,"12:{ref:'D3-6-2',name:'合同（工程）结算',maxCoe:null,minCoe:null,defCoe:0.2,desc:'本系数适用于铁路工程。',isRoad:FALSE,isRailway:TRUE,isWaterway:FALSE,mutiple:FALSE,order:13,scale:TRUE,onlyCostScale:FALSE,amount:FALSE,workDay:TRUE}"]
["D3-7","竣工决算","null","null",0.1,null,13,14,true,true,false,true,true,true,true,false,"13:{ref:'D3-7',name:'竣工决算',maxCoe:null,minCoe:null,defCoe:0.1,desc:'',isRoad:TRUE,isRailway:TRUE,isWaterway:TRUE,mutiple:FALSE,order:14,scale:TRUE,onlyCostScale:TRUE,amount:FALSE,workDay:TRUE}"]
["D4","专项造价咨询","null","null","null",null,14,15,"null","null","null","null",true,true,true,false,"14:{ref:'D4',name:'专项造价咨询',maxCoe:null,minCoe:null,defCoe:null,desc:'',isRoad:TRUE,isRailway:TRUE,isWaterway:TRUE,mutiple:FALSE,order:15,scale:null,onlyCostScale:null,amount:null,workDay:null}"]
["D4-1","工程造价顾问","null","null",1,"本表系数适用于采用工作量计价法基准预算的调整系数。",15,16,false,"null",true,true,true,true,true,false,"15:{ref:'D4-1',name:'工程造价顾问',maxCoe:null,minCoe:null,defCoe:1,desc:'本表系数适用于采用工作量计价法基准预算的调整系数。',isRoad:TRUE,isRailway:TRUE,isWaterway:TRUE,mutiple:FALSE,order:16,scale:FALSE,onlyCostScale:null,amount:TRUE,workDay:TRUE}"]
["D4-2","造价政策制（修）订","null","null",1,null,16,17,false,"null",true,true,true,true,true,false,"16:{ref:'D4-2',name:'造价政策制（修）订',maxCoe:null,minCoe:null,defCoe:1,desc:'',isRoad:TRUE,isRailway:TRUE,isWaterway:TRUE,mutiple:FALSE,order:17,scale:FALSE,onlyCostScale:null,amount:TRUE,workDay:TRUE}"]
["D4-3","造价科学与技术研究","null","null",1,null,17,18,false,"null",true,true,true,true,true,false,"17:{ref:'D4-3',name:'造价科学与技术研究',maxCoe:null,minCoe:null,defCoe:1,desc:'',isRoad:TRUE,isRailway:TRUE,isWaterway:TRUE,mutiple:FALSE,order:18,scale:FALSE,onlyCostScale:null,amount:TRUE,workDay:TRUE}"]
["D4-4","定额测定","null","null",1,null,18,19,false,"null",true,true,true,true,true,false,"18:{ref:'D4-4',name:'定额测定',maxCoe:null,minCoe:null,defCoe:1,desc:'',isRoad:TRUE,isRailway:TRUE,isWaterway:TRUE,mutiple:FALSE,order:19,scale:FALSE,onlyCostScale:null,amount:TRUE,workDay:TRUE}"]
["D4-5","造价信息咨询","null","null",1,null,19,20,false,"null",true,true,true,true,true,false,{"$f":"G21&\":{ref:'\"&A21&\"',name:'\"&B21&\"',maxCoe:\"&D21&\",minCoe:\"&C21&\",defCoe:\"&E21&\",desc:'\"&F21&\"',isRoad:\"&M21&\",isRailway:\"&N21&\",isWaterway:\"&O21&\",mutiple:\"&P21&\",order:\"&H21&\",scale:\"&I21&\",onlyCostScale:\"&J21&\",amount:\"&K21&\",workDay:\"&L21&\"}\"","v":"19:{ref:'D4-5',name:'造价信息咨询',maxCoe:null,minCoe:null,defCoe:1,desc:'',isRoad:TRUE,isRailway:TRUE,isWaterway:TRUE,mutiple:FALSE,order:20,scale:FALSE,onlyCostScale:null,amount:TRUE,workDay:TRUE}"}]
["D4-6","造价鉴定","null","null",0.5,"本表系数适用于采用规模计价法基准预算的调整系数。",20,21,true,false,false,true,true,true,true,false,"20:{ref:'D4-6',name:'造价鉴定',maxCoe:null,minCoe:null,defCoe:0.5,desc:'本表系数适用于采用规模计价法基准预算的调整系数。',isRoad:TRUE,isRailway:TRUE,isWaterway:TRUE,mutiple:FALSE,order:21,scale:TRUE,onlyCostScale:FALSE,amount:FALSE,workDay:TRUE}"]
["D4-7","工程成本测算","null","null",0.1,null,{"$f":"ROW()-2","v":21},{"$f":"ROW()-1","v":22},true,false,false,true,true,true,true,false,"21:{ref:'D4-7',name:'工程成本测算',maxCoe:null,minCoe:null,defCoe:0.1,desc:'',isRoad:TRUE,isRailway:TRUE,isWaterway:TRUE,mutiple:FALSE,order:22,scale:TRUE,onlyCostScale:FALSE,amount:FALSE,workDay:TRUE}"]
["D4-8","工程成本核算","null","null",0.1,null,22,23,true,false,false,true,true,true,true,false,"22:{ref:'D4-8',name:'工程成本核算',maxCoe:null,minCoe:null,defCoe:0.1,desc:'',isRoad:TRUE,isRailway:TRUE,isWaterway:TRUE,mutiple:FALSE,order:23,scale:TRUE,onlyCostScale:FALSE,amount:FALSE,workDay:TRUE}"]
["D4-9","计算工程量","null","null",0.2,null,23,24,true,false,false,true,true,true,true,false,"23:{ref:'D4-9',name:'计算工程量',maxCoe:null,minCoe:null,defCoe:0.2,desc:'',isRoad:TRUE,isRailway:TRUE,isWaterway:TRUE,mutiple:FALSE,order:24,scale:TRUE,onlyCostScale:FALSE,amount:FALSE,workDay:TRUE}"]
["D4-10","工程变更费用咨询","null","null",0.5,null,24,25,true,false,false,true,true,true,true,false,"24:{ref:'D4-10',name:'工程变更费用咨询',maxCoe:null,minCoe:null,defCoe:0.5,desc:'',isRoad:TRUE,isRailway:TRUE,isWaterway:TRUE,mutiple:FALSE,order:25,scale:TRUE,onlyCostScale:FALSE,amount:FALSE,workDay:TRUE}"]
["D4-11","调整估算",0.1,0.2,0.15,null,25,26,true,true,false,true,true,true,true,false,"25:{ref:'D4-11',name:'调整估算',maxCoe:0.2,minCoe:0.1,defCoe:0.15,desc:'',isRoad:TRUE,isRailway:TRUE,isWaterway:TRUE,mutiple:FALSE,order:26,scale:TRUE,onlyCostScale:TRUE,amount:FALSE,workDay:TRUE}"]
["D4-12","调整概算",0.15,0.3,0.225,"本表系数适用于采用规模计价法基准预算的系数；依据其调整时期所在建设阶段和基础资料的不同，其系数取值不同。",26,27,true,true,false,true,true,true,true,false,"26:{ref:'D4-12',name:'调整概算',maxCoe:0.3,minCoe:0.15,defCoe:0.225,desc:'本表系数适用于采用规模计价法基准预算的系数；依据其调整时期所在建设阶段和基础资料的不同，其系数取值不同。',isRoad:TRUE,isRailway:TRUE,isWaterway:TRUE,mutiple:FALSE,order:27,scale:TRUE,onlyCostScale:TRUE,amount:FALSE,workDay:TRUE}"]
["D4-13","造价检查","null","null","null","可按照服务工日数量×服务工日人工单价×综合预算系数；也可按照服务工日数量×服务工日综合预算单价。",27,28,false,"null",false,true,true,true,true,false,"27:{ref:'D4-13',name:'造价检查',maxCoe:null,minCoe:null,defCoe:null,desc:'可按照服务工日数量×服务工日人工单价×综合预算系数；也可按照服务工日数量×服务工日综合预算单价。',isRoad:TRUE,isRailway:TRUE,isWaterway:TRUE,mutiple:FALSE,order:28,scale:FALSE,onlyCostScale:null,amount:FALSE,workDay:TRUE}"]
["D4-14","其他专项咨询","null","null","null","可参照相同或相似服务的系数。",28,29,false,"null",false,true,true,true,true,false,"28:{ref:'D4-14',name:'其他专项咨询',maxCoe:null,minCoe:null,defCoe:null,desc:'可参照相同或相似服务的系数。',isRoad:TRUE,isRailway:TRUE,isWaterway:TRUE,mutiple:FALSE,order:29,scale:FALSE,onlyCostScale:null,amount:FALSE,workDay:TRUE}"]
["D4-15-1","造价数据测试验证(估算)","null","null",0.04,"委托同一咨询人同时负责D3-1和D3-2时，D3-1和D3-2的合计调整系数为0.25。",29,30,true,true,false,true,true,true,true,true,"29:{ref:'D4-15-1',name:'造价数据测试验证(估算)',maxCoe:null,minCoe:null,defCoe:0.04,desc:'委托同一咨询人同时负责D3-1和D3-2时，D3-1和D3-2的合计调整系数为0.25。',isRoad:TRUE,isRailway:TRUE,isWaterway:TRUE,mutiple:TRUE,order:30,scale:TRUE,onlyCostScale:TRUE,amount:FALSE,workDay:TRUE}"]
["D4-15-2","造价数据测试验证(概算)","null","null",0.08,null,30,31,true,true,false,true,true,true,true,true,"30:{ref:'D4-15-2',name:'造价数据测试验证(概算)',maxCoe:null,minCoe:null,defCoe:0.08,desc:'',isRoad:TRUE,isRailway:TRUE,isWaterway:TRUE,mutiple:TRUE,order:31,scale:TRUE,onlyCostScale:TRUE,amount:FALSE,workDay:TRUE}"]
["D4-15-3","造价数据测试验证(施工图预算)","null","null",0.1,"委托同一咨询人同时负责D3-3和D3-4时，D3-3和D3-4的合计调整系数为0.3。",{"$f":"ROW()-2","v":31},{"$f":"ROW()-1","v":32},true,false,false,true,true,true,true,true,"31:{ref:'D4-15-3',name:'造价数据测试验证(施工图预算)',maxCoe:null,minCoe:null,defCoe:0.1,desc:'委托同一咨询人同时负责D3-3和D3-4时，D3-3和D3-4的合计调整系数为0.3。',isRoad:TRUE,isRailway:TRUE,isWaterway:TRUE,mutiple:TRUE,order:32,scale:TRUE,onlyCostScale:FALSE,amount:FALSE,workDay:TRUE}"]
["D4-15-4","造价数据测试验证(招标工程量清单及清单预算（或最高投标限价）)","null","null",0.06,null,32,33,true,false,false,true,true,true,true,true,"32:{ref:'D4-15-4',name:'造价数据测试验证(招标工程量清单及清单预算（或最高投标限价）)',maxCoe:null,minCoe:null,defCoe:0.06,desc:'',isRoad:TRUE,isRailway:TRUE,isWaterway:TRUE,mutiple:TRUE,order:33,scale:TRUE,onlyCostScale:FALSE,amount:FALSE,workDay:TRUE}"]
["D4-15-5","造价数据测试验证(清理概算（仅限铁路）)","null","null",0.08,"本系数适用于铁路工程。",33,34,true,true,false,true,false,true,false,true,"33:{ref:'D4-15-5',name:'造价数据测试验证(清理概算（仅限铁路）)',maxCoe:null,minCoe:null,defCoe:0.08,desc:'本系数适用于铁路工程。',isRoad:FALSE,isRailway:TRUE,isWaterway:FALSE,mutiple:TRUE,order:34,scale:TRUE,onlyCostScale:TRUE,amount:FALSE,workDay:TRUE}"]
["D4-15-6","造价数据测试验证(合同（工程）结算)","null","null",0.12,"本系数适用于公路和水运工程。",34,35,true,false,false,true,true,false,true,true,"34:{ref:'D4-15-6',name:'造价数据测试验证(合同（工程）结算)',maxCoe:null,minCoe:null,defCoe:0.12,desc:'本系数适用于公路和水运工程。',isRoad:TRUE,isRailway:FALSE,isWaterway:TRUE,mutiple:TRUE,order:35,scale:TRUE,onlyCostScale:FALSE,amount:FALSE,workDay:TRUE}"]
["D4-15-7","造价数据测试验证(合同（工程）结算)","null","null",0.08,"本系数适用于铁路工程。",35,36,true,false,false,true,false,true,false,true,"35:{ref:'D4-15-7',name:'造价数据测试验证(合同（工程）结算)',maxCoe:null,minCoe:null,defCoe:0.08,desc:'本系数适用于铁路工程。',isRoad:FALSE,isRailway:TRUE,isWaterway:FALSE,mutiple:TRUE,order:36,scale:TRUE,onlyCostScale:FALSE,amount:FALSE,workDay:TRUE}"]
["D4-15-8","造价数据测试验证(竣工决算)","null","null",0.04,null,36,37,true,true,false,true,true,true,true,true,"36:{ref:'D4-15-8',name:'造价数据测试验证(竣工决算)',maxCoe:null,minCoe:null,defCoe:0.04,desc:'',isRoad:TRUE,isRailway:TRUE,isWaterway:TRUE,mutiple:TRUE,order:37,scale:TRUE,onlyCostScale:TRUE,amount:FALSE,workDay:TRUE}"]
[{"$nulls":16},{"$f":"\"{\"&_xlfn.TEXTJOIN(\",\",TRUE,Q2:Q38)&\",}\"","v":"{0:{ref:'D1',name:'全过程造价咨询',maxCoe:null,minCoe:null,defCoe:1,desc:'',isRoad:TRUE,isRailway:TRUE,isWaterway:TRUE,mutiple:FALSE,order:1,scale:TRUE,onlyCostScale:TRUE,amount:FALSE,workDay:TRUE},1:{ref:'D2',name:'分阶段造价咨询',maxCoe:null,minCoe:null,defCoe:null,desc:'',isRoad:TRUE,isRailway:TRUE,isWaterway:TRUE,mutiple:FALSE,order:2,scale:null,onlyCostScale:null,amount:null,workDay:null},2:{ref:'D2-1',name:'前期阶段造价咨询',maxCoe:null,minCoe:null,defCoe:0.5,desc:'',isRoad:TRUE,isRailway:TRUE,isWaterway:TRUE,mutiple:FALSE,order:3,scale:TRUE,onlyCostScale:TRUE,amount:FALSE,workDay:TRUE},3:{ref:'D2-2-1',name:'实施阶段造价咨询（公路、水运）',maxCoe:null,minCoe:null,defCoe:0.55,desc:'本系数适用于公路和水运工程。',isRoad:TRUE,isRailway:FALSE,isWaterway:TRUE,mutiple:FALSE,order:4,scale:TRUE,onlyCostScale:TRUE,amount:FALSE,workDay:TRUE},4:{ref:'D2-2-2',name:'实施阶段造价咨询（铁路）',maxCoe:null,minCoe:null,defCoe:0.6,desc:'本系数适用于铁路工程。',isRoad:FALSE,isRailway:TRUE,isWaterway:FALSE,mutiple:FALSE,order:5,scale:TRUE,onlyCostScale:TRUE,amount:FALSE,workDay:TRUE},5:{ref:'D3',name:'基本造价咨询',maxCoe:null,minCoe:null,defCoe:null,desc:'',isRoad:TRUE,isRailway:TRUE,isWaterway:TRUE,mutiple:FALSE,order:6,scale:null,onlyCostScale:null,amount:null,workDay:null},6:{ref:'D3-1',name:'投资估算',maxCoe:null,minCoe:null,defCoe:0.1,desc:'委托同一咨询人同时负责D3-1和D3-2时，D3-1和D3-2的合计调整系数为0.25。',isRoad:TRUE,isRailway:TRUE,isWaterway:TRUE,mutiple:FALSE,order:7,scale:TRUE,onlyCostScale:TRUE,amount:FALSE,workDay:TRUE},7:{ref:'D3-2',name:'设计概算',maxCoe:null,minCoe:null,defCoe:0.2,desc:'',isRoad:TRUE,isRailway:TRUE,isWaterway:TRUE,mutiple:FALSE,order:8,scale:TRUE,onlyCostScale:TRUE,amount:FALSE,workDay:TRUE},8:{ref:'D3-3',name:'施工图预算',maxCoe:null,minCoe:null,defCoe:0.25,desc:'委托同一咨询人同时负责D3-3和D3-4时，D3-3和D3-4的合计调整系数为0.3。',isRoad:TRUE,isRailway:TRUE,isWaterway:TRUE,mutiple:FALSE,order:9,scale:TRUE,onlyCostScale:FALSE,amount:FALSE,workDay:TRUE},9:{ref:'D3-4',name:'招标工程量清单及清单预算（或最高投标限价）',maxCoe:null,minCoe:null,defCoe:0.15,desc:'',isRoad:TRUE,isRailway:TRUE,isWaterway:TRUE,mutiple:FALSE,order:10,scale:TRUE,onlyCostScale:FALSE,amount:FALSE,workDay:TRUE},10:{ref:'D3-5',name:'清理概算（仅限铁路）',maxCoe:null,minCoe:null,defCoe:0.2,desc:'本系数适用于铁路工程。',isRoad:FALSE,isRailway:TRUE,isWaterway:FALSE,mutiple:FALSE,order:11,scale:TRUE,onlyCostScale:TRUE,amount:FALSE,workDay:TRUE},11:{ref:'D3-6-1',name:'合同（工程）结算',maxCoe:null,minCoe:null,defCoe:0.3,desc:'本系数适用于公路和水运工程。',isRoad:TRUE,isRailway:FALSE,isWaterway:TRUE,mutiple:FALSE,order:12,scale:TRUE,onlyCostScale:FALSE,amount:FALSE,workDay:TRUE},12:{ref:'D3-6-2',name:'合同（工程）结算',maxCoe:null,minCoe:null,defCoe:0.2,desc:'本系数适用于铁路工程。',isRoad:FALSE,isRailway:TRUE,isWaterway:FALSE,mutiple:FALSE,order:13,scale:TRUE,onlyCostScale:FALSE,amount:FALSE,workDay:TRUE},13:{ref:'D3-7',name:'竣工决算',maxCoe:null,minCoe:null,defCoe:0.1,desc:'',isRoad:TRUE,isRailway:TRUE,isWaterway:TRUE,mutiple:FALSE,order:14,scale:TRUE,onlyCostScale:TRUE,amount:FALSE,workDay:TRUE},14:{ref:'D4',name:'专项造价咨询',maxCoe:null,minCoe:null,defCoe:null,desc:'',isRoad:TRUE,isRailway:TRUE,isWaterway:TRUE,mutiple:FALSE,order:15,scale:null,onlyCostScale:null,amount:null,workDay:null},15:{ref:'D4-1',name:'工程造价顾问',maxCoe:null,minCoe:null,defCoe:1,desc:'本表系数适用于采用工作量计价法基准预算的调整系数。',isRoad:TRUE,isRailway:TRUE,isWaterway:TRUE,mutiple:FALSE,order:16,scale:FALSE,onlyCostScale:null,amount:TRUE,workDay:TRUE},16:{ref:'D4-2',name:'造价政策制（修）订',maxCoe:null,minCoe:null,defCoe:1,desc:'',isRoad:TRUE,isRailway:TRUE,isWaterway:TRUE,mutiple:FALSE,order:17,scale:FALSE,onlyCostScale:null,amount:TRUE,workDay:TRUE},17:{ref:'D4-3',name:'造价科学与技术研究',maxCoe:null,minCoe:null,defCoe:1,desc:'',isRoad:TRUE,isRailway:TRUE,isWaterway:TRUE,mutiple:FALSE,order:18,scale:FALSE,onlyCostScale:null,amount:TRUE,workDay:TRUE},18:{ref:'D4-4',name:'定额测定',maxCoe:null,minCoe:null,defCoe:1,desc:'',isRoad:TRUE,isRailway:TRUE,isWaterway:TRUE,mutiple:FALSE,order:19,scale:FALSE,onlyCostScale:null,amount:TRUE,workDay:TRUE},19:{ref:'D4-5',name:'造价信息咨询',maxCoe:null,minCoe:null,defCoe:1,desc:'',isRoad:TRUE,isRailway:TRUE,isWaterway:TRUE,mutiple:FALSE,order:20,scale:FALSE,onlyCostScale:null,amount:TRUE,workDay:TRUE},20:{ref:'D4-6',name:'造价鉴定',maxCoe:null,minCoe:null,defCoe:0.5,desc:'本表系数适用于采用规模计价法基准预算的调整系数。',isRoad:TRUE,isRailway:TRUE,isWaterway:TRUE,mutiple:FALSE,order:21,scale:TRUE,onlyCostScale:FALSE,amount:FALSE,workDay:TRUE},21:{ref:'D4-7',name:'工程成本测算',maxCoe:null,minCoe:null,defCoe:0.1,desc:'',isRoad:TRUE,isRailway:TRUE,isWaterway:TRUE,mutiple:FALSE,order:22,scale:TRUE,onlyCostScale:FALSE,amount:FALSE,workDay:TRUE},22:{ref:'D4-8',name:'工程成本核算',maxCoe:null,minCoe:null,defCoe:0.1,desc:'',isRoad:TRUE,isRailway:TRUE,isWaterway:TRUE,mutiple:FALSE,order:23,scale:TRUE,onlyCostScale:FALSE,amount:FALSE,workDay:TRUE},23:{ref:'D4-9',name:'计算工程量',maxCoe:null,minCoe:null,defCoe:0.2,desc:'',isRoad:TRUE,isRailway:TRUE,isWaterway:TRUE,mutiple:FALSE,order:24,scale:TRUE,onlyCostScale:FALSE,amount:FALSE,workDay:TRUE},24:{ref:'D4-10',name:'工程变更费用咨询',maxCoe:null,minCoe:null,defCoe:0.5,desc:'',isRoad:TRUE,isRailway:TRUE,isWaterway:TRUE,mutiple:FALSE,order:25,scale:TRUE,onlyCostScale:FALSE,amount:FALSE,workDay:TRUE},25:{ref:'D4-11',name:'调整估算',maxCoe:0.2,minCoe:0.1,defCoe:0.15,desc:'',isRoad:TRUE,isRailway:TRUE,isWaterway:TRUE,mutiple:FALSE,order:26,scale:TRUE,onlyCostScale:TRUE,amount:FALSE,workDay:TRUE},26:{ref:'D4-12',name:'调整概算',maxCoe:0.3,minCoe:0.15,defCoe:0.225,desc:'本表系数适用于采用规模计价法基准预算的系数；依据其调整时期所在建设阶段和基础资料的不同，其系数取值不同。',isRoad:TRUE,isRailway:TRUE,isWaterway:TRUE,mutiple:FALSE,order:27,scale:TRUE,onlyCostScale:TRUE,amount:FALSE,workDay:TRUE},27:{ref:'D4-13',name:'造价检查',maxCoe:null,minCoe:null,defCoe:null,desc:'可按照服务工日数量×服务工日人工单价×综合预算系数；也可按照服务工日数量×服务工日综合预算单价。',isRoad:TRUE,isRailway:TRUE,isWaterway:TRUE,mutiple:FALSE,order:28,scale:FALSE,onlyCostScale:null,amount:FALSE,workDay:TRUE},28:{ref:'D4-14',name:'其他专项咨询',maxCoe:null,minCoe:null,defCoe:null,desc:'可参照相同或相似服务的系数。',isRoad:TRUE,isRailway:TRUE,isWaterway:TRUE,mutiple:FALSE,order:29,scale:FALSE,onlyCostScale:null,amount:FALSE,workDay:TRUE},29:{ref:'D4-15-1',name:'造价数据测试验证(估算)',maxCoe:null,minCoe:null,defCoe:0.04,desc:'委托同一咨询人同时负责D3-1和D3-2时，D3-1和D3-2的合计调整系数为0.25。',isRoad:TRUE,isRailway:TRUE,isWaterway:TRUE,mutiple:TRUE,order:30,scale:TRUE,onlyCostScale:TRUE,amount:FALSE,workDay:TRUE},30:{ref:'D4-15-2',name:'造价数据测试验证(概算)',maxCoe:null,minCoe:null,defCoe:0.08,desc:'',isRoad:TRUE,isRailway:TRUE,isWaterway:TRUE,mutiple:TRUE,order:31,scale:TRUE,onlyCostScale:TRUE,amount:FALSE,workDay:TRUE},31:{ref:'D4-15-3',name:'造价数据测试验证(施工图预算)',maxCoe:null,minCoe:null,defCoe:0.1,desc:'委托同一咨询人同时负责D3-3和D3-4时，D3-3和D3-4的合计调整系数为0.3。',isRoad:TRUE,isRailway:TRUE,isWaterway:TRUE,mutiple:TRUE,order:32,scale:TRUE,onlyCostScale:FALSE,amount:FALSE,workDay:TRUE},32:{ref:'D4-15-4',name:'造价数据测试验证(招标工程量清单及清单预算（或最高投标限价）)',maxCoe:null,minCoe:null,defCoe:0.06,desc:'',isRoad:TRUE,isRailway:TRUE,isWaterway:TRUE,mutiple:TRUE,order:33,scale:TRUE,onlyCostScale:FALSE,amount:FALSE,workDay:TRUE},33:{ref:'D4-15-5',name:'造价数据测试验证(清理概算（仅限铁路）)',maxCoe:null,minCoe:null,defCoe:0.08,desc:'本系数适用于铁路工程。',isRoad:FALSE,isRailway:TRUE,isWaterway:FALSE,mutiple:TRUE,order:34,scale:TRUE,onlyCostScale:TRUE,amount:FALSE,workDay:TRUE},34:{ref:'D4-15-6',name:'造价数据测试验证(合同（工程）结算)',maxCoe:null,minCoe:null,defCoe:0.12,desc:'本系数适用于公路和水运工程。',isRoad:TRUE,isRailway:FALSE,isWaterway:TRUE,mutiple:TRUE,order:35,scale:TRUE,onlyCostScale:FALSE,amount:FALSE,workDay:TRUE},35:{ref:'D4-15-7',name:'造价数据测试验证(合同（工程）结算)',maxCoe:null,minCoe:null,defCoe:0.08,desc:'本系数适用于铁路工程。',isRoad:FALSE,isRailway:TRUE,isWaterway:FALSE,mutiple:TRUE,order:36,scale:TRUE,onlyCostScale:FALSE,amount:FALSE,workDay:TRUE},36:{ref:'D4-15-8',name:'造价数据测试验证(竣工决算)',maxCoe:null,minCoe:null,defCoe:0.04,desc:'',isRoad:TRUE,isRailway:TRUE,isWaterway:TRUE,mutiple:TRUE,order:37,scale:TRUE,onlyCostScale:TRUE,amount:FALSE,workDay:TRUE},}"}]

{"sheet":"附录E","index":6,"n_rows":36,"n_cols":12,"rows_kept":36}
[{"$nulls":6},"hasCost","hasArea","isRoad","isRailway","isWaterway"]
["E1","交通运输工程通用专业","null",null,{"$f":"ROW()-2","v":0},{"$f":"ROW()-1","v":1},false,false,true,true,true,{"$f":"E2&\":{ref:'\"&A2&\"',name:'\"&B2&\"',maxCoe:null,minCoe:null,defCoe:\"&C2&\",desc:'\"&D2&\"',isRoad:\"&I2&\",isRailway:\"&J2&\",isWaterway:\"&K2&\",order:\"&F2&\",hasCost:\"&G2&\",hasArea:\"&H2&\"}\"","v":"0:{ref:'E1',name:'交通运输工程通用专业',maxCoe:null,minCoe:null,defCoe:null,desc:'',isRoad:TRUE,isRailway:TRUE,isWaterway:TRUE,order:1,hasCost:FALSE,hasArea:FALSE}"}]
["E1-1","征地（用海）补偿",1,"适用于交通建设项目征地（用海）补偿的施工图预算、招标工程量清单及清单预算（或最高投标限价）、清理概算（仅限铁路工程）、合同（工程）结算和造价鉴定、计算工程量、工程变更费用咨询、工程成本测（核）算",{"$f":"ROW()-2","v":1},{"$f":"ROW()-1","v":2},true,true,true,true,true,{"$f":"E3&\":{ref:'\"&A3&\"',name:'\"&B3&\"',maxCoe:null,minCoe:null,defCoe:\"&C3&\",desc:'\"&D3&\"',isRoad:\"&I3&\",isRailway:\"&J3&\",isWaterway:\"&K3&\",order:\"&F3&\",hasCost:\"&G3&\",hasArea:\"&H3&\"}\"","v":"1:{ref:'E1-1',name:'征地（用海）补偿',maxCoe:null,minCoe:null,defCoe:1,desc:'适用于交通建设项目征地（用海）补偿的施工图预算、招标工程量清单及清单预算（或最高投标限价）、清理概算（仅限铁路工程）、合同（工程）结算和造价鉴定、计算工程量、工程变更费用咨询、工程成本测（核）算',isRoad:TRUE,isRailway:TRUE,isWaterway:TRUE,order:2,hasCost:TRUE,hasArea:TRUE}"}]
["E1-2","拆迁补偿",2.5,"适用于交通建设项目拆迁补偿的施工图预算、招标工程量清单及清单预算（或最高投标限价）、清理概算（仅限铁路工程）、合同（工程）结算和造价鉴定、计算工程量、工程变更费用咨询、工程成本测（核）算",2,3,true,true,true,true,true,"2:{ref:'E1-2',name:'拆迁补偿',maxCoe:null,minCoe:null,defCoe:2.5,desc:'适用于交通建设项目拆迁补偿的施工图预算、招标工程量清单及清单预算（或最高投标限价）、清理概算（仅限铁路工程）、合同（工程）结算和造价鉴定、计算工程量、工程变更费用咨询、工程成本测（核）算',isRoad:TRUE,isRailway:TRUE,isWaterway:TRUE,order:3,hasCost:TRUE,hasArea:TRUE}"]
["E1-3","迁改工程",2,"适用于交通建设项目迁改工程的施工图预算、招标工程量清单及清单预算（或最高投标限价）、清理概算（仅限铁路工程）、合同（工程）结算和造价鉴定、计算工程量、工程变更费用咨询、工程成本测（核）算",3,4,true,false,true,true,true,"3:{ref:'E1-3',name:'迁改工程',maxCoe:null,minCoe:null,defCoe:2,desc:'适用于交通建设项目迁改工程的施工图预算、招标工程量清单及清单预算（或最高投标限价）、清理概算（仅限铁路工程）、合同（工程）结算和造价鉴定、计算工程量、工程变更费用咨询、工程成本测（核）算',isRoad:TRUE,isRailway:TRUE,isWaterway:TRUE,order:4,hasCost:TRUE,hasArea:FALSE}"]
["E1-4","工程建设其他费",1,"适用于交通建设项目的工程建设其他费的施工图预算、招标工程量清单及清单预算（或最高投标限价）、清理概算（仅限铁路工程）和造价鉴定、计算工程量、工程变更费用咨询、工程成本测（核）算",4,5,true,false,true,true,true,"4:{ref:'E1-4',name:'工程建设其他费',maxCoe:null,minCoe:null,defCoe:1,desc:'适用于交通建设项目的工程建设其他费的施工图预算、招标工程量清单及清单预算（或最高投标限价）、清理概算（仅限铁路工程）和造价鉴定、计算工程量、工程变更费用咨询、工程成本测（核）算',isRoad:TRUE,isRailway:TRUE,isWaterway:TRUE,order:5,hasCost:TRUE,hasArea:FALSE}"]
["E1-5","预备费",1,null,5,6,true,false,true,true,true,"5:{ref:'E1-5',name:'预备费',maxCoe:null,minCoe:null,defCoe:1,desc:'',isRoad:TRUE,isRailway:TRUE,isWaterway:TRUE,order:6,hasCost:TRUE,hasArea:FALSE}"]
["E1-6","建设期贷款利息",1,null,6,7,true,false,true,true,true,"6:{ref:'E1-6',name:'建设期贷款利息',maxCoe:null,minCoe:null,defCoe:1,desc:'',isRoad:TRUE,isRailway:TRUE,isWaterway:TRUE,order:7,hasCost:TRUE,hasArea:FALSE}"]
["E2","公路工程专业",1,"适用于公路工程的全过程造价咨询、分阶段造价咨询、投资估算、初步设计概算、竣工决算和调整估算、调整概算（含征地拆迁和工程建设其他费）",7,8,false,false,true,false,false,"7:{ref:'E2',name:'公路工程专业',maxCoe:null,minCoe:null,defCoe:1,desc:'适用于公路工程的全过程造价咨询、分阶段造价咨询、投资估算、初步设计概算、竣工决算和调整估算、调整概算（含征地拆迁和工程建设其他费）',isRoad:TRUE,isRailway:FALSE,isWaterway:FALSE,order:8,hasCost:FALSE,hasArea:FALSE}"]
["E2-1","临时工程",1,"适用于临时工程专业的施工图预算、招标工程量清单及清单预算（或最高投标限价）、合同（工程）结算和造价鉴定、计算工程量、工程变更费用咨询、工程成本测（核）算",8,9,true,false,true,false,false,"8:{ref:'E2-1',name:'临时工程',maxCoe:null,minCoe:null,defCoe:1,desc:'适用于临时工程专业的施工图预算、招标工程量清单及清单预算（或最高投标限价）、合同（工程）结算和造价鉴定、计算工程量、工程变更费用咨询、工程成本测（核）算',isRoad:TRUE,isRailway:FALSE,isWaterway:FALSE,order:9,hasCost:TRUE,hasArea:FALSE}"]
["E2-2","路基工程",1.2,"适用于路基工程专业的施工图预算、招标工程量清单及清单预算（或最高投标限价）、合同（工程）结算和造价鉴定、计算工程量、工程变更费用咨询、工程成本测（核）算",9,10,true,false,true,false,false,"9:{ref:'E2-2',name:'路基工程',maxCoe:null,minCoe:null,defCoe:1.2,desc:'适用于路基工程专业的施工图预算、招标工程量清单及清单预算（或最高投标限价）、合同（工程）结算和造价鉴定、计算工程量、工程变更费用咨询、工程成本测（核）算',isRoad:TRUE,isRailway:FALSE,isWaterway:FALSE,order:10,hasCost:TRUE,hasArea:FALSE}"]
["E2-3","路面工程",0.8,"适用于路面工程专业的施工图预算、招标工程量清单及清单预算（或最高投标限价）、合同（工程）结算和造价鉴定、计算工程量、工程变更费用咨询、工程成本测（核）算",10,11,true,false,true,false,false,"10:{ref:'E2-3',name:'路面工程',maxCoe:null,minCoe:null,defCoe:0.8,desc:'适用于路面工程专业的施工图预算、招标工程量清单及清单预算（或最高投标限价）、合同（工程）结算和造价鉴定、计算工程量、工程变更费用咨询、工程成本测（核）算',isRoad:TRUE,isRailway:FALSE,isWaterway:FALSE,order:11,hasCost:TRUE,hasArea:FALSE}"]
["E2-4","桥涵工程",0.9,"适用于桥梁涵洞工程专业的施工图预算、招标工程量清单及清单预算（或最高投标限价）、合同（工程）结算和造价鉴定、计算工程量、工程变更费用咨询、工程成本测（核）算",{"$f":"ROW()-2","v":11},{"$f":"ROW()-1","v":12},true,false,true,false,false,"11:{ref:'E2-4',name:'桥涵工程',maxCoe:null,minCoe:null,defCoe:0.9,desc:'适用于桥梁涵洞工程专业的施工图预算、招标工程量清单及清单预算（或最高投标限价）、合同（工程）结算和造价鉴定、计算工程量、工程变更费用咨询、工程成本测（核）算',isRoad:TRUE,isRailway:FALSE,isWaterway:FALSE,order:12,hasCost:TRUE,hasArea:FALSE}"]
["E2-5","隧道工程",1,"适用于隧道工程专业的施工图预算、招标工程量清单及清单预算（或最高投标限价）、合同（工程）结算和造价鉴定、计算工程量、工程变更费用咨询、工程成本测（核）算",12,13,true,false,true,false,false,"12:{ref:'E2-5',name:'隧道工程',maxCoe:null,minCoe:null,defCoe:1,desc:'适用于隧道工程专业的施工图预算、招标工程量清单及清单预算（或最高投标限价）、合同（工程）结算和造价鉴定、计算工程量、工程变更费用咨询、工程成本测（核）算',isRoad:TRUE,isRailway:FALSE,isWaterway:FALSE,order:13,hasCost:TRUE,hasArea:FALSE}"]
["E2-6","交叉工程",1.1,"适用于交叉工程专业的施工图预算、招标工程量清单及清单预算（或最高投标限价）、合同（工程）结算和造价鉴定、计算工程量、工程变更费用咨询、工程成本测（核）算",13,14,true,false,true,false,false,"13:{ref:'E2-6',name:'交叉工程',maxCoe:null,minCoe:null,defCoe:1.1,desc:'适用于交叉工程专业的施工图预算、招标工程量清单及清单预算（或最高投标限价）、合同（工程）结算和造价鉴定、计算工程量、工程变更费用咨询、工程成本测（核）算',isRoad:TRUE,isRailway:FALSE,isWaterway:FALSE,order:14,hasCost:TRUE,hasArea:FALSE}"]
["E2-7","机电工程",1.2,"适用于机电工程专业的施工图预算、招标工程量清单及清单预算（或最高投标限价）和造价鉴定、计算工程量、工程变更费用咨询、工程成本测（核）算",14,15,true,false,true,false,false,"14:{ref:'E2-7',name:'机电工程',maxCoe:null,minCoe:null,defCoe:1.2,desc:'适用于机电工程专业的施工图预算、招标工程量清单及清单预算（或最高投标限价）和造价鉴定、计算工程量、工程变更费用咨询、工程成本测（核）算',isRoad:TRUE,isRailway:FALSE,isWaterway:FALSE,order:15,hasCost:TRUE,hasArea:FALSE}"]
["E2-8","交通安全设施工程",1.2,"适用于交通安全设施工程专业的施工图预算、招标工程量清单及清单预算（或最高投标限价）和造价鉴定、计算工程量、工程变更费用咨询、工程成本测（核）算",15,16,true,false,true,false,false,"15:{ref:'E2-8',name:'交通安全设施工程',maxCoe:null,minCoe:null,defCoe:1.2,desc:'适用于交通安全设施工程专业的施工图预算、招标工程量清单及清单预算（或最高投标限价）和造价鉴定、计算工程量、工程变更费用咨询、工程成本测（核）算',isRoad:TRUE,isRailway:FALSE,isWaterway:FALSE,order:16,hasCost:TRUE,hasArea:FALSE}"]
["E2-9","绿化及环境保护工程",1.2,"适用于绿化工程专业的施工图预算、招标工程量清单及清单预算（或最高投标限价）和造价鉴定、计算工程量、工程变更费用咨询、工程成本测（核）算",16,17,true,false,true,false,false,"16:{ref:'E2-9',name:'绿化及环境保护工程',maxCoe:null,minCoe:null,defCoe:1.2,desc:'适用于绿化工程专业的施工图预算、招标工程量清单及清单预算（或最高投标限价）和造价鉴定、计算工程量、工程变更费用咨询、工程成本测（核）算',isRoad:TRUE,isRailway:FALSE,isWaterway:FALSE,order:17,hasCost:TRUE,hasArea:FALSE}"]
["E2-10","房建工程",2.5,"适用于房建工程专业的施工图预算、招标工程量清单及清单预算（或最高投标限价）、合同（工程）结算和造价鉴定、计算工程量、工程变更费用咨询、工程成本测（核）算",17,18,true,false,true,false,false,"17:{ref:'E2-10',name:'房建工程',maxCoe:null,minCoe:null,defCoe:2.5,desc:'适用于房建工程专业的施工图预算、招标工程量清单及清单预算（或最高投标限价）、合同（工程）结算和造价鉴定、计算工程量、工程变更费用咨询、工程成本测（核）算',isRoad:TRUE,isRailway:FALSE,isWaterway:FALSE,order:18,hasCost:TRUE,hasArea:FALSE}"]
["E3","铁路工程专业",1,"适用于铁路工程的投资估算、初步设计概算、清理概算、竣工决算和调整估算、调整概算（含征地拆迁和工程建设其他费）",18,19,false,false,false,true,false,"18:{ref:'E3',name:'铁路工程专业',maxCoe:null,minCoe:null,defCoe:1,desc:'适用于铁路工程的投资估算、初步设计概算、清理概算、竣工决算和调整估算、调整概算（含征地拆迁和工程建设其他费）',isRoad:FALSE,isRailway:TRUE,isWaterway:FALSE,order:19,hasCost:FALSE,hasArea:FALSE}"]
["E3-1","大型临时设施和过渡工程",1,"适用于大型临时设施和过渡工程专业的施工图预算、招标工程量清单及清单预算（或最高投标限价）、合同（工程）结算和造价鉴定、计算工程量、工程变更费用咨询、工程成本测（核）算",19,20,true,false,false,true,false,"19:{ref:'E3-1',name:'大型临时设施和过渡工程',maxCoe:null,minCoe:null,defCoe:1,desc:'适用于大型临时设施和过渡工程专业的施工图预算、招标工程量清单及清单预算（或最高投标限价）、合同（工程）结算和造价鉴定、计算工程量、工程变更费用咨询、工程成本测（核）算',isRoad:FALSE,isRailway:TRUE,isWaterway:FALSE,order:20,hasCost:TRUE,hasArea:FALSE}"]
["E3-2","路基工程",1.2,"适用于路基工程专业的施工图预算、招标工程量清单及清单预算（或最高投标限价）、合同（工程）结算和造价鉴定、计算工程量、工程变更费用咨询、工程成本测（核）算",20,21,true,false,false,true,false,"20:{ref:'E3-2',name:'路基工程',maxCoe:null,minCoe:null,defCoe:1.2,desc:'适用于路基工程专业的施工图预算、招标工程量清单及清单预算（或最高投标限价）、合同（工程）结算和造价鉴定、计算工程量、工程变更费用咨询、工程成本测（核）算',isRoad:FALSE,isRailway:TRUE,isWaterway:FALSE,order:21,hasCost:TRUE,hasArea:FALSE}"]
["E3-3","桥涵工程",0.9,"适用于桥涵工程专业的施工图预算、招标工程量清单及清单预算（或最高投标限价）、合同（工程）结算和造价鉴定、计算工程量、工程变更费用咨询、工程成本测（核）算",{"$f":"ROW()-2","v":21},{"$f":"ROW()-1","v":22},true,false,false,true,false,"21:{ref:'E3-3',name:'桥涵工程',maxCoe:null,minCoe:null,defCoe:0.9,desc:'适用于桥涵工程专业的施工图预算、招标工程量清单及清单预算（或最高投标限价）、合同（工程）结算和造价鉴定、计算工程量、工程变更费用咨询、工程成本测（核）算',isRoad:FALSE,isRailway:TRUE,isWaterway:FALSE,order:22,hasCost:TRUE,hasArea:FALSE}"]
["E3-4","隧道及明洞工程",1,"适用于隧道及明洞工程专业的施工图预算、招标工程量清单及清单预算（或最高投标限价）、合同（工程）结算、竣工决算和造价鉴定、计算工程量、工程变更费用咨询、工程成本测（核）算",22,23,true,false,false,true,false,"22:{ref:'E3-4',name:'隧道及明洞工程',maxCoe:null,minCoe:null,defCoe:1,desc:'适用于隧道及明洞工程专业的施工图预算、招标工程量清单及清单预算（或最高投标限价）、合同（工程）结算、竣工决算和造价鉴定、计算工程量、工程变更费用咨询、工程成本测（核）算',isRoad:FALSE,isRailway:TRUE,isWaterway:FALSE,order:23,hasCost:TRUE,hasArea:FALSE}"]
["E3-5","轨道工程",0.3,"适用于轨道工程专业的施工图预算、招标工程量清单及清单预算（或最高投标限价）、合同（工程）结算和造价鉴定、计算工程量、工程变更费用咨询、工程成本测（核）算",23,24,true,false,false,true,false,"23:{ref:'E3-5',name:'轨道工程',maxCoe:null,minCoe:null,defCoe:0.3,desc:'适用于轨道工程专业的施工图预算、招标工程量清单及清单预算（或最高投标限价）、合同（工程）结算和造价鉴定、计算工程量、工程变更费用咨询、工程成本测（核）算',isRoad:FALSE,isRailway:TRUE,isWaterway:FALSE,order:24,hasCost:TRUE,hasArea:FALSE}"]
["E3-6","通信、信号、信息及灾害监测工程",2,"适用于通信、信号、信息及防灾监测工程专业的施工图预算、招标工程量清单及清单预算（或最高投标限价）、合同（工程）结算和造价鉴定、计算工程量、工程变更费用咨询、工程成本测（核）算",24,25,true,false,false,true,false,"24:{ref:'E3-6',name:'通信、信号、信息及灾害监测工程',maxCoe:null,minCoe:null,defCoe:2,desc:'适用于通信、信号、信息及防灾监测工程专业的施工图预算、招标工程量清单及清单预算（或最高投标限价）、合同（工程）结算和造价鉴定、计算工程量、工程变更费用咨询、工程成本测（核）算',isRoad:FALSE,isRailway:TRUE,isWaterway:FALSE,order:25,hasCost:TRUE,hasArea:FALSE}"]
["E3-7","电力及电力牵引供电工程",1.5,"适用于电力及电力牵引供电工程专业的施工图预算、招标工程量清单及清单预算（或最高投标限价）、合同（工程）结算和造价鉴定、计算工程量、工程变更费用咨询、工程成本测（核）算",25,26,true,false,false,true,false,"25:{ref:'E3-7',name:'电力及电力牵引供电工程',maxCoe:null,minCoe:null,defCoe:1.5,desc:'适用于电力及电力牵引供电工程专业的施工图预算、招标工程量清单及清单预算（或最高投标限价）、合同（工程）结算和造价鉴定、计算工程量、工程变更费用咨询、工程成本测（核）算',isRoad:FALSE,isRailway:TRUE,isWaterway:FALSE,order:26,hasCost:TRUE,hasArea:FALSE}"]
["E3-8","房建工程（房屋建筑及附属工程）",2.5,"适用于房屋建筑及附属工程专业的施工图预算、招标工程量清单及清单预算（或最高投标限价）、合同（工程）结算和造价鉴定、计算工程量、工程变更费用咨询、工程成本测（核）算",26,27,true,false,false,true,false,"26:{ref:'E3-8',name:'房建工程（房屋建筑及附属工程）',maxCoe:null,minCoe:null,defCoe:2.5,desc:'适用于房屋建筑及附属工程专业的施工图预算、招标工程量清单及清单预算（或最高投标限价）、合同（工程）结算和造价鉴定、计算工程量、工程变更费用咨询、工程成本测（核）算',isRoad:FALSE,isRailway:TRUE,isWaterway:FALSE,order:27,hasCost:TRUE,hasArea:FALSE}"]
["E3-9","装饰装修工程",2.7,"适用于装饰装修工程专业的施工图预算、招标工程量清单及清单预算（或最高投标限价）、合同（工程）结算和造价鉴定、计算工程量、工程变更费用咨询、工程成本测（核）算",27,28,true,false,false,true,false,"27:{ref:'E3-9',name:'装饰装修工程',maxCoe:null,minCoe:null,defCoe:2.7,desc:'适用于装饰装修工程专业的施工图预算、招标工程量清单及清单预算（或最高投标限价）、合同（工程）结算和造价鉴定、计算工程量、工程变更费用咨询、工程成本测（核）算',isRoad:FALSE,isRailway:TRUE,isWaterway:FALSE,order:28,hasCost:TRUE,hasArea:FALSE}"]
["E4","水运工程专业",1,"适用于水运工程的投资估算、初步设计概算、竣工决算和调整估算、调整概算（含征地拆迁和工程建设其他费）",28,29,false,false,false,false,true,"28:{ref:'E4',name:'水运工程专业',maxCoe:null,minCoe:null,defCoe:1,desc:'适用于水运工程的投资估算、初步设计概算、竣工决算和调整估算、调整概算（含征地拆迁和工程建设其他费）',isRoad:FALSE,isRailway:FALSE,isWaterway:TRUE,order:29,hasCost:FALSE,hasArea:FALSE}"]
["E4-1","临时工程",1.1,"适用于临时工程专业的施工图预算、招标工程量清单及清单预算（或最高投标限价）、合同（工程）结算、竣工决算和造价鉴定、计算工程量、工程变更费用咨询、工程成本测（核）算",29,30,true,false,false,false,true,"29:{ref:'E4-1',name:'临时工程',maxCoe:null,minCoe:null,defCoe:1.1,desc:'适用于临时工程专业的施工图预算、招标工程量清单及清单预算（或最高投标限价）、合同（工程）结算、竣工决算和造价鉴定、计算工程量、工程变更费用咨询、工程成本测（核）算',isRoad:FALSE,isRailway:FALSE,isWaterway:TRUE,order:30,hasCost:TRUE,hasArea:FALSE}"]
["E4-2","土建工程",1,"适用于土建工程专业的施工图预算、招标工程量清单及清单预算（或最高投标限价）、合同（工程）结算、竣工决算和造价鉴定、计算工程量、工程变更费用咨询、工程成本测（核）算",30,31,true,false,false,false,true,"30:{ref:'E4-2',name:'土建工程',maxCoe:null,minCoe:null,defCoe:1,desc:'适用于土建工程专业的施工图预算、招标工程量清单及清单预算（或最高投标限价）、合同（工程）结算、竣工决算和造价鉴定、计算工程量、工程变更费用咨询、工程成本测（核）算',isRoad:FALSE,isRailway:FALSE,isWaterway:TRUE,order:31,hasCost:TRUE,hasArea:FALSE}"]
["E4-3","机电与金属结构工程",1.5,"适用于机电与金属结构专业的施工图预算、招标工程量清单及清单预算（或最高投标限价）、合同（工程）结算和造价鉴定、计算工程量、工程变更费用咨询、工程成本测（核）算",31,32,true,false,false,false,true,"31:{ref:'E4-3',name:'机电与金属结构工程',maxCoe:null,minCoe:null,defCoe:1.5,desc:'适用于机电与金属结构专业的施工图预算、招标工程量清单及清单预算（或最高投标限价）、合同（工程）结算和造价鉴定、计算工程量、工程变更费用咨询、工程成本测（核）算',isRoad:FALSE,isRailway:FALSE,isWaterway:TRUE,order:32,hasCost:TRUE,hasArea:FALSE}"]
["E4-4","设备工程",1.5,"适用于设备工程专业的施工图预算、招标工程量清单及清单预算（或最高投标限价）、合同（工程）结算和造价鉴定、计算工程量、工程变更费用咨询、工程成本测（核）算",32,33,true,false,false,false,true,"32:{ref:'E4-4',name:'设备工程',maxCoe:null,minCoe:null,defCoe:1.5,desc:'适用于设备工程专业的施工图预算、招标工程量清单及清单预算（或最高投标限价）、合同（工程）结算和造价鉴定、计算工程量、工程变更费用咨询、工程成本测（核）算',isRoad:FALSE,isRailway:FALSE,isWaterway:TRUE,order:33,hasCost:TRUE,hasArea:FALSE}"]
["E4-5","附属房建工程（房屋建筑及附属工程）",2.5,"适用于房屋建筑与水运附属工程专业的施工图预算、招标工程量清单及清单预算（或最高投标限价）、合同（工程）结算和造价鉴定、计算工程量、工程变更费用咨询、工程成本测（核）算",33,34,true,false,false,false,true,"33:{ref:'E4-5',name:'附属房建工程（房屋建筑及附属工程）',maxCoe:null,minCoe:null,defCoe:2.5,desc:'适用于房屋建筑与水运附属工程专业的施工图预算、招标工程量清单及清单预算（或最高投标限价）、合同（工程）结算和造价鉴定、计算工程量、工程变更费用咨询、工程成本测（核）算',isRoad:FALSE,isRailway:FALSE,isWaterway:TRUE,order:34,hasCost:TRUE,hasArea:FALSE}"]
[{"$nulls":11},{"$f":"\"{\"&_xlfn.TEXTJOIN(\",\",TRUE,L2:L35)&\",}\"","v":"{0:{ref:'E1',name:'交通运输工程通用专业',maxCoe:null,minCoe:null,defCoe:null,desc:'',isRoad:TRUE,isRailway:TRUE,isWaterway:TRUE,order:1,hasCost:FALSE,hasArea:FALSE},1:{ref:'E1-1',name:'征地（用海）补偿',maxCoe:null,minCoe:null,defCoe:1,desc:'适用于交通建设项目征地（用海）补偿的施工图预算、招标工程量清单及清单预算（或最高投标限价）、清理概算（仅限铁路工程）、合同（工程）结算和造价鉴定、计算工程量、工程变更费用咨询、工程成本测（核）算',isRoad:TRUE,isRailway:TRUE,isWaterway:TRUE,order:2,hasCost:TRUE,hasArea:TRUE},2:{ref:'E1-2',name:'拆迁补偿',maxCoe:null,minCoe:null,defCoe:2.5,desc:'适用于交通建设项目拆迁补偿的施工图预算、招标工程量清单及清单预算（或最高投标限价）、清理概算（仅限铁路工程）、合同（工程）结算和造价鉴定、计算工程量、工程变更费用咨询、工程成本测（核）算',isRoad:TRUE,isRailway:TRUE,isWaterway:TRUE,order:3,hasCost:TRUE,hasArea:TRUE},3:{ref:'E1-3',name:'迁改工程',maxCoe:null,minCoe:null,defCoe:2,desc:'适用于交通建设项目迁改工程的施工图预算、招标工程量清单及清单预算（或最高投标限价）、清理概算（仅限铁路工程）、合同（工程）结算和造价鉴定、计算工程量、工程变更费用咨询、工程成本测（核）算',isRoad:TRUE,isRailway:TRUE,isWaterway:TRUE,order:4,hasCost:TRUE,hasArea:FALSE},4:{ref:'E1-4',name:'工程建设其他费',maxCoe:null,minCoe:null,defCoe:1,desc:'适用于交通建设项目的工程建设其他费的施工图预算、招标工程量清单及清单预算（或最高投标限价）、清理概算（仅限铁路工程）和造价鉴定、计算工程量、工程变更费用咨询、工程成本测（核）算',isRoad:TRUE,isRailway:TRUE,isWaterway:TRUE,order:5,hasCost:TRUE,hasArea:FALSE},5:{ref:'E1-5',name:'预备费',maxCoe:null,minCoe:null,defCoe:1,desc:'',isRoad:TRUE,isRailway:TRUE,isWaterway:TRUE,order:6,hasCost:TRUE,hasArea:FALSE},6:{ref:'E1-6',name:'建设期贷款利息',maxCoe:null,minCoe:null,defCoe:1,desc:'',isRoad:TRUE,isRailway:TRUE,isWaterway:TRUE,order:7,hasCost:TRUE,hasArea:FALSE},7:{ref:'E2',name:'公路工程专业',maxCoe:null,minCoe:null,defCoe:1,desc:'适用于公路工程的全过程造价咨询、分阶段造价咨询、投资估算、初步设计概算、竣工决算和调整估算、调整概算（含征地拆迁和工程建设其他费）',isRoad:TRUE,isRailway:FALSE,isWaterway:FALSE,order:8,hasCost:FALSE,hasArea:FALSE},8:{ref:'E2-1',name:'临时工程',maxCoe:null,minCoe:null,defCoe:1,desc:'适用于临时工程专业的施工图预算、招标工程量清单及清单预算（或最高投标限价）、合同（工程）结算和造价鉴定、计算工程量、工程变更费用咨询、工程成本测（核）算',isRoad:TRUE,isRailway:FALSE,isWaterway:FALSE,order:9,hasCost:TRUE,hasArea:FALSE},9:{ref:'E2-2',name:'路基工程',maxCoe:null,minCoe:null,defCoe:1.2,desc:'适用于路基工程专业的施工图预算、招标工程量清单及清单预算（或最高投标限价）、合同（工程）结算和造价鉴定、计算工程量、工程变更费用咨询、工程成本测（核）算',isRoad:TRUE,isRailway:FALSE,isWaterway:FALSE,order:10,hasCost:TRUE,hasArea:FALSE},10:{ref:'E2-3',name:'路面工程',maxCoe:null,minCoe:null,defCoe:0.8,desc:'适用于路面工程专业的施工图预算、招标工程量清单及清单预算（或最高投标限价）、合同（工程）结算和造价鉴定、计算工程量、工程变更费用咨询、工程成本测（核）算',isRoad:TRUE,isRailway:FALSE,isWaterway:FALSE,order:11,hasCost:TRUE,hasArea:FALSE},11:{ref:'E2-4',name:'桥涵工程',maxCoe:null,minCoe:null,defCoe:0.9,desc:'适用于桥梁涵洞工程专业的施工图预算、招标工程量清单及清单预算（或最高投标限价）、合同（工程）结算和造价鉴定、计算工程量、工程变更费用咨询、工程成本测（核）算',isRoad:TRUE,isRailway:FALSE,isWaterway:FALSE,order:12,hasCost:TRUE,hasArea:FALSE},12:{ref:'E2-5',name:'隧道工程',maxCoe:null,minCoe:null,defCoe:1,desc:'适用于隧道工程专业的施工图预算、招标工程量清单及清单预算（或最高投标限价）、合同（工程）结算和造价鉴定、计算工程量、工程变更费用咨询、工程成本测（核）算',isRoad:TRUE,isRailway:FALSE,isWaterway:FALSE,order:13,hasCost:TRUE,hasArea:FALSE},13:{ref:'E2-6',name:'交叉工程',maxCoe:null,minCoe:null,defCoe:1.1,desc:'适用于交叉工程专业的施工图预算、招标工程量清单及清单预算（或最高投标限价）、合同（工程）结算和造价鉴定、计算工程量、工程变更费用咨询、工程成本测（核）算',isRoad:TRUE,isRailway:FALSE,isWaterway:FALSE,order:14,hasCost:TRUE,hasArea:FALSE},14:{ref:'E2-7',name:'机电工程',maxCoe:null,minCoe:null,defCoe:1.2,desc:'适用于机电工程专业的施工图预算、招标工程量清单及清单预算（或最高投标限价）和造价鉴定、计算工程量、工程变更费用咨询、工程成本测（核）算',isRoad:TRUE,isRailway:FALSE,isWaterway:FALSE,order:15,hasCost:TRUE,hasArea:FALSE},15:{ref:'E2-8',name:'交通安全设施工程',maxCoe:null,minCoe:null,defCoe:1.2,desc:'适用于交通安全设施工程专业的施工图预算、招标工程量清单及清单预算（或最高投标限价）和造价鉴定、计算工程量、工程变更费用咨询、工程成本测（核）算',isRoad:TRUE,isRailway:FALSE,isWaterway:FALSE,order:16,hasCost:TRUE,hasArea:FALSE},16:{ref:'E2-9',name:'绿化及环境保护工程',maxCoe:null,minCoe:null,defCoe:1.2,desc:'适用于绿化工程专业的施工图预算、招标工程量清单及清单预算（或最高投标限价）和造价鉴定、计算工程量、工程变更费用咨询、工程成本测（核）算',isRoad:TRUE,isRailway:FALSE,isWaterway:FALSE,order:17,hasCost:TRUE,hasArea:FALSE},17:{ref:'E2-10',name:'房建工程',maxCoe:null,minCoe:null,defCoe:2.5,desc:'适用于房建工程专业的施工图预算、招标工程量清单及清单预算（或最高投标限价）、合同（工程）结算和造价鉴定、计算工程量、工程变更费用咨询、工程成本测（核）算',isRoad:TRUE,isRailway:FALSE,isWaterway:FALSE,order:18,hasCost:TRUE,hasArea:FALSE},18:{ref:'E3',name:'铁路工程专业',maxCoe:null,minCoe:null,defCoe:1,desc:'适用于铁路工程的投资估算、初步设计概算、清理概算、竣工决算和调整估算、调整概算（含征地拆迁和工程建设其他费）',isRoad:FALSE,isRailway:TRUE,isWaterway:FALSE,order:19,hasCost:FALSE,hasArea:FALSE},19:{ref:'E3-1',name:'大型临时设施和过渡工程',maxCoe:null,minCoe:null,defCoe:1,desc:'适用于大型临时设施和过渡工程专业的施工图预算、招标工程量清单及清单预算（或最高投标限价）、合同（工程）结算和造价鉴定、计算工程量、工程变更费用咨询、工程成本测（核）算',isRoad:FALSE,isRailway:TRUE,isWaterway:FALSE,order:20,hasCost:TRUE,hasArea:FALSE},20:{ref:'E3-2',name:'路基工程',maxCoe:null,minCoe:null,defCoe:1.2,desc:'适用于路基工程专业的施工图预算、招标工程量清单及清单预算（或最高投标限价）、合同（工程）结算和造价鉴定、计算工程量、工程变更费用咨询、工程成本测（核）算',isRoad:FALSE,isRailway:TRUE,isWaterway:FALSE,order:21,hasCost:TRUE,hasArea:FALSE},21:{ref:'E3-3',name:'桥涵工程',maxCoe:null,minCoe:null,defCoe:0.9,desc:'适用于桥涵工程专业的施工图预算、招标工程量清单及清单预算（或最高投标限价）、合同（工程）结算和造价鉴定、计算工程量、工程变更费用咨询、工程成本测（核）算',isRoad:FALSE,isRailway:TRUE,isWaterway:FALSE,order:22,hasCost:TRUE,hasArea:FALSE},22:{ref:'E3-4',name:'隧道及明洞工程',maxCoe:null,minCoe:null,defCoe:1,desc:'适用于隧道及明洞工程专业的施工图预算、招标工程量清单及清单预算（或最高投标限价）、合同（工程）结算、竣工决算和造价鉴定、计算工程量、工程变更费用咨询、工程成本测（核）算',isRoad:FALSE,isRailway:TRUE,isWaterway:FALSE,order:23,hasCost:TRUE,hasArea:FALSE},23:{ref:'E3-5',name:'轨道工程',maxCoe:null,minCoe:null,defCoe:0.3,desc:'适用于轨道工程专业的施工图预算、招标工程量清单及清单预算（或最高投标限价）、合同（工程）结算和造价鉴定、计算工程量、工程变更费用咨询、工程成本测（核）算',isRoad:FALSE,isRailway:TRUE,isWaterway:FALSE,order:24,hasCost:TRUE,hasArea:FALSE},24:{ref:'E3-6',name:'通信、信号、信息及灾害监测工程',maxCoe:null,minCoe:null,defCoe:2,desc:'适用于通信、信号、信息及防灾监测工程专业的施工图预算、招标工程量清单及清单预算（或最高投标限价）、合同（工程）结算和造价鉴定、计算工程量、工程变更费用咨询、工程成本测（核）算',isRoad:FALSE,isRailway:TRUE,isWaterway:FALSE,order:25,hasCost:TRUE,hasArea:FALSE},25:{ref:'E3-7',name:'电力及电力牵引供电工程',maxCoe:null,minCoe:null,defCoe:1.5,desc:'适用于电力及电力牵引供电工程专业的施工图预算、招标工程量清单及清单预算（或最高投标限价）、合同（工程）结算和造价鉴定、计算工程量、工程变更费用咨询、工程成本测（核）算',isRoad:FALSE,isRailway:TRUE,isWaterway:FALSE,order:26,hasCost:TRUE,hasArea:FALSE},26:{ref:'E3-8',name:'房建工程（房屋建筑及附属工程）',maxCoe:null,minCoe:null,defCoe:2.5,desc:'适用于房屋建筑及附属工程专业的施工图预算、招标工程量清单及清单预算（或最高投标限价）、合同（工程）结算和造价鉴定、计算工程量、工程变更费用咨询、工程成本测（核）算',isRoad:FALSE,isRailway:TRUE,isWaterway:FALSE,order:27,hasCost:TRUE,hasArea:FALSE},27:{ref:'E3-9',name:'装饰装修工程',maxCoe:null,minCoe:null,defCoe:2.7,desc:'适用于装饰装修工程专业的施工图预算、招标工程量清单及清单预算（或最高投标限价）、合同（工程）结算和造价鉴定、计算工程量、工程变更费用咨询、工程成本测（核）算',isRoad:FALSE,isRailway:TRUE,isWaterway:FALSE,order:28,hasCost:TRUE,hasArea:FALSE},28:{ref:'E4',name:'水运工程专业',maxCoe:null,minCoe:null,defCoe:1,desc:'适用于水运工程的投资估算、初步设计概算、竣工决算和调整估算、调整概算（含征地拆迁和工程建设其他费）',isRoad:FALSE,isRailway:FALSE,isWaterway:TRUE,order:29,hasCost:FALSE,hasArea:FALSE},29:{ref:'E4-1',name:'临时工程',maxCoe:null,minCoe:null,defCoe:1.1,desc:'适用于临时工程专业的施工图预算、招标工程量清单及清单预算（或最高投标限价）、合同（工程）结算、竣工决算和造价鉴定、计算工程量、工程变更费用咨询、工程成本测（核）算',isRoad:FALSE,isRailway:FALSE,isWaterway:TRUE,order:30,hasCost:TRUE,hasArea:FALSE},30:{ref:'E4-2',name:'土建工程',maxCoe:null,minCoe:null,defCoe:1,desc:'适用于土建工程专业的施工图预算、招标工程量清单及清单预算（或最高投标限价）、合同（工程）结算、竣工决算和造价鉴定、计算工程量、工程变更费用咨询、工程成本测（核）算',isRoad:FALSE,isRailway:FALSE,isWaterway:TRUE,order:31,hasCost:TRUE,hasArea:FALSE},31:{ref:'E4-3',name:'机电与金属结构工程',maxCoe:null,minCoe:null,defCoe:1.5,desc:'适用于机电与金属结构专业的施工图预算、招标工程量清单及清单预算（或最高投标限价）、合同（工程）结算和造价鉴定、计算工程量、工程变更费用咨询、工程成本测（核）算',isRoad:FALSE,isRailway:FALSE,isWaterway:TRUE,order:32,hasCost:TRUE,hasArea:FALSE},32:{ref:'E4-4',name:'设备工程',maxCoe:null,minCoe:null,defCoe:1.5,desc:'适用于设备工程专业的施工图预算、招标工程量清单及清单预算（或最高投标限价）、合同（工程）结算和造价鉴定、计算工程量、工程变更费用咨询、工程成本测（核）算',isRoad:FALSE,isRailway:FALSE,isWaterway:TRUE,order:33,hasCost:TRUE,hasArea:FALSE},33:{ref:'E4-5',name:'附属房建工程（房屋建筑及附属工程）',maxCoe:null,minCoe:null,defCoe:2.5,desc:'适用于房屋建筑与水运附属工程专业的施工图预算、招标工程量清单及清单预算（或最高投标限价）、合同（工程）结算和造价鉴定、计算工程量、工程变更费用咨询、工程成本测（核）算',isRoad:FALSE,isRailway:FALSE,isWaterway:TRUE,order:34,hasCost:TRUE,hasArea:FALSE},}"}]

{"sheet":"工作内容","index":7,"n_rows":193,"n_cols":9,"rows_kept":193,"merged":[[0,0,0,3]]}
["交通运输工程造价咨询服务工作内容",{"$nulls":3},"id","serviceid","order","type"]
["序号","工作内容","工作类型","备注"]
[1,"通用工作【适用于投资估算、设计概算、施工图预算、招标工程量清单及清单预算、清理概算、合同（工程）结算、竣工决算；造价政策制（修）订、造价科学与技术研究、定额测定、造价信息咨询、造价鉴定、工程成本测算、工程成本核算、计算工程量、工程变更费用咨询、调整估算、调整概算、造价检查。"]
[1.1,"收集并整理各阶段及各项造价咨询所需的基础资料，审核基础资料的完整性和合理性","基本工作","放在工作内容的第1项"]
[1.2,"编制造价咨询服务总体及各分项的服务计划、服务大纲及工作方案","基本工作","放在工作内容的第1项"]
[1.3,"了解建设工程项目所在地的建设条件","基本工作","放在工作内容的第1项"]
[2,"投资估算",null,null,-1,{"$f":"IF(LEN(C7)>0,F6,INDEX(附录D!G:G,MATCH(B7,附录D!B:B,0)))","v":6},null,null,{"$f":"IF(LEN(C7)>0,E7&\":{text:'\"&B7&\"',serviceid:\"&F7&\",order:\"&G7&\",type:\"&H7&\"}\",\"\")","v":""}]
[2.1,"完成投资估算文件及主要技术经济指标，完成与相关单位核对投资估算","基本工作",null,{"$f":"IF(LEN(C8)>0,E7+1,E7)","v":0},{"$f":"IF(LEN(C8)>0,F7,INDEX(附录D!G:G,MATCH(B8,附录D!B:B,0)))","v":6},1,0,{"$f":"IF(LEN(C8)>0,E8&\":{text:'\"&B8&\"',serviceid:\"&F8&\",order:\"&G8&\",type:\"&H8&\"}\",\"\")","v":"0:{text:'完成投资估算文件及主要技术经济指标，完成与相关单位核对投资估算',serviceid:6,order:1,type:0}"}]
[2.2,"根据项目建议书或可行性研究报告的变化，动态调整投资估算和技术经济指标，并对比各环节投资估算变化，完成项目建议书阶段到可行性研究阶段的量、价对比及原因分析","基本工作",null,{"$f":"IF(LEN(C9)>0,E8+1,E8)","v":1},{"$f":"IF(LEN(C9)>0,F8,INDEX(附录D!G:G,MATCH(B9,附录D!B:B,0)))","v":6},2,0,{"$f":"IF(LEN(C9)>0,E9&\":{text:'\"&B9&\"',serviceid:\"&F9&\",order:\"&G9&\",type:\"&H9&\"}\",\"\")","v":"1:{text:'根据项目建议书或可行性研究报告的变化，动态调整投资估算和技术经济指标，并对比各环节投资估算变化，完成项目建议书阶段到可行性研究阶段的量、价对比及原因分析',serviceid:6,order:2,type:0}"}]
[2.3,"参加项目建议书或可行性研究的技术论证会议、评审会议和与确定投资估算相关的会议","基本工作",null,2,{"$f":"IF(LEN(C10)>0,F9,INDEX(附录D!G:G,MATCH(B10,附录D!B:B,0)))","v":6},3,0,"2:{text:'参加项目建议书或可行性研究的技术论证会议、评审会议和与确定投资估算相关的会议',serviceid:6,order:3,type:0}"]
[2.4,"对比类似项目的技术经济指标，分析技术经济指标差异原因，提供造价差异分析报告","可选工作",null,3,{"$f":"IF(LEN(C11)>0,F10,INDEX(附录D!G:G,MATCH(B11,附录D!B:B,0)))","v":6},4,1,"3:{text:'对比类似项目的技术经济指标，分析技术经济指标差异原因，提供造价差异分析报告',serviceid:6,order:4,type:1}"]
[2.5,"根据造价差异分析结果，提出调整工程方案的咨询意见供委托人或关联单位决策","可选工作",null,4,{"$f":"IF(LEN(C12)>0,F11,INDEX(附录D!G:G,MATCH(B12,附录D!B:B,0)))","v":6},5,1,"4:{text:'根据造价差异分析结果，提出调整工程方案的咨询意见供委托人或关联单位决策',serviceid:6,order:5,type:1}"]
[2.6,"依据投资估算和项目建设计划，编制项目资金计划，供委托人决策","可选工作",null,5,{"$f":"IF(LEN(C13)>0,F12,INDEX(附录D!G:G,MATCH(B13,附录D!B:B,0)))","v":6},6,1,"5:{text:'依据投资估算和项目建设计划，编制项目资金计划，供委托人决策',serviceid:6,order:6,type:1}"]
[3,"设计概算",null,null,5,{"$f":"IF(LEN(C14)>0,F13,INDEX(附录D!G:G,MATCH(B14,附录D!B:B,0)))","v":7},null,null,""]
[3.1,"完成设计概算文件及主要技术经济指标，完成与相关单位核对设计概算","基本工作",null,6,{"$f":"IF(LEN(C15)>0,F14,INDEX(附录D!G:G,MATCH(B15,附录D!B:B,0)))","v":7},7,0,"6:{text:'完成设计概算文件及主要技术经济指标，完成与相关单位核对设计概算',serviceid:7,order:7,type:0}"]
[3.2,"依据各版初步设计动态调整设计概算及经济指标，并对比各版设计概算结果，完成可行性研究阶段到初步设计阶段的造价对比，提供造价差异分析报告","基本工作",null,7,{"$f":"IF(LEN(C16)>0,F15,INDEX(附录D!G:G,MATCH(B16,附录D!B:B,0)))","v":7},8,0,"7:{text:'依据各版初步设计动态调整设计概算及经济指标，并对比各版设计概算结果，完成可行性研究阶段到初步设计阶段的造价对比，提供造价差异分析报告',serviceid:7,order:8,type:0}"]
[3.3,"参加初步设计的技术论证会议、评审会议和与设计概算相关的会议","基本工作",null,8,{"$f":"IF(LEN(C17)>0,F16,INDEX(附录D!G:G,MATCH(B17,附录D!B:B,0)))","v":7},9,0,"8:{text:'参加初步设计的技术论证会议、评审会议和与设计概算相关的会议',serviceid:7,order:9,type:0}"]
[3.4,"对比类似项目的技术经济指标，分析技术经济指标差异原因，提供造价差异分析报告","可选工作",null,9,{"$f":"IF(LEN(C18)>0,F17,INDEX(附录D!G:G,MATCH(B18,附录D!B:B,0)))","v":7},10,1,"9:{text:'对比类似项目的技术经济指标，分析技术经济指标差异原因，提供造价差异分析报告',serviceid:7,order:10,type:1}"]
[3.5,"根据造价差异分析结果，提出调整工程设计方案的咨询意见供委托人或关联单位决策","可选工作",null,10,{"$f":"IF(LEN(C19)>0,F18,INDEX(附录D!G:G,MATCH(B19,附录D!B:B,0)))","v":7},11,1,"10:{text:'根据造价差异分析结果，提出调整工程设计方案的咨询意见供委托人或关联单位决策',serviceid:7,order:11,type:1}"]
[3.6,"依据设计概算和项目建设计划，编制或调整项目资金计划，供委托人决策","可选工作",null,11,{"$f":"IF(LEN(C20)>0,F19,INDEX(附录D!G:G,MATCH(B20,附录D!B:B,0)))","v":7},12,1,"11:{text:'依据设计概算和项目建设计划，编制或调整项目资金计划，供委托人决策',serviceid:7,order:12,type:1}"]
[4,"施工图预算",null,null,11,{"$f":"IF(LEN(C21)>0,F20,INDEX(附录D!G:G,MATCH(B21,附录D!B:B,0)))","v":8},null,null,""]
[4.1,"完成施工图预算文件及主要技术经济指标，完成与相关单位核对施工图预算","基本工作",null,12,{"$f":"IF(LEN(C22)>0,F21,INDEX(附录D!G:G,MATCH(B22,附录D!B:B,0)))","v":8},13,0,"12:{text:'完成施工图预算文件及主要技术经济指标，完成与相关单位核对施工图预算',serviceid:8,order:13,type:0}"]
[4.2,"依据各版施工图动态调整施工图预算，并对比各版施工图预算结果，完成施工图预算与设计概算的造价对比（如有必要应完成与投资估算的造价对比），提供造价差异分析报告","基本工作",null,13,{"$f":"IF(LEN(C23)>0,F22,INDEX(附录D!G:G,MATCH(B23,附录D!B:B,0)))","v":8},14,0,"13:{text:'依据各版施工图动态调整施工图预算，并对比各版施工图预算结果，完成施工图预算与设计概算的造价对比（如有必要应完成与投资估算的造价对比），提供造价差异分析报告',serviceid:8,order:14,type:0}"]
[4.3,"参加施工图设计的技术论证会议、评审会议和与施工图预算相关的会议","基本工作",null,14,{"$f":"IF(LEN(C24)>0,F23,INDEX(附录D!G:G,MATCH(B24,附录D!B:B,0)))","v":8},15,0,"14:{text:'参加施工图设计的技术论证会议、评审会议和与施工图预算相关的会议',serviceid:8,order:15,type:0}"]
[4.4,"对比类似项目的技术经济指标，分析技术经济指标差异原因，提供造价差异分析报告","可选工作",null,15,{"$f":"IF(LEN(C25)>0,F24,INDEX(附录D!G:G,MATCH(B25,附录D!B:B,0)))","v":8},16,1,"15:{text:'对比类似项目的技术经济指标，分析技术经济指标差异原因，提供造价差异分析报告',serviceid:8,order:16,type:1}"]
[4.5,"根据造价差异分析结果，提出调整工程设计方案的咨询意见供委托人或关联单位决策","可选工作",null,16,{"$f":"IF(LEN(C26)>0,F25,INDEX(附录D!G:G,MATCH(B26,附录D!B:B,0)))","v":8},17,1,"16:{text:'根据造价差异分析结果，提出调整工程设计方案的咨询意见供委托人或关联单位决策',serviceid:8,order:17,type:1}"]
[4.6,"依据施工图预算和项目建设计划，编制或调整项目资金计划，供委托人决策","可选工作",null,17,{"$f":"IF(LEN(C27)>0,F26,INDEX(附录D!G:G,MATCH(B27,附录D!B:B,0)))","v":8},18,1,"17:{text:'依据施工图预算和项目建设计划，编制或调整项目资金计划，供委托人决策',serviceid:8,order:18,type:1}"]
[4.7,"分析专项设计方案的经济合理性，提出咨询意见供委托人决策","可选工作",null,18,{"$f":"IF(LEN(C28)>0,F27,INDEX(附录D!G:G,MATCH(B28,附录D!B:B,0)))","v":8},19,1,"18:{text:'分析专项设计方案的经济合理性，提出咨询意见供委托人决策',serviceid:8,order:19,type:1}"]
[4.8,"分析施工组织设计和交通组织方案的经济合理性，提出咨询意见供委托人决策","可选工作",null,19,{"$f":"IF(LEN(C29)>0,F28,INDEX(附录D!G:G,MATCH(B29,附录D!B:B,0)))","v":8},20,1,"19:{text:'分析施工组织设计和交通组织方案的经济合理性，提出咨询意见供委托人决策',serviceid:8,order:20,type:1}"]
[5,"招标工程量清单及清单预算（或最高投标限价）",null,null,19,{"$f":"IF(LEN(C30)>0,F29,INDEX(附录D!G:G,MATCH(B30,附录D!B:B,0)))","v":9},null,null,""]
[5.1,"完成招标工程量清单及工程量清单预算，与相关单位核对工程量清单及工程量清单预算，并完成修改与调整","基本工作",null,20,{"$f":"IF(LEN(C31)>0,F30,INDEX(附录D!G:G,MATCH(B31,附录D!B:B,0)))","v":9},21,0,"20:{text:'完成招标工程量清单及工程量清单预算，与相关单位核对工程量清单及工程量清单预算，并完成修改与调整',serviceid:9,order:21,type:0}"]
[5.2,"对比工程量清单预算和施工图预算，提供造价差异分析报告","基本工作",null,21,{"$f":"IF(LEN(C32)>0,F31,INDEX(附录D!G:G,MATCH(B32,附录D!B:B,0)))","v":9},22,0,"21:{text:'对比工程量清单预算和施工图预算，提供造价差异分析报告',serviceid:9,order:22,type:0}"]
[5.3,"审核计量与支付条款，对招标文件和合同文件涉及合同价款、工程变更费用咨询、结算费用等与造价相关条款提供咨询意见","基本工作",null,22,{"$f":"IF(LEN(C33)>0,F32,INDEX(附录D!G:G,MATCH(B33,附录D!B:B,0)))","v":9},23,0,"22:{text:'审核计量与支付条款，对招标文件和合同文件涉及合同价款、工程变更费用咨询、结算费用等与造价相关条款提供咨询意见',serviceid:9,order:23,type:0}"]
[5.4,"协助招标人完成招标答疑涉及的造价问题的解答与回复","基本工作",null,23,{"$f":"IF(LEN(C34)>0,F33,INDEX(附录D!G:G,MATCH(B34,附录D!B:B,0)))","v":9},24,0,"23:{text:'协助招标人完成招标答疑涉及的造价问题的解答与回复',serviceid:9,order:24,type:0}"]
[5.5,"参加招投标阶段与造价确定相关的会议","基本工作",null,24,{"$f":"IF(LEN(C35)>0,F34,INDEX(附录D!G:G,MATCH(B35,附录D!B:B,0)))","v":9},25,0,"24:{text:'参加招投标阶段与造价确定相关的会议',serviceid:9,order:25,type:0}"]
[5.6,"对比中标价与工程量清单预算，并分析差异原因，协助招标人完成不平衡报价调整","可选工作",null,25,{"$f":"IF(LEN(C36)>0,F35,INDEX(附录D!G:G,MATCH(B36,附录D!B:B,0)))","v":9},26,1,"25:{text:'对比中标价与工程量清单预算，并分析差异原因，协助招标人完成不平衡报价调整',serviceid:9,order:26,type:1}"]
[5.7,"参与合同谈判，协助招标人合同谈判过程中相关造价分析","可选工作",null,26,{"$f":"IF(LEN(C37)>0,F36,INDEX(附录D!G:G,MATCH(B37,附录D!B:B,0)))","v":9},27,1,"26:{text:'参与合同谈判，协助招标人合同谈判过程中相关造价分析',serviceid:9,order:27,type:1}"]
[6,"清理概算（仅限铁路）",null,null,26,{"$f":"IF(LEN(C38)>0,F37,INDEX(附录D!G:G,MATCH(B38,附录D!B:B,0)))","v":10},null,null,""]
[6.1,"清理施工承包合同费用、征地拆迁费用、各项价差、其他类费用及费用依据、计算资料等","基本工作",null,27,{"$f":"IF(LEN(C39)>0,F38,INDEX(附录D!G:G,MATCH(B39,附录D!B:B,0)))","v":10},28,0,"27:{text:'清理施工承包合同费用、征地拆迁费用、各项价差、其他类费用及费用依据、计算资料等',serviceid:10,order:28,type:0}"]
[6.2,"清理征地拆迁费用，包括清理建设项目的用地、青苗补偿、房屋拆迁等费用，清理管线迁改、改路、改河、改沟以及构筑物迁改等费用，土地复垦费用及征拆各项规费的清理等","基本工作",null,28,{"$f":"IF(LEN(C40)>0,F39,INDEX(附录D!G:G,MATCH(B40,附录D!B:B,0)))","v":10},29,0,"28:{text:'清理征地拆迁费用，包括清理建设项目的用地、青苗补偿、房屋拆迁等费用，清理管线迁改、改路、改河、改沟以及构筑物迁改等费用，土地复垦费用及征拆各项规费的清理等',serviceid:10,order:29,type:0}"]
[6.3,"清理材料价差，包括调整甲供材料设备价差、政策性文件规定的其他材料价差等","基本工作",null,{"$f":"IF(LEN(C41)>0,E40+1,E40)","v":29},{"$f":"IF(LEN(C41)>0,F40,INDEX(附录D!G:G,MATCH(B41,附录D!B:B,0)))","v":10},30,0,{"$f":"IF(LEN(C41)>0,E41&\":{text:'\"&B41&\"',serviceid:\"&F41&\",order:\"&G41&\",type:\"&H41&\"}\",\"\")","v":"29:{text:'清理材料价差，包括调整甲供材料设备价差、政策性文件规定的其他材料价差等',serviceid:10,order:30,type:0}"}]
[6.4,"清理政策性调整费用","基本工作",null,30,{"$f":"IF(LEN(C42)>0,F41,INDEX(附录D!G:G,MATCH(B42,附录D!B:B,0)))","v":10},31,0,"30:{text:'清理政策性调整费用',serviceid:10,order:31,type:0}"]
[6.5,"清理基本预备费和招标降造费，包括分析降造费的使用情况","基本工作",null,31,{"$f":"IF(LEN(C43)>0,F42,INDEX(附录D!G:G,MATCH(B43,附录D!B:B,0)))","v":10},32,0,"31:{text:'清理基本预备费和招标降造费，包括分析降造费的使用情况',serviceid:10,order:32,type:0}"]
[6.6,"对未进行初步验收的剩余工程及投资情况进行清理","基本工作",null,32,{"$f":"IF(LEN(C44)>0,F43,INDEX(附录D!G:G,MATCH(B44,附录D!B:B,0)))","v":10},33,0,"32:{text:'对未进行初步验收的剩余工程及投资情况进行清理',serviceid:10,order:33,type:0}"]
[6.7,"梳理和清理批复的概算费用，分析费用变化的原因","基本工作",null,33,{"$f":"IF(LEN(C45)>0,F44,INDEX(附录D!G:G,MATCH(B45,附录D!B:B,0)))","v":10},34,0,"33:{text:'梳理和清理批复的概算费用，分析费用变化的原因',serviceid:10,order:34,type:0}"]
[6.8,"根据收集的资料和费用分析结果，编制清理概算文件，包括清理概算申请报告、相关批复文件、设计图纸、施工组织设计、合同、验工计价、设计变更和新增工程等支撑性资料、审计报告（如有）、第三方审价报告及其他相关依据","基本工作",null,34,{"$f":"IF(LEN(C46)>0,F45,INDEX(附录D!G:G,MATCH(B46,附录D!B:B,0)))","v":10},35,0,"34:{text:'根据收集的资料和费用分析结果，编制清理概算文件，包括清理概算申请报告、相关批复文件、设计图纸、施工组织设计、合同、验工计价、设计变更和新增工程等支撑性资料、审计报告（如有）、第三方审价报告及其他相关依据',serviceid:10,order:35,type:0}"]
[6.9,"招标图纸与实际施工图纸进行验核，核实工程数量，针对分析概算费用变化的原因","可选工作",null,35,{"$f":"IF(LEN(C47)>0,F46,INDEX(附录D!G:G,MATCH(B47,附录D!B:B,0)))","v":10},36,1,"35:{text:'招标图纸与实际施工图纸进行验核，核实工程数量，针对分析概算费用变化的原因',serviceid:10,order:36,type:1}"]
["6.10","参加与清理概算相关的会议，协助委托人完成清理概算文件预评审工作","基本工作",null,36,{"$f":"IF(LEN(C48)>0,F47,INDEX(附录D!G:G,MATCH(B48,附录D!B:B,0)))","v":10},37,0,"36:{text:'参加与清理概算相关的会议，协助委托人完成清理概算文件预评审工作',serviceid:10,order:37,type:0}"]
["7","合同（工程）结算",null,null,36,{"$f":"IF(LEN(C49)>0,F48,INDEX(附录D!G:G,MATCH(B49,附录D!B:B,0)))","v":11},null,null,""]
["7.1","完成工程变更费用的测算，或提出性价比更优的替代方案、材料等意见","基本工作",null,37,{"$f":"IF(LEN(C50)>0,F49,INDEX(附录D!G:G,MATCH(B50,附录D!B:B,0)))","v":11},38,0,"37:{text:'完成工程变更费用的测算，或提出性价比更优的替代方案、材料等意见',serviceid:11,order:38,type:0}"]
["7.2","完成新增预算单价或合同单价的计算与核定","基本工作",null,38,{"$f":"IF(LEN(C51)>0,F50,INDEX(附录D!G:G,MATCH(B51,附录D!B:B,0)))","v":11},39,0,"38:{text:'完成新增预算单价或合同单价的计算与核定',serviceid:11,order:39,type:0}"]
["7.3","按施工图预算或合同清单方式完成工程变更费用的计算","基本工作",null,39,{"$f":"IF(LEN(C52)>0,F51,INDEX(附录D!G:G,MATCH(B52,附录D!B:B,0)))","v":11},40,0,"39:{text:'按施工图预算或合同清单方式完成工程变更费用的计算',serviceid:11,order:40,type:0}"]
["7.4","完成过程结算，包括建立过程结算多维度清单体系，如：项目清单、工程量清单、分项清单；划分过程结算清单单元；依据经确认的实际完工工程量完成计价计费，完成过程结算文件","基本工作",null,40,{"$f":"IF(LEN(C53)>0,F52,INDEX(附录D!G:G,MATCH(B53,附录D!B:B,0)))","v":11},41,0,"40:{text:'完成过程结算，包括建立过程结算多维度清单体系，如：项目清单、工程量清单、分项清单；划分过程结算清单单元；依据经确认的实际完工工程量完成计价计费，完成过程结算文件',serviceid:11,order:41,type:0}"]
["7.5","完成价格波动费用的计算或审核","基本工作",null,41,{"$f":"IF(LEN(C54)>0,F53,INDEX(附录D!G:G,MATCH(B54,附录D!B:B,0)))","v":11},42,0,"41:{text:'完成价格波动费用的计算或审核',serviceid:11,order:42,type:0}"]
["7.6","完成索赔与补偿费用的计算或审核","基本工作",null,42,{"$f":"IF(LEN(C55)>0,F54,INDEX(附录D!G:G,MATCH(B55,附录D!B:B,0)))","v":11},43,0,"42:{text:'完成索赔与补偿费用的计算或审核',serviceid:11,order:43,type:0}"]
["7.7","完成结算文件及统计技术经济指标，与相关单位核对合同（工程）结算","基本工作",null,43,{"$f":"IF(LEN(C56)>0,F55,INDEX(附录D!G:G,MATCH(B56,附录D!B:B,0)))","v":11},44,0,"43:{text:'完成结算文件及统计技术经济指标，与相关单位核对合同（工程）结算',serviceid:11,order:44,type:0}"]
["7.8","完成合同、变更和结算三环节费用的对比，分析合同费用各环节变化原因，提供对比报表和分析报告","基本工作",null,44,{"$f":"IF(LEN(C57)>0,F56,INDEX(附录D!G:G,MATCH(B57,附录D!B:B,0)))","v":11},45,0,"44:{text:'完成合同、变更和结算三环节费用的对比，分析合同费用各环节变化原因，提供对比报表和分析报告',serviceid:11,order:45,type:0}"]
["7.9","参加与过程结算、工程变更费用确定和合同（工程）结算相关的会议","基本工作",null,45,{"$f":"IF(LEN(C58)>0,F57,INDEX(附录D!G:G,MATCH(B58,附录D!B:B,0)))","v":11},46,0,"45:{text:'参加与过程结算、工程变更费用确定和合同（工程）结算相关的会议',serviceid:11,order:46,type:0}"]
["7.10","现场勘查与测量实际完工工程量","可选工作",null,46,{"$f":"IF(LEN(C59)>0,F58,INDEX(附录D!G:G,MATCH(B59,附录D!B:B,0)))","v":11},47,1,"46:{text:'现场勘查与测量实际完工工程量',serviceid:11,order:47,type:1}"]
["7.11","复核竣工图纸数量与结算数量的差异，提交数量差异报告","可选工作",null,47,{"$f":"IF(LEN(C60)>0,F59,INDEX(附录D!G:G,MATCH(B60,附录D!B:B,0)))","v":11},48,1,"47:{text:'复核竣工图纸数量与结算数量的差异，提交数量差异报告',serviceid:11,order:48,type:1}"]
["7.12","协助委托人对项目工程变更费用审批情况进行清理，编制交工验收造价文件","可选工作",null,48,{"$f":"IF(LEN(C61)>0,F60,INDEX(附录D!G:G,MATCH(B61,附录D!B:B,0)))","v":11},49,1,"48:{text:'协助委托人对项目工程变更费用审批情况进行清理，编制交工验收造价文件',serviceid:11,order:49,type:1}"]
["7.13","协助委托人处理工期索赔、造价费用等费用的争议与纠纷、仲裁与诉讼","可选工作",null,49,{"$f":"IF(LEN(C62)>0,F61,INDEX(附录D!G:G,MATCH(B62,附录D!B:B,0)))","v":11},50,1,"49:{text:'协助委托人处理工期索赔、造价费用等费用的争议与纠纷、仲裁与诉讼',serviceid:11,order:50,type:1}"]
["7","合同（工程）结算",null,null,49,12,null,null,""]
["7.1","完成工程变更费用的测算，或提出性价比更优的替代方案、材料等意见","基本工作",null,50,{"$f":"IF(LEN(C64)>0,F63,INDEX(附录D!G:G,MATCH(B64,附录D!B:B,0)))","v":12},51,0,"50:{text:'完成工程变更费用的测算，或提出性价比更优的替代方案、材料等意见',serviceid:12,order:51,type:0}"]
["7.2","完成新增预算单价或合同单价的计算与核定","基本工作",null,51,{"$f":"IF(LEN(C65)>0,F64,INDEX(附录D!G:G,MATCH(B65,附录D!B:B,0)))","v":12},52,0,"51:{text:'完成新增预算单价或合同单价的计算与核定',serviceid:12,order:52,type:0}"]
["7.3","按施工图预算或合同清单方式完成工程变更费用的计算","基本工作",null,52,{"$f":"IF(LEN(C66)>0,F65,INDEX(附录D!G:G,MATCH(B66,附录D!B:B,0)))","v":12},53,0,"52:{text:'按施工图预算或合同清单方式完成工程变更费用的计算',serviceid:12,order:53,type:0}"]
["7.4","完成过程结算，包括建立过程结算多维度清单体系，如：项目清单、工程量清单、分项清单；划分过程结算清单单元；依据经确认的实际完工工程量完成计价计费，完成过程结算文件","基本工作",null,53,{"$f":"IF(LEN(C67)>0,F66,INDEX(附录D!G:G,MATCH(B67,附录D!B:B,0)))","v":12},54,0,"53:{text:'完成过程结算，包括建立过程结算多维度清单体系，如：项目清单、工程量清单、分项清单；划分过程结算清单单元；依据经确认的实际完工工程量完成计价计费，完成过程结算文件',serviceid:12,order:54,type:0}"]
["7.5","完成价格波动费用的计算或审核","基本工作",null,54,{"$f":"IF(LEN(C68)>0,F67,INDEX(附录D!G:G,MATCH(B68,附录D!B:B,0)))","v":12},55,0,"54:{text:'完成价格波动费用的计算或审核',serviceid:12,order:55,type:0}"]
["7.6","完成索赔与补偿费用的计算或审核","基本工作",null,55,{"$f":"IF(LEN(C69)>0,F68,INDEX(附录D!G:G,MATCH(B69,附录D!B:B,0)))","v":12},56,0,"55:{text:'完成索赔与补偿费用的计算或审核',serviceid:12,order:56,type:0}"]
["7.7","完成结算文件及统计技术经济指标，与相关单位核对合同（工程）结算","基本工作",null,56,{"$f":"IF(LEN(C70)>0,F69,INDEX(附录D!G:G,MATCH(B70,附录D!B:B,0)))","v":12},57,0,"56:{text:'完成结算文件及统计技术经济指标，与相关单位核对合同（工程）结算',serviceid:12,order:57,type:0}"]
["7.8","完成合同、变更和结算三环节费用的对比，分析合同费用各环节变化原因，提供对比报表和分析报告","基本工作",null,57,{"$f":"IF(LEN(C71)>0,F70,INDEX(附录D!G:G,MATCH(B71,附录D!B:B,0)))","v":12},58,0,"57:{text:'完成合同、变更和结算三环节费用的对比，分析合同费用各环节变化原因，提供对比报表和分析报告',serviceid:12,order:58,type:0}"]
["7.9","参加与过程结算、工程变更费用确定和合同（工程）结算相关的会议","基本工作",null,58,{"$f":"IF(LEN(C72)>0,F71,INDEX(附录D!G:G,MATCH(B72,附录D!B:B,0)))","v":12},59,0,"58:{text:'参加与过程结算、工程变更费用确定和合同（工程）结算相关的会议',serviceid:12,order:59,type:0}"]
["7.10","现场勘查与测量实际完工工程量","可选工作",null,{"$f":"IF(LEN(C73)>0,E72+1,E72)","v":59},{"$f":"IF(LEN(C73)>0,F72,INDEX(附录D!G:G,MATCH(B73,附录D!B:B,0)))","v":12},60,1,{"$f":"IF(LEN(C73)>0,E73&\":{text:'\"&B73&\"',serviceid:\"&F73&\",order:\"&G73&\",type:\"&H73&\"}\",\"\")","v":"59:{text:'现场勘查与测量实际完工工程量',serviceid:12,order:60,type:1}"}]
["7.11","复核竣工图纸数量与结算数量的差异，提交数量差异报告","可选工作",null,60,{"$f":"IF(LEN(C74)>0,F73,INDEX(附录D!G:G,MATCH(B74,附录D!B:B,0)))","v":12},61,1,"60:{text:'复核竣工图纸数量与结算数量的差异，提交数量差异报告',serviceid:12,order:61,type:1}"]
["7.12","协助委托人对项目工程变更费用审批情况进行清理，编制交工验收造价文件","可选工作",null,61,{"$f":"IF(LEN(C75)>0,F74,INDEX(附录D!G:G,MATCH(B75,附录D!B:B,0)))","v":12},62,1,"61:{text:'协助委托人对项目工程变更费用审批情况进行清理，编制交工验收造价文件',serviceid:12,order:62,type:1}"]
["7.13","协助委托人处理工期索赔、造价费用等费用的争议与纠纷、仲裁与诉讼","可选工作",null,62,{"$f":"IF(LEN(C76)>0,F75,INDEX(附录D!G:G,MATCH(B76,附录D!B:B,0)))","v":12},63,1,"62:{text:'协助委托人处理工期索赔、造价费用等费用的争议与纠纷、仲裁与诉讼',serviceid:12,order:63,type:1}"]
["8","竣工决算",null,null,62,{"$f":"IF(LEN(C77)>0,F76,INDEX(附录D!G:G,MATCH(B77,附录D!B:B,0)))","v":13},null,null,""]
["8.1","编制项目竣工决算文件","基本工作",null,63,{"$f":"IF(LEN(C78)>0,F77,INDEX(附录D!G:G,MATCH(B78,附录D!B:B,0)))","v":13},64,0,"63:{text:'编制项目竣工决算文件',serviceid:13,order:64,type:0}"]
["8.2","编制竣工决算备案送审文件","基本工作",null,64,{"$f":"IF(LEN(C79)>0,F78,INDEX(附录D!G:G,MATCH(B79,附录D!B:B,0)))","v":13},65,0,"64:{text:'编制竣工决算备案送审文件',serviceid:13,order:65,type:0}"]
["8.3","参与竣工决算相关的会议","基本工作",null,65,{"$f":"IF(LEN(C80)>0,F79,INDEX(附录D!G:G,MATCH(B80,附录D!B:B,0)))","v":13},66,0,"65:{text:'参与竣工决算相关的会议',serviceid:13,order:66,type:0}"]
["8.4","根据审计意见和决算备案意见调整竣工决算文件","基本工作",null,66,{"$f":"IF(LEN(C81)>0,F80,INDEX(附录D!G:G,MATCH(B81,附录D!B:B,0)))","v":13},67,0,"66:{text:'根据审计意见和决算备案意见调整竣工决算文件',serviceid:13,order:67,type:0}"]
["8.5","协助委托人编制建设项目造价执行情况报告","可选工作",null,67,{"$f":"IF(LEN(C82)>0,F81,INDEX(附录D!G:G,MATCH(B82,附录D!B:B,0)))","v":13},68,1,"67:{text:'协助委托人编制建设项目造价执行情况报告',serviceid:13,order:68,type:1}"]
["8.6","对比类似项目的技术经济指标，分析技术经济指标差异原因，提供造价差异分析报告","可选工作",null,68,{"$f":"IF(LEN(C83)>0,F82,INDEX(附录D!G:G,MATCH(B83,附录D!B:B,0)))","v":13},69,1,"68:{text:'对比类似项目的技术经济指标，分析技术经济指标差异原因，提供造价差异分析报告',serviceid:13,order:69,type:1}"]
["8.7","根据造价差异分析结果，提出调整工程方案的咨询意见供委托人或关联单位决策","可选工作",null,69,{"$f":"IF(LEN(C84)>0,F83,INDEX(附录D!G:G,MATCH(B84,附录D!B:B,0)))","v":13},70,1,"69:{text:'根据造价差异分析结果，提出调整工程方案的咨询意见供委托人或关联单位决策',serviceid:13,order:70,type:1}"]
["8.8","协助委托人指导参建单位完成与决算相关辅助文件的编制","可选工作",null,70,{"$f":"IF(LEN(C85)>0,F84,INDEX(附录D!G:G,MATCH(B85,附录D!B:B,0)))","v":13},71,1,"70:{text:'协助委托人指导参建单位完成与决算相关辅助文件的编制',serviceid:13,order:71,type:1}"]
["8.9","协助委托人开展项目造价管理及投资效益后评估","可选工作",null,71,{"$f":"IF(LEN(C86)>0,F85,INDEX(附录D!G:G,MATCH(B86,附录D!B:B,0)))","v":13},72,1,"71:{text:'协助委托人开展项目造价管理及投资效益后评估',serviceid:13,order:72,type:1}"]
["9","工程造价顾问",null,null,71,{"$f":"IF(LEN(C87)>0,F86,INDEX(附录D!G:G,MATCH(B87,附录D!B:B,0)))","v":15},null,null,""]
["9.1","定期向委托人介绍并解读国家及地方最新发布的关于造价管理有关的法律法规、政策文件和技术标准等信息，针对风险控制方面，提供专业的造价管理建议及实施对策","日常顾问",null,72,{"$f":"IF(LEN(C88)>0,F87,INDEX(附录D!G:G,MATCH(B88,附录D!B:B,0)))","v":15},73,2,"72:{text:'定期向委托人介绍并解读国家及地方最新发布的关于造价管理有关的法律法规、政策文件和技术标准等信息，针对风险控制方面，提供专业的造价管理建议及实施对策',serviceid:15,order:73,type:2}"]
["9.2","为委托人在日常建设、运营及经营管理中遇到的造价编制与审核问题，提供专业咨询建议","日常顾问",null,73,{"$f":"IF(LEN(C89)>0,F88,INDEX(附录D!G:G,MATCH(B89,附录D!B:B,0)))","v":15},74,2,"73:{text:'为委托人在日常建设、运营及经营管理中遇到的造价编制与审核问题，提供专业咨询建议',serviceid:15,order:74,type:2}"]
["9.3","对委托人起草的工程勘察设计、工程监理、施工、物资采购和技术服务等方面的合同与协议文本，从造价控制与投资风险角度提供审阅与修改建议","日常顾问",null,74,{"$f":"IF(LEN(C90)>0,F89,INDEX(附录D!G:G,MATCH(B90,附录D!B:B,0)))","v":15},75,2,"74:{text:'对委托人起草的工程勘察设计、工程监理、施工、物资采购和技术服务等方面的合同与协议文本，从造价控制与投资风险角度提供审阅与修改建议',serviceid:15,order:75,type:2}"]
["9.4","审查各类合同履行情况时，对识别出的潜在漏洞或风险，提出相应的修改建议或补救措施","日常顾问",null,75,{"$f":"IF(LEN(C91)>0,F90,INDEX(附录D!G:G,MATCH(B91,附录D!B:B,0)))","v":15},76,2,"75:{text:'审查各类合同履行情况时，对识别出的潜在漏洞或风险，提出相应的修改建议或补救措施',serviceid:15,order:76,type:2}"]
["9.5","对委托人提供的造价管理相关的制度，进行审阅与修改，或提供专业咨询建议","日常顾问",null,76,{"$f":"IF(LEN(C92)>0,F91,INDEX(附录D!G:G,MATCH(B92,附录D!B:B,0)))","v":15},77,2,"76:{text:'对委托人提供的造价管理相关的制度，进行审阅与修改，或提供专业咨询建议',serviceid:15,order:77,type:2}"]
["9.6","针对具体建设工程项目的重大投资决策，出具独立的造价专业意见；或根据委托人的要求， 对造价争议事项提供专业依据并出具顾问报告","专项顾问",null,77,{"$f":"IF(LEN(C93)>0,F92,INDEX(附录D!G:G,MATCH(B93,附录D!B:B,0)))","v":15},78,3,"77:{text:'针对具体建设工程项目的重大投资决策，出具独立的造价专业意见；或根据委托人的要求， 对造价争议事项提供专业依据并出具顾问报告',serviceid:15,order:78,type:3}"]
["9.7","为委托人起草与工程建设相关的合同、协议等文书，包括且不限于工程勘察设计、监理、施 工、采购及技术服务等领域","专项顾问",null,78,{"$f":"IF(LEN(C94)>0,F93,INDEX(附录D!G:G,MATCH(B94,附录D!B:B,0)))","v":15},79,3,"78:{text:'为委托人起草与工程建设相关的合同、协议等文书，包括且不限于工程勘察设计、监理、施 工、采购及技术服务等领域',serviceid:15,order:79,type:3}"]
["9.8","独立对各类合同的履行情况进行审查，识别潜在漏洞或风险，并提出系统性的修改建议或补 救方案","专项顾问",null,79,{"$f":"IF(LEN(C95)>0,F94,INDEX(附录D!G:G,MATCH(B95,附录D!B:B,0)))","v":15},80,3,"79:{text:'独立对各类合同的履行情况进行审查，识别潜在漏洞或风险，并提出系统性的修改建议或补 救方案',serviceid:15,order:80,type:3}"]
["9.9","为委托人制订或修订与造价管理相关的制度","专项顾问",null,80,{"$f":"IF(LEN(C96)>0,F95,INDEX(附录D!G:G,MATCH(B96,附录D!B:B,0)))","v":15},81,3,"80:{text:'为委托人制订或修订与造价管理相关的制度',serviceid:15,order:81,type:3}"]
["9.10","受托处理涉及委托人的造价纠纷、仲裁及诉讼案件，提供专业意见与支持，并出具咨询顾问 报告","专项顾问",null,81,{"$f":"IF(LEN(C97)>0,F96,INDEX(附录D!G:G,MATCH(B97,附录D!B:B,0)))","v":15},82,3,"81:{text:'受托处理涉及委托人的造价纠纷、仲裁及诉讼案件，提供专业意见与支持，并出具咨询顾问 报告',serviceid:15,order:82,type:3}"]
["10","造价政策制（修）订",null,null,81,{"$f":"IF(LEN(C98)>0,F97,INDEX(附录D!G:G,MATCH(B98,附录D!B:B,0)))","v":16},null,null,""]
["10.1","组织并完成调研工作，包括制定调研计划、实施调研和撰写调研报告","基本工作",null,82,{"$f":"IF(LEN(C99)>0,F98,INDEX(附录D!G:G,MATCH(B99,附录D!B:B,0)))","v":16},83,0,"82:{text:'组织并完成调研工作，包括制定调研计划、实施调研和撰写调研报告',serviceid:16,order:83,type:0}"]
["10.2","完成各阶段文件的起草、修订、调整与校对工作；整理并分析各阶段的 反馈意见、完成反馈意见的采纳情况，编制必要的采纳情况报告或说明；完成工作报告","基本工作",null,83,{"$f":"IF(LEN(C100)>0,F99,INDEX(附录D!G:G,MATCH(B100,附录D!B:B,0)))","v":16},84,0,"83:{text:'完成各阶段文件的起草、修订、调整与校对工作；整理并分析各阶段的 反馈意见、完成反馈意见的采纳情况，编制必要的采纳情况报告或说明；完成工作报告',serviceid:16,order:84,type:0}"]
["10.3","完成评审汇报材料，编写报告；整理并汇总评审意见、复核评审意见，完成评审 意见的采纳及反馈工作","基本工作",null,84,{"$f":"IF(LEN(C101)>0,F100,INDEX(附录D!G:G,MATCH(B101,附录D!B:B,0)))","v":16},85,0,"84:{text:'完成评审汇报材料，编写报告；整理并汇总评审意见、复核评审意见，完成评审 意见的采纳及反馈工作',serviceid:16,order:85,type:0}"]
["10.4","负责评审会议的全过程组织工作， 包括准备会议材料、发出通知、组织召开并主持评审会。","可选工作",null,85,{"$f":"IF(LEN(C102)>0,F101,INDEX(附录D!G:G,MATCH(B102,附录D!B:B,0)))","v":16},86,1,"85:{text:'负责评审会议的全过程组织工作， 包括准备会议材料、发出通知、组织召开并主持评审会。',serviceid:16,order:86,type:1}"]
["11","造价科学与技术研究",null,null,85,{"$f":"IF(LEN(C103)>0,F102,INDEX(附录D!G:G,MATCH(B103,附录D!B:B,0)))","v":17},null,null,""]
["11.1","组织并完成调研工作，包括制定调研计划、实施调研和撰写调研报告","基本工作",null,86,{"$f":"IF(LEN(C104)>0,F103,INDEX(附录D!G:G,MATCH(B104,附录D!B:B,0)))","v":17},87,0,"86:{text:'组织并完成调研工作，包括制定调研计划、实施调研和撰写调研报告',serviceid:17,order:87,type:0}"]
["11.2","完成工作大纲和编写大纲；开展专项研究工作，完成各阶段研究报告的起 草、修订、调整与校对工作；分研究阶段进行技术报告的编写、修改、调整以及相应的报审 报批工作，包括大纲与成果的评审及验收等；整理并分析各阶段的反馈意见、完成反馈意见 的采纳情况，编制必要的采纳情况报告或说明；编制工作报告","基本工作",null,{"$f":"IF(LEN(C105)>0,E104+1,E104)","v":87},{"$f":"IF(LEN(C105)>0,F104,INDEX(附录D!G:G,MATCH(B105,附录D!B:B,0)))","v":17},88,0,{"$f":"IF(LEN(C105)>0,E105&\":{text:'\"&B105&\"',serviceid:\"&F105&\",order:\"&G105&\",type:\"&H105&\"}\",\"\")","v":"87:{text:'完成工作大纲和编写大纲；开展专项研究工作，完成各阶段研究报告的起 草、修订、调整与校对工作；分研究阶段进行技术报告的编写、修改、调整以及相应的报审 报批工作，包括大纲与成果的评审及验收等；整理并分析各阶段的反馈意见、完成反馈意见 的采纳情况，编制必要的采纳情况报告或说明；编制工作报告',serviceid:17,order:88,type:0}"}]
["11.3","确定测试与验证项目，完成测试与验证工作，完成测试与验证报告","基本工作",null,88,{"$f":"IF(LEN(C106)>0,F105,INDEX(附录D!G:G,MATCH(B106,附录D!B:B,0)))","v":17},89,0,"88:{text:'确定测试与验证项目，完成测试与验证工作，完成测试与验证报告',serviceid:17,order:89,type:0}"]
["11.4","完成评审与验收所需汇报材料，编写报告；整理并汇总评审意见、复核评审意见，完成评审意见的采纳及反馈工作","基本工作",null,89,{"$f":"IF(LEN(C107)>0,F106,INDEX(附录D!G:G,MATCH(B107,附录D!B:B,0)))","v":17},90,0,"89:{text:'完成评审与验收所需汇报材料，编写报告；整理并汇总评审意见、复核评审意见，完成评审意见的采纳及反馈工作',serviceid:17,order:90,type:0}"]
["11.5","编写培训与宣贯相关的材料，组织研究成果的宣贯与推广工作","可选工作",null,90,{"$f":"IF(LEN(C108)>0,F107,INDEX(附录D!G:G,MATCH(B108,附录D!B:B,0)))","v":17},91,1,"90:{text:'编写培训与宣贯相关的材料，组织研究成果的宣贯与推广工作',serviceid:17,order:91,type:1}"]
["11.6","负责评审与验收会议的全过程组织工作，包括准备会议材料、发出通知、 组织召开并主持评审与验收会议","可选工作",null,91,{"$f":"IF(LEN(C109)>0,F108,INDEX(附录D!G:G,MATCH(B109,附录D!B:B,0)))","v":17},92,1,"91:{text:'负责评审与验收会议的全过程组织工作，包括准备会议材料、发出通知、 组织召开并主持评审与验收会议',serviceid:17,order:92,type:1}"]
["12","定额测定",null,null,91,{"$f":"IF(LEN(C110)>0,F109,INDEX(附录D!G:G,MATCH(B110,附录D!B:B,0)))","v":18},null,null,""]
["12.1","组织并完成调研工作，包括制定调研计划、实施调研和撰写调研报告","基本工作",null,92,{"$f":"IF(LEN(C111)>0,F110,INDEX(附录D!G:G,MATCH(B111,附录D!B:B,0)))","v":18},93,0,"92:{text:'组织并完成调研工作，包括制定调研计划、实施调研和撰写调研报告',serviceid:18,order:93,type:0}"]
["12.2","制定工作计划并完成编制大纲，编制大纲包括工作大纲和编写大纲","基本工作",null,93,{"$f":"IF(LEN(C112)>0,F111,INDEX(附录D!G:G,MATCH(B112,附录D!B:B,0)))","v":18},94,0,"93:{text:'制定工作计划并完成编制大纲，编制大纲包括工作大纲和编写大纲',serviceid:18,order:94,type:0}"]
["12.3","完成数据采集与测定工作，编制相应的数据采集与测定报告","基本工作",null,94,{"$f":"IF(LEN(C113)>0,F112,INDEX(附录D!G:G,MATCH(B113,附录D!B:B,0)))","v":18},95,0,"94:{text:'完成数据采集与测定工作，编制相应的数据采集与测定报告',serviceid:18,order:95,type:0}"]
["12.4","完成数据整理与分析工作，编制相应的数据分析报告，整理支撑性资料","基本工作",null,95,{"$f":"IF(LEN(C114)>0,F113,INDEX(附录D!G:G,MATCH(B114,附录D!B:B,0)))","v":18},96,0,"95:{text:'完成数据整理与分析工作，编制相应的数据分析报告，整理支撑性资料',serviceid:18,order:96,type:0}"]
["12.5","完成定额文本的起草、修改及调整工作；完成各阶段研究报告的起草、修订、 调整与校对工作，编制必要的采纳情况报告或说明；编制工作报告或报批报告","基本工作",null,96,{"$f":"IF(LEN(C115)>0,F114,INDEX(附录D!G:G,MATCH(B115,附录D!B:B,0)))","v":18},97,0,"96:{text:'完成定额文本的起草、修改及调整工作；完成各阶段研究报告的起草、修订、 调整与校对工作，编制必要的采纳情况报告或说明；编制工作报告或报批报告',serviceid:18,order:97,type:0}"]
["12.6","确定测试与验证项目，完成测试与验证工作，完成测试与验证报告","基本工作",null,97,{"$f":"IF(LEN(C116)>0,F115,INDEX(附录D!G:G,MATCH(B116,附录D!B:B,0)))","v":18},98,0,"97:{text:'确定测试与验证项目，完成测试与验证工作，完成测试与验证报告',serviceid:18,order:98,type:0}"]
["12.7","完成评审与验收所需汇报材料，编写报告；整理并汇总评审意见、复核评 审意见，完成评审意见的采纳及反馈工作","基本工作",null,98,{"$f":"IF(LEN(C117)>0,F116,INDEX(附录D!G:G,MATCH(B117,附录D!B:B,0)))","v":18},99,0,"98:{text:'完成评审与验收所需汇报材料，编写报告；整理并汇总评审意见、复核评 审意见，完成评审意见的采纳及反馈工作',serviceid:18,order:99,type:0}"]
["12.8","编写培训与宣贯相关的材料，组织定额成果的培训与宣贯工作","可选工作",null,99,{"$f":"IF(LEN(C118)>0,F117,INDEX(附录D!G:G,MATCH(B118,附录D!B:B,0)))","v":18},100,1,"99:{text:'编写培训与宣贯相关的材料，组织定额成果的培训与宣贯工作',serviceid:18,order:100,type:1}"]
["12.9","负责评审与验收会议的全过程组织工作，包括准备会议材料、发出通知、 组织召开并主持评审与验收会议","可选工作",null,100,{"$f":"IF(LEN(C119)>0,F118,INDEX(附录D!G:G,MATCH(B119,附录D!B:B,0)))","v":18},101,1,"100:{text:'负责评审与验收会议的全过程组织工作，包括准备会议材料、发出通知、 组织召开并主持评审与验收会议',serviceid:18,order:101,type:1}"]
["13","造价信息咨询",null,null,100,{"$f":"IF(LEN(C120)>0,F119,INDEX(附录D!G:G,MATCH(B120,附录D!B:B,0)))","v":19},null,null,""]
["13.1","开展各类造价信息的搜集、筛选与整理工作","基本工作",null,101,{"$f":"IF(LEN(C121)>0,F120,INDEX(附录D!G:G,MATCH(B121,附录D!B:B,0)))","v":19},102,0,"101:{text:'开展各类造价信息的搜集、筛选与整理工作',serviceid:19,order:102,type:0}"]
["13.2","对整理后的信息与数据进行对比与分析","基本工作",null,102,{"$f":"IF(LEN(C122)>0,F121,INDEX(附录D!G:G,MATCH(B122,附录D!B:B,0)))","v":19},103,0,"102:{text:'对整理后的信息与数据进行对比与分析',serviceid:19,order:103,type:0}"]
["13.3","依据分析结果，对特定价格或费用进行评估与论证，编制咨询报告","基本工作",null,103,{"$f":"IF(LEN(C123)>0,F122,INDEX(附录D!G:G,MATCH(B123,附录D!B:B,0)))","v":19},104,0,"103:{text:'依据分析结果，对特定价格或费用进行评估与论证，编制咨询报告',serviceid:19,order:104,type:0}"]
["13.4","预测未来特定时期的价格或费用，编制预测报告","可选工作",null,104,{"$f":"IF(LEN(C124)>0,F123,INDEX(附录D!G:G,MATCH(B124,附录D!B:B,0)))","v":19},105,1,"104:{text:'预测未来特定时期的价格或费用，编制预测报告',serviceid:19,order:105,type:1}"]
["13.5","研究价格或费用的长期变动规律，编制趋势分析报告","可选工作",null,105,{"$f":"IF(LEN(C125)>0,F124,INDEX(附录D!G:G,MATCH(B125,附录D!B:B,0)))","v":19},106,1,"105:{text:'研究价格或费用的长期变动规律，编制趋势分析报告',serviceid:19,order:106,type:1}"]
["14","造价鉴定",null,null,105,{"$f":"IF(LEN(C126)>0,F125,INDEX(附录D!G:G,MATCH(B126,附录D!B:B,0)))","v":20},null,null,""]
["14.1","根据委托人的目标，确定鉴定工作范围","基本工作",null,106,{"$f":"IF(LEN(C127)>0,F126,INDEX(附录D!G:G,MATCH(B127,附录D!B:B,0)))","v":20},107,0,"106:{text:'根据委托人的目标，确定鉴定工作范围',serviceid:20,order:107,type:0}"]
["14.2","收集与复核鉴定资料","基本工作",null,107,{"$f":"IF(LEN(C128)>0,F127,INDEX(附录D!G:G,MATCH(B128,附录D!B:B,0)))","v":20},108,0,"107:{text:'收集与复核鉴定资料',serviceid:20,order:108,type:0}"]
["14.3","组织或参与必要的现场勘查工作","基本工作",null,108,{"$f":"IF(LEN(C129)>0,F128,INDEX(附录D!G:G,MATCH(B129,附录D!B:B,0)))","v":20},109,0,"108:{text:'组织或参与必要的现场勘查工作',serviceid:20,order:109,type:0}"]
["14.4","工程量的计算与工程费用的计价或估价","基本工作",null,109,{"$f":"IF(LEN(C130)>0,F129,INDEX(附录D!G:G,MATCH(B130,附录D!B:B,0)))","v":20},110,0,"109:{text:'工程量的计算与工程费用的计价或估价',serviceid:20,order:110,type:0}"]
["14.5","对争议焦点进行鉴定，提出解决争议的意见","基本工作",null,110,{"$f":"IF(LEN(C131)>0,F130,INDEX(附录D!G:G,MATCH(B131,附录D!B:B,0)))","v":20},111,0,"110:{text:'对争议焦点进行鉴定，提出解决争议的意见',serviceid:20,order:111,type:0}"]
["14.6","回复各方当事人的质证意见","基本工作",null,111,{"$f":"IF(LEN(C132)>0,F131,INDEX(附录D!G:G,MATCH(B132,附录D!B:B,0)))","v":20},112,0,"111:{text:'回复各方当事人的质证意见',serviceid:20,order:112,type:0}"]
["14.7","编制并出具造价鉴定报告","基本工作",null,112,{"$f":"IF(LEN(C133)>0,F132,INDEX(附录D!G:G,MATCH(B133,附录D!B:B,0)))","v":20},113,0,"112:{text:'编制并出具造价鉴定报告',serviceid:20,order:113,type:0}"]
["14.8","组织或参与现场数据复测或特殊鉴定","可选工作",null,113,{"$f":"IF(LEN(C134)>0,F133,INDEX(附录D!G:G,MATCH(B134,附录D!B:B,0)))","v":20},114,1,"113:{text:'组织或参与现场数据复测或特殊鉴定',serviceid:20,order:114,type:1}"]
["14.9","与当事人相关方进行必要的造价数据核对","可选工作",null,114,{"$f":"IF(LEN(C135)>0,F134,INDEX(附录D!G:G,MATCH(B135,附录D!B:B,0)))","v":20},115,1,"114:{text:'与当事人相关方进行必要的造价数据核对',serviceid:20,order:115,type:1}"]
["14.10","出庭就鉴定报告及相关专业问题接受质证","可选工作",null,115,{"$f":"IF(LEN(C136)>0,F135,INDEX(附录D!G:G,MATCH(B136,附录D!B:B,0)))","v":20},116,1,"115:{text:'出庭就鉴定报告及相关专业问题接受质证',serviceid:20,order:116,type:1}"]
["15","工程成本测算",null,null,{"$f":"IF(LEN(C137)>0,E136+1,E136)","v":115},{"$f":"IF(LEN(C137)>0,F136,INDEX(附录D!G:G,MATCH(B137,附录D!B:B,0)))","v":21},null,null,{"$f":"IF(LEN(C137)>0,E137&\":{text:'\"&B137&\"',serviceid:\"&F137&\",order:\"&G137&\",type:\"&H137&\"}\",\"\")","v":""}]
["15.1","编制影响工程成本的资源要素清单","基本工作",null,116,{"$f":"IF(LEN(C138)>0,F137,INDEX(附录D!G:G,MATCH(B138,附录D!B:B,0)))","v":21},117,0,"116:{text:'编制影响工程成本的资源要素清单',serviceid:21,order:117,type:0}"]
["15.2","调查人工、材料、设备和施工机械的市场供应情况，主要是价格情况","基本工作",null,117,{"$f":"IF(LEN(C139)>0,F138,INDEX(附录D!G:G,MATCH(B139,附录D!B:B,0)))","v":21},118,0,"117:{text:'调查人工、材料、设备和施工机械的市场供应情况，主要是价格情况',serviceid:21,order:118,type:0}"]
["15.3","测算、分析、计算工程成本费用，结合其他相关因素，编制并出具工程成本测算报告","基本工作",null,118,{"$f":"IF(LEN(C140)>0,F139,INDEX(附录D!G:G,MATCH(B140,附录D!B:B,0)))","v":21},119,0,"118:{text:'测算、分析、计算工程成本费用，结合其他相关因素，编制并出具工程成本测算报告',serviceid:21,order:119,type:0}"]
["15.4","参加与工程成本测算相关的会议","基本工作",null,119,{"$f":"IF(LEN(C141)>0,F140,INDEX(附录D!G:G,MATCH(B141,附录D!B:B,0)))","v":21},120,0,"119:{text:'参加与工程成本测算相关的会议',serviceid:21,order:120,type:0}"]
["15.5","审核及分析资源配置、施工措施、施工管理方案的经济合理性","可选工作",null,120,{"$f":"IF(LEN(C142)>0,F141,INDEX(附录D!G:G,MATCH(B142,附录D!B:B,0)))","v":21},121,1,"120:{text:'审核及分析资源配置、施工措施、施工管理方案的经济合理性',serviceid:21,order:121,type:1}"]
["15.6","对比工程成本与投资估算、设计概算、施工图预算、工程量清单预算、合同价，并分析费用差异，提交分析报告","可选工作",null,121,{"$f":"IF(LEN(C143)>0,F142,INDEX(附录D!G:G,MATCH(B143,附录D!B:B,0)))","v":21},122,1,"121:{text:'对比工程成本与投资估算、设计概算、施工图预算、工程量清单预算、合同价，并分析费用差异，提交分析报告',serviceid:21,order:122,type:1}"]
["16","工程成本核算",null,null,121,{"$f":"IF(LEN(C144)>0,F143,INDEX(附录D!G:G,MATCH(B144,附录D!B:B,0)))","v":22},null,null,""]
["16.1","编制影响工程成本的资源要素清单或成本组成科目","基本工作",null,122,{"$f":"IF(LEN(C145)>0,F144,INDEX(附录D!G:G,MATCH(B145,附录D!B:B,0)))","v":22},123,0,"122:{text:'编制影响工程成本的资源要素清单或成本组成科目',serviceid:22,order:123,type:0}"]
["16.2","收集人工、材料、设备、施工机械、措施、税费等实际发生的费用","基本工作",null,123,{"$f":"IF(LEN(C146)>0,F145,INDEX(附录D!G:G,MATCH(B146,附录D!B:B,0)))","v":22},124,0,"123:{text:'收集人工、材料、设备、施工机械、措施、税费等实际发生的费用',serviceid:22,order:124,type:0}"]
["16.3","统计与汇总、拆解与合并、对比与分析工程成本各项费用，编制并出具工程成本核算报告","基本工作",null,124,{"$f":"IF(LEN(C147)>0,F146,INDEX(附录D!G:G,MATCH(B147,附录D!B:B,0)))","v":22},125,0,"124:{text:'统计与汇总、拆解与合并、对比与分析工程成本各项费用，编制并出具工程成本核算报告',serviceid:22,order:125,type:0}"]
["16.4","参加与工程成本核算相关的会议","基本工作",null,125,{"$f":"IF(LEN(C148)>0,F147,INDEX(附录D!G:G,MATCH(B148,附录D!B:B,0)))","v":22},126,0,"125:{text:'参加与工程成本核算相关的会议',serviceid:22,order:126,type:0}"]
["16.5","分析实际工程成本与测算工程成本差异的合理性，提交分析报告","可选工作",null,126,{"$f":"IF(LEN(C149)>0,F148,INDEX(附录D!G:G,MATCH(B149,附录D!B:B,0)))","v":22},127,1,"126:{text:'分析实际工程成本与测算工程成本差异的合理性，提交分析报告',serviceid:22,order:127,type:1}"]
["16.6","归纳与总结实际工程成本与测算工程成本的差异原因，提出改进建议","可选工作",null,127,{"$f":"IF(LEN(C150)>0,F149,INDEX(附录D!G:G,MATCH(B150,附录D!B:B,0)))","v":22},128,1,"127:{text:'归纳与总结实际工程成本与测算工程成本的差异原因，提出改进建议',serviceid:22,order:128,type:1}"]
["17","计算工程量",null,null,127,{"$f":"IF(LEN(C151)>0,F150,INDEX(附录D!G:G,MATCH(B151,附录D!B:B,0)))","v":23},null,null,""]
["17.1","依据本项目在招标阶段确认的设计图纸工程量，结合工程量清单计量支付规则，对设计工程量进行复核，包括构件工程量、明细表工程量和汇总表工程量，同时与相关方核对工程量","基本工作",null,128,{"$f":"IF(LEN(C152)>0,F151,INDEX(附录D!G:G,MATCH(B152,附录D!B:B,0)))","v":23},129,0,"128:{text:'依据本项目在招标阶段确认的设计图纸工程量，结合工程量清单计量支付规则，对设计工程量进行复核，包括构件工程量、明细表工程量和汇总表工程量，同时与相关方核对工程量',serviceid:23,order:129,type:0}"]
["17.2","依据核对后确认的设计图纸数量，细化与合并招标工程量清单或合同工程量清单，建立各维度清单间的数据链接，与相关单位完成核对与确认","基本工作",null,129,{"$f":"IF(LEN(C153)>0,F152,INDEX(附录D!G:G,MATCH(B153,附录D!B:B,0)))","v":23},130,0,"129:{text:'依据核对后确认的设计图纸数量，细化与合并招标工程量清单或合同工程量清单，建立各维度清单间的数据链接，与相关单位完成核对与确认',serviceid:23,order:130,type:0}"]
["17.3","依据确定的招标工程量清单或合同工程量清单，拆解与合并相应的清单费用，与相关单位完成核对与确认","可选工作",null,130,{"$f":"IF(LEN(C154)>0,F153,INDEX(附录D!G:G,MATCH(B154,附录D!B:B,0)))","v":23},131,1,"130:{text:'依据确定的招标工程量清单或合同工程量清单，拆解与合并相应的清单费用，与相关单位完成核对与确认',serviceid:23,order:131,type:1}"]
["17.4","现场勘查与测量现场实施工程量","可选工作",null,131,{"$f":"IF(LEN(C155)>0,F154,INDEX(附录D!G:G,MATCH(B155,附录D!B:B,0)))","v":23},132,1,"131:{text:'现场勘查与测量现场实施工程量',serviceid:23,order:132,type:1}"]
["17.5","完成设计图纸所载数量与复核后的数量进行对比与分析，提供对比分析报告","可选工作",null,132,{"$f":"IF(LEN(C156)>0,F155,INDEX(附录D!G:G,MATCH(B156,附录D!B:B,0)))","v":23},133,1,"132:{text:'完成设计图纸所载数量与复核后的数量进行对比与分析，提供对比分析报告',serviceid:23,order:133,type:1}"]
["17.6","参加计算工程量相关的会议","基本工作",null,133,{"$f":"IF(LEN(C157)>0,F156,INDEX(附录D!G:G,MATCH(B157,附录D!B:B,0)))","v":23},134,0,"133:{text:'参加计算工程量相关的会议',serviceid:23,order:134,type:0}"]
["17.7","协助委托人处理涉及工程数量的争议、纠纷、仲裁或诉讼事务","可选工作",null,134,{"$f":"IF(LEN(C158)>0,F157,INDEX(附录D!G:G,MATCH(B158,附录D!B:B,0)))","v":23},135,1,"134:{text:'协助委托人处理涉及工程数量的争议、纠纷、仲裁或诉讼事务',serviceid:23,order:135,type:1}"]
["18","工程变更费用咨询",null,null,134,{"$f":"IF(LEN(C159)>0,F158,INDEX(附录D!G:G,MATCH(B159,附录D!B:B,0)))","v":24},null,null,""]
["18.1","完成工程变更费用的测算","基本工作",null,135,{"$f":"IF(LEN(C160)>0,F159,INDEX(附录D!G:G,MATCH(B160,附录D!B:B,0)))","v":24},136,0,"135:{text:'完成工程变更费用的测算',serviceid:24,order:136,type:0}"]
["18.2","完成新增预算单价或合同单价的计算与核定","基本工作",null,136,{"$f":"IF(LEN(C161)>0,F160,INDEX(附录D!G:G,MATCH(B161,附录D!B:B,0)))","v":24},137,0,"136:{text:'完成新增预算单价或合同单价的计算与核定',serviceid:24,order:137,type:0}"]
["18.3","按施工图预算或合同清单方式完成工程变更费用的计算","基本工作",null,137,{"$f":"IF(LEN(C162)>0,F161,INDEX(附录D!G:G,MATCH(B162,附录D!B:B,0)))","v":24},138,0,"137:{text:'按施工图预算或合同清单方式完成工程变更费用的计算',serviceid:24,order:138,type:0}"]
["18.4","完成价格波动引起的价差费用的计算","可选工作",null,138,{"$f":"IF(LEN(C163)>0,F162,INDEX(附录D!G:G,MATCH(B163,附录D!B:B,0)))","v":24},139,1,"138:{text:'完成价格波动引起的价差费用的计算',serviceid:24,order:139,type:1}"]
["18.5","完成索赔与补偿费用的计算，如加速施工费用、暂停施工补偿等","可选工作",null,139,{"$f":"IF(LEN(C164)>0,F163,INDEX(附录D!G:G,MATCH(B164,附录D!B:B,0)))","v":24},140,1,"139:{text:'完成索赔与补偿费用的计算，如加速施工费用、暂停施工补偿等',serviceid:24,order:140,type:1}"]
["18.6","协助委托人处理涉及工程变更费用的争议与纠纷、仲裁与诉讼","可选工作",null,140,{"$f":"IF(LEN(C165)>0,F164,INDEX(附录D!G:G,MATCH(B165,附录D!B:B,0)))","v":24},141,1,"140:{text:'协助委托人处理涉及工程变更费用的争议与纠纷、仲裁与诉讼',serviceid:24,order:141,type:1}"]
["19","调整估算",null,null,140,{"$f":"IF(LEN(C166)>0,F165,INDEX(附录D!G:G,MATCH(B166,附录D!B:B,0)))","v":25},null,null,""]
["19.1","分析、论证及评估影响投资估算的主要因素","基本工作",null,141,{"$f":"IF(LEN(C167)>0,F166,INDEX(附录D!G:G,MATCH(B167,附录D!B:B,0)))","v":25},142,0,"141:{text:'分析、论证及评估影响投资估算的主要因素',serviceid:25,order:142,type:0}"]
["19.2","根据分析论证结果，完成调整后投资估算文件及主要技术经济指标，与相关单位核对数据","基本工作",null,142,{"$f":"IF(LEN(C168)>0,F167,INDEX(附录D!G:G,MATCH(B168,附录D!B:B,0)))","v":25},143,0,"142:{text:'根据分析论证结果，完成调整后投资估算文件及主要技术经济指标，与相关单位核对数据',serviceid:25,order:143,type:0}"]
["19.3","完成调整后投资估算与原批复估算的对比及原因分析","基本工作",null,{"$f":"IF(LEN(C169)>0,E168+1,E168)","v":143},{"$f":"IF(LEN(C169)>0,F168,INDEX(附录D!G:G,MATCH(B169,附录D!B:B,0)))","v":25},144,0,{"$f":"IF(LEN(C169)>0,E169&\":{text:'\"&B169&\"',serviceid:\"&F169&\",order:\"&G169&\",type:\"&H169&\"}\",\"\")","v":"143:{text:'完成调整后投资估算与原批复估算的对比及原因分析',serviceid:25,order:144,type:0}"}]
["19.4","出席与投资估算调整工作相关的会议","基本工作",null,144,{"$f":"IF(LEN(C170)>0,F169,INDEX(附录D!G:G,MATCH(B170,附录D!B:B,0)))","v":25},145,0,"144:{text:'出席与投资估算调整工作相关的会议',serviceid:25,order:145,type:0}"]
["19.5","协助调规报告编制单位完成报告的造价专业部分的内容","可选工作",null,145,{"$f":"IF(LEN(C171)>0,F170,INDEX(附录D!G:G,MATCH(B171,附录D!B:B,0)))","v":25},146,1,"145:{text:'协助调规报告编制单位完成报告的造价专业部分的内容',serviceid:25,order:146,type:1}"]
["20","调整概算",null,null,145,{"$f":"IF(LEN(C172)>0,F171,INDEX(附录D!G:G,MATCH(B172,附录D!B:B,0)))","v":26},null,null,""]
["20.1","分析、论证及评估影响设计概算的主要因素","基本工作",null,146,{"$f":"IF(LEN(C173)>0,F172,INDEX(附录D!G:G,MATCH(B173,附录D!B:B,0)))","v":26},147,0,"146:{text:'分析、论证及评估影响设计概算的主要因素',serviceid:26,order:147,type:0}"]
["20.2","根据分析论证结果，编制调整后设计概算文件及主要技术经济指标，与相关单位核对数据","基本工作",null,147,{"$f":"IF(LEN(C174)>0,F173,INDEX(附录D!G:G,MATCH(B174,附录D!B:B,0)))","v":26},148,0,"147:{text:'根据分析论证结果，编制调整后设计概算文件及主要技术经济指标，与相关单位核对数据',serviceid:26,order:148,type:0}"]
["20.3","完成调整后概算与原批复概算的对比及原因分析，完成调整概算报告","基本工作",null,148,{"$f":"IF(LEN(C175)>0,F174,INDEX(附录D!G:G,MATCH(B175,附录D!B:B,0)))","v":26},149,0,"148:{text:'完成调整后概算与原批复概算的对比及原因分析，完成调整概算报告',serviceid:26,order:149,type:0}"]
["20.4","出席与概算调整工作相关的会议","基本工作",null,149,{"$f":"IF(LEN(C176)>0,F175,INDEX(附录D!G:G,MATCH(B176,附录D!B:B,0)))","v":26},150,0,"149:{text:'出席与概算调整工作相关的会议',serviceid:26,order:150,type:0}"]
["20.5","协助委托人开展项目预估决算费用的测算、估算工作","可选工作",null,150,{"$f":"IF(LEN(C177)>0,F176,INDEX(附录D!G:G,MATCH(B177,附录D!B:B,0)))","v":26},151,1,"150:{text:'协助委托人开展项目预估决算费用的测算、估算工作',serviceid:26,order:151,type:1}"]
["21","造价检查",null,null,150,{"$f":"IF(LEN(C178)>0,F177,INDEX(附录D!G:G,MATCH(B178,附录D!B:B,0)))","v":27},null,null,""]
["21.1","检查相关单位对工程造价管理法律法规、规章制度以及工程造价依据的执行情况","基本工作",null,151,{"$f":"IF(LEN(C179)>0,F178,INDEX(附录D!G:G,MATCH(B179,附录D!B:B,0)))","v":27},152,0,"151:{text:'检查相关单位对工程造价管理法律法规、规章制度以及工程造价依据的执行情况',serviceid:27,order:152,type:0}"]
["21.2","检查各阶段造价文件编制、审查（批）或备案以及对批复意见的落实情况","基本工作",null,152,{"$f":"IF(LEN(C180)>0,F179,INDEX(附录D!G:G,MATCH(B180,附录D!B:B,0)))","v":27},153,0,"152:{text:'检查各阶段造价文件编制、审查（批）或备案以及对批复意见的落实情况',serviceid:27,order:153,type:0}"]
["21.3","检查造价管理台账和计量支付制度的建立与执行、造价全过程管理与控制情况","基本工作",null,153,{"$f":"IF(LEN(C181)>0,F180,INDEX(附录D!G:G,MATCH(B181,附录D!B:B,0)))","v":27},154,0,"153:{text:'检查造价管理台账和计量支付制度的建立与执行、造价全过程管理与控制情况',serviceid:27,order:154,type:0}"]
["21.4","检查工程变更管理情况","基本工作",null,154,{"$f":"IF(LEN(C182)>0,F181,INDEX(附录D!G:G,MATCH(B182,附录D!B:B,0)))","v":27},155,0,"154:{text:'检查工程变更管理情况',serviceid:27,order:155,type:0}"]
["21.5","检查项目造价信息的收集、分析及报送情况","基本工作",null,155,{"$f":"IF(LEN(C183)>0,F182,INDEX(附录D!G:G,MATCH(B183,附录D!B:B,0)))","v":27},156,0,"155:{text:'检查项目造价信息的收集、分析及报送情况',serviceid:27,order:156,type:0}"]
["21.6","检查项目从业单位的造价人员执业情况","基本工作",null,156,{"$f":"IF(LEN(C184)>0,F183,INDEX(附录D!G:G,MATCH(B184,附录D!B:B,0)))","v":27},157,0,"156:{text:'检查项目从业单位的造价人员执业情况',serviceid:27,order:157,type:0}"]
["21.7","协助委托人进行现场核查、资料抽检和台账复核工作","基本工作",null,157,{"$f":"IF(LEN(C185)>0,F184,INDEX(附录D!G:G,MATCH(B185,附录D!B:B,0)))","v":27},158,0,"157:{text:'协助委托人进行现场核查、资料抽检和台账复核工作',serviceid:27,order:158,type:0}"]
["21.8","协助委托人整理检查结果和起草检查报告等工作","基本工作",null,158,{"$f":"IF(LEN(C186)>0,F185,INDEX(附录D!G:G,MATCH(B186,附录D!B:B,0)))","v":27},159,0,"158:{text:'协助委托人整理检查结果和起草检查报告等工作',serviceid:27,order:159,type:0}"]
["22","总体协调",null,null,158,{"$nulls":3},""]
["22.1","作为造价咨询服务总体协调单位，依据造价技术标准的具体条款或委托方的个性化需求，进一步细化各项工作的具体要求，检查其他服务单位的造价文件的组成完整性、电子文件格式是否符合要求、电子版与纸质版是否对应、造价文件报表的规范性","附加工作",null,{"$f":"IF(LEN(C188)>0,E187+1,E187)","v":159},-1,160,4,"159:{text:'作为造价咨询服务总体协调单位，依据造价技术标准的具体条款或委托方的个性化需求，进一步细化各项工作的具体要求，检查其他服务单位的造价文件的组成完整性、电子文件格式是否符合要求、电子版与纸质版是否对应、造价文件报表的规范性',serviceid:-1,order:160,type:4}"]
["22.2","作为造价咨询服务总体协调单位，负责总体协调其他咨询人或专家团队的工作，确保各方在项目服务中的沟通顺畅，监控造价咨询服务的进展情况，确保各咨询人按时完成工作","附加工作",null,{"$f":"IF(LEN(C189)>0,E188+1,E188)","v":160},-1,161,4,"160:{text:'作为造价咨询服务总体协调单位，负责总体协调其他咨询人或专家团队的工作，确保各方在项目服务中的沟通顺畅，监控造价咨询服务的进展情况，确保各咨询人按时完成工作',serviceid:-1,order:161,type:4}"]
["23","通用工作【适用于投资估算、设计概算、施工图预算、招标工程量清单及清单预算、清理概算、合同（工程）结算、竣工决算；造价政策制（修）订、造价科学与技术研究、定额测定、造价信息咨询、造价鉴定、工程成本测算、工程成本核算、计算工程量、工程变更费用咨询、调整估算、调整概算、造价检查。"]
["23.1","协助委托人完成咨询服务相应造价文件的报审、报备、报批、检查与审计涉及的解释与回复、修改与调整等工作","基本工作","放在工作内容的最后1项"]
["23.2","完成本合同造价档案的收集、整理和归档","基本工作","放在工作内容的最后1项"]
[{"$nulls":8},{"$f":"\"{\"&_xlfn.TEXTJOIN(\",\",TRUE,I7:I192)&\",}\"","v":"{0:{text:'完成投资估算文件及主要技术经济指标，完成与相关单位核对投资估算',serviceid:6,order:1,type:0},1:{text:'根据项目建议书或可行性研究报告的变化，动态调整投资估算和技术经济指标，并对比各环节投资估算变化，完成项目建议书阶段到可行性研究阶段的量、价对比及原因分析',serviceid:6,order:2,type:0},2:{text:'参加项目建议书或可行性研究的技术论证会议、评审会议和与确定投资估算相关的会议',serviceid:6,order:3,type:0},3:{text:'对比类似项目的技术经济指标，分析技术经济指标差异原因，提供造价差异分析报告',serviceid:6,order:4,type:1},4:{text:'根据造价差异分析结果，提出调整工程方案的咨询意见供委托人或关联单位决策',serviceid:6,order:5,type:1},5:{text:'依据投资估算和项目建设计划，编制项目资金计划，供委托人决策',serviceid:6,order:6,type:1},6:{text:'完成设计概算文件及主要技术经济指标，完成与相关单位核对设计概算',serviceid:7,order:7,type:0},7:{text:'依据各版初步设计动态调整设计概算及经济指标，并对比各版设计概算结果，完成可行性研究阶段到初步设计阶段的造价对比，提供造价差异分析报告',serviceid:7,order:8,type:0},8:{text:'参加初步设计的技术论证会议、评审会议和与设计概算相关的会议',serviceid:7,order:9,type:0},9:{text:'对比类似项目的技术经济指标，分析技术经济指标差异原因，提供造价差异分析报告',serviceid:7,order:10,type:1},10:{text:'根据造价差异分析结果，提出调整工程设计方案的咨询意见供委托人或关联单位决策',serviceid:7,order:11,type:1},11:{text:'依据设计概算和项目建设计划，编制或调整项目资金计划，供委托人决策',serviceid:7,order:12,type:1},12:{text:'完成施工图预算文件及主要技术经济指标，完成与相关单位核对施工图预算',serviceid:8,order:13,type:0},13:{text:'依据各版施工图动态调整施工图预算，并对比各版施工图预算结果，完成施工图预算与设计概算的造价对比（如有必要应完成与投资估算的造价对比），提供造价差异分析报告',serviceid:8,order:14,type:0},14:{text:'参加施工图设计的技术论证会议、评审会议和与施工图预算相关的会议',serviceid:8,order:15,type:0},15:{text:'对比类似项目的技术经济指标，分析技术经济指标差异原因，提供造价差异分析报告',serviceid:8,order:16,type:1},16:{text:'根据造价差异分析结果，提出调整工程设计方案的咨询意见供委托人或关联单位决策',serviceid:8,order:17,type:1},17:{text:'依据施工图预算和项目建设计划，编制或调整项目资金计划，供委托人决策',serviceid:8,order:18,type:1},18:{text:'分析专项设计方案的经济合理性，提出咨询意见供委托人决策',serviceid:8,order:19,type:1},19:{text:'分析施工组织设计和交通组织方案的经济合理性，提出咨询意见供委托人决策',serviceid:8,order:20,type:1},20:{text:'完成招标工程量清单及工程量清单预算，与相关单位核对工程量清单及工程量清单预算，并完成修改与调整',serviceid:9,order:21,type:0},21:{text:'对比工程量清单预算和施工图预算，提供造价差异分析报告',serviceid:9,order:22,type:0},22:{text:'审核计量与支付条款，对招标文件和合同文件涉及合同价款、工程变更费用咨询、结算费用等与造价相关条款提供咨询意见',serviceid:9,order:23,type:0},23:{text:'协助招标人完成招标答疑涉及的造价问题的解答与回复',serviceid:9,order:24,type:0},24:{text:'参加招投标阶段与造价确定相关的会议',serviceid:9,order:25,type:0},25:{text:'对比中标价与工程量清单预算，并分析差异原因，协助招标人完成不平衡报价调整',serviceid:9,order:26,type:1},26:{text:'参与合同谈判，协助招标人合同谈判过程中相关造价分析',serviceid:9,order:27,type:1},27:{text:'清理施工承包合同费用、征地拆迁费用、各项价差、其他类费用及费用依据、计算资料等',serviceid:10,order:28,type:0},28:{text:'清理征地拆迁费用，包括清理建设项目的用地、青苗补偿、房屋拆迁等费用，清理管线迁改、改路、改河、改沟以及构筑物迁改等费用，土地复垦费用及征拆各项规费的清理等',serviceid:10,order:29,type:0},29:{text:'清理材料价差，包括调整甲供材料设备价差、政策性文件规定的其他材料价差等',serviceid:10,order:30,type:0},30:{text:'清理政策性调整费用',serviceid:10,order:31,type:0},31:{text:'清理基本预备费和招标降造费，包括分析降造费的使用情况',serviceid:10,order:32,type:0},32:{text:'对未进行初步验收的剩余工程及投资情况进行清理',serviceid:10,order:33,type:0},33:{text:'梳理和清理批复的概算费用，分析费用变化的原因',serviceid:10,order:34,type:0},34:{text:'根据收集的资料和费用分析结果，编制清理概算文件，包括清理概算申请报告、相关批复文件、设计图纸、施工组织设计、合同、验工计价、设计变更和新增工程等支撑性资料、审计报告（如有）、第三方审价报告及其他相关依据',serviceid:10,order:35,type:0},35:{text:'招标图纸与实际施工图纸进行验核，核实工程数量，针对分析概算费用变化的原因',serviceid:10,order:36,type:1},36:{text:'参加与清理概算相关的会议，协助委托人完成清理概算文件预评审工作',serviceid:10,order:37,type:0},37:{text:'完成工程变更费用的测算，或提出性价比更优的替代方案、材料等意见',serviceid:11,order:38,type:0},38:{text:'完成新增预算单价或合同单价的计算与核定',serviceid:11,order:39,type:0},39:{text:'按施工图预算或合同清单方式完成工程变更费用的计算',serviceid:11,order:40,type:0},40:{text:'完成过程结算，包括建立过程结算多维度清单体系，如：项目清单、工程量清单、分项清单；划分过程结算清单单元；依据经确认的实际完工工程量完成计价计费，完成过程结算文件',serviceid:11,order:41,type:0},41:{text:'完成价格波动费用的计算或审核',serviceid:11,order:42,type:0},42:{text:'完成索赔与补偿费用的计算或审核',serviceid:11,order:43,type:0},43:{text:'完成结算文件及统计技术经济指标，与相关单位核对合同（工程）结算',serviceid:11,order:44,type:0},44:{text:'完成合同、变更和结算三环节费用的对比，分析合同费用各环节变化原因，提供对比报表和分析报告',serviceid:11,order:45,type:0},45:{text:'参加与过程结算、工程变更费用确定和合同（工程）结算相关的会议',serviceid:11,order:46,type:0},46:{text:'现场勘查与测量实际完工工程量',serviceid:11,order:47,type:1},47:{text:'复核竣工图纸数量与结算数量的差异，提交数量差异报告',serviceid:11,order:48,type:1},48:{text:'协助委托人对项目工程变更费用审批情况进行清理，编制交工验收造价文件',serviceid:11,order:49,type:1},49:{text:'协助委托人处理工期索赔、造价费用等费用的争议与纠纷、仲裁与诉讼',serviceid:11,order:50,type:1},50:{text:'完成工程变更费用的测算，或提出性价比更优的替代方案、材料等意见',serviceid:12,order:51,type:0},51:{text:'完成新增预算单价或合同单价的计算与核定',serviceid:12,order:52,type:0},52:{text:'按施工图预算或合同清单方式完成工程变更费用的计算',serviceid:12,order:53,type:0},53:{text:'完成过程结算，包括建立过程结算多维度清单体系，如：项目清单、工程量清单、分项清单；划分过程结算清单单元；依据经确认的实际完工工程量完成计价计费，完成过程结算文件',serviceid:12,order:54,type:0},54:{text:'完成价格波动费用的计算或审核',serviceid:12,order:55,type:0},55:{text:'完成索赔与补偿费用的计算或审核',serviceid:12,order:56,type:0},56:{text:'完成结算文件及统计技术经济指标，与相关单位核对合同（工程）结算',serviceid:12,order:57,type:0},57:{text:'完成合同、变更和结算三环节费用的对比，分析合同费用各环节变化原因，提供对比报表和分析报告',serviceid:12,order:58,type:0},58:{text:'参加与过程结算、工程变更费用确定和合同（工程）结算相关的会议',serviceid:12,order:59,type:0},59:{text:'现场勘查与测量实际完工工程量',serviceid:12,order:60,type:1},60:{text:'复核竣工图纸数量与结算数量的差异，提交数量差异报告',serviceid:12,order:61,type:1},61:{text:'协助委托人对项目工程变更费用审批情况进行清理，编制交工验收造价文件',serviceid:12,order:62,type:1},62:{text:'协助委托人处理工期索赔、造价费用等费用的争议与纠纷、仲裁与诉讼',serviceid:12,order:63,type:1},63:{text:'编制项目竣工决算文件',serviceid:13,order:64,type:0},64:{text:'编制竣工决算备案送审文件',serviceid:13,order:65,type:0},65:{text:'参与竣工决算相关的会议',serviceid:13,order:66,type:0},66:{text:'根据审计意见和决算备案意见调整竣工决算文件',serviceid:13,order:67,type:0},67:{text:'协助委托人编制建设项目造价执行情况报告',serviceid:13,order:68,type:1},68:{text:'对比类似项目的技术经济指标，分析技术经济指标差异原因，提供造价差异分析报告',serviceid:13,order:69,type:1},69:{text:'根据造价差异分析结果，提出调整工程方案的咨询意见供委托人或关联单位决策',serviceid:13,order:70,type:1},70:{text:'协助委托人指导参建单位完成与决算相关辅助文件的编制',serviceid:13,order:71,type:1},71:{text:'协助委托人开展项目造价管理及投资效益后评估',serviceid:13,order:72,type:1},72:{text:'定期向委托人介绍并解读国家及地方最新发布的关于造价管理有关的法律法规、政策文件和技术标准等信息，针对风险控制方面，提供专业的造价管理建议及实施对策',serviceid:15,order:73,type:2},73:{text:'为委托人在日常建设、运营及经营管理中遇到的造价编制与审核问题，提供专业咨询建议',serviceid:15,order:74,type:2},74:{text:'对委托人起草的工程勘察设计、工程监理、施工、物资采购和技术服务等方面的合同与协议文本，从造价控制与投资风险角度提供审阅与修改建议',serviceid:15,order:75,type:2},75:{text:'审查各类合同履行情况时，对识别出的潜在漏洞或风险，提出相应的修改建议或补救措施',serviceid:15,order:76,type:2},76:{text:'对委托人提供的造价管理相关的制度，进行审阅与修改，或提供专业咨询建议',serviceid:15,order:77,type:2},77:{text:'针对具体建设工程项目的重大投资决策，出具独立的造价专业意见；或根据委托人的要求， 对造价争议事项提供专业依据并出具顾问报告',serviceid:15,order:78,type:3},78:{text:'为委托人起草与工程建设相关的合同、协议等文书，包括且不限于工程勘察设计、监理、施 工、采购及技术服务等领域',serviceid:15,order:79,type:3},79:{text:'独立对各类合同的履行情况进行审查，识别潜在漏洞或风险，并提出系统性的修改建议或补 救方案',serviceid:15,order:80,type:3},80:{text:'为委托人制订或修订与造价管理相关的制度',serviceid:15,order:81,type:3},81:{text:'受托处理涉及委托人的造价纠纷、仲裁及诉讼案件，提供专业意见与支持，并出具咨询顾问 报告',serviceid:15,order:82,type:3},82:{text:'组织并完成调研工作，包括制定调研计划、实施调研和撰写调研报告',serviceid:16,order:83,type:0},83:{text:'完成各阶段文件的起草、修订、调整与校对工作；整理并分析各阶段的 反馈意见、完成反馈意见的采纳情况，编制必要的采纳情况报告或说明；完成工作报告',serviceid:16,order:84,type:0},84:{text:'完成评审汇报材料，编写报告；整理并汇总评审意见、复核评审意见，完成评审 意见的采纳及反馈工作',serviceid:16,order:85,type:0},85:{text:'负责评审会议的全过程组织工作， 包括准备会议材料、发出通知、组织召开并主持评审会。',serviceid:16,order:86,type:1},86:{text:'组织并完成调研工作，包括制定调研计划、实施调研和撰写调研报告',serviceid:17,order:87,type:0},87:{text:'完成工作大纲和编写大纲；开展专项研究工作，完成各阶段研究报告的起 草、修订、调整与校对工作；分研究阶段进行技术报告的编写、修改、调整以及相应的报审 报批工作，包括大纲与成果的评审及验收等；整理并分析各阶段的反馈意见、完成反馈意见 的采纳情况，编制必要的采纳情况报告或说明；编制工作报告',serviceid:17,order:88,type:0},88:{text:'确定测试与验证项目，完成测试与验证工作，完成测试与验证报告',serviceid:17,order:89,type:0},89:{text:'完成评审与验收所需汇报材料，编写报告；整理并汇总评审意见、复核评审意见，完成评审意见的采纳及反馈工作',serviceid:17,order:90,type:0},90:{text:'编写培训与宣贯相关的材料，组织研究成果的宣贯与推广工作',serviceid:17,order:91,type:1},91:{text:'负责评审与验收会议的全过程组织工作，包括准备会议材料、发出通知、 组织召开并主持评审与验收会议',serviceid:17,order:92,type:1},92:{text:'组织并完成调研工作，包括制定调研计划、实施调研和撰写调研报告',serviceid:18,order:93,type:0},93:{text:'制定工作计划并完成编制大纲，编制大纲包括工作大纲和编写大纲',serviceid:18,order:94,type:0},94:{text:'完成数据采集与测定工作，编制相应的数据采集与测定报告',serviceid:18,order:95,type:0},95:{text:'完成数据整理与分析工作，编制相应的数据分析报告，整理支撑性资料',serviceid:18,order:96,type:0},96:{text:'完成定额文本的起草、修改及调整工作；完成各阶段研究报告的起草、修订、 调整与校对工作，编制必要的采纳情况报告或说明；编制工作报告或报批报告',serviceid:18,order:97,type:0},97:{text:'确定测试与验证项目，完成测试与验证工作，完成测试与验证报告',serviceid:18,order:98,type:0},98:{text:'完成评审与验收所需汇报材料，编写报告；整理并汇总评审意见、复核评 审意见，完成评审意见的采纳及反馈工作',serviceid:18,order:99,type:0},99:{text:'编写培训与宣贯相关的材料，组织定额成果的培训与宣贯工作',serviceid:18,order:100,type:1},100:{text:'负责评审与验收会议的全过程组织工作，包括准备会议材料、发出通知、 组织召开并主持评审与验收会议',serviceid:18,order:101,type:1},101:{text:'开展各类造价信息的搜集、筛选与整理工作',serviceid:19,order:102,type:0},102:{text:'对整理后的信息与数据进行对比与分析',serviceid:19,order:103,type:0},103:{text:'依据分析结果，对特定价格或费用进行评估与论证，编制咨询报告',serviceid:19,order:104,type:0},104:{text:'预测未来特定时期的价格或费用，编制预测报告',serviceid:19,order:105,type:1},105:{text:'研究价格或费用的长期变动规律，编制趋势分析报告',serviceid:19,order:106,type:1},106:{text:'根据委托人的目标，确定鉴定工作范围',serviceid:20,order:107,type:0},107:{text:'收集与复核鉴定资料',serviceid:20,order:108,type:0},108:{text:'组织或参与必要的现场勘查工作',serviceid:20,order:109,type:0},109:{text:'工程量的计算与工程费用的计价或估价',serviceid:20,order:110,type:0},110:{text:'对争议焦点进行鉴定，提出解决争议的意见',serviceid:20,order:111,type:0},111:{text:'回复各方当事人的质证意见',serviceid:20,order:112,type:0},112:{text:'编制并出具造价鉴定报告',serviceid:20,order:113,type:0},113:{text:'组织或参与现场数据复测或特殊鉴定',serviceid:20,order:114,type:1},114:{text:'与当事人相关方进行必要的造价数据核对',serviceid:20,order:115,type:1},115:{text:'出庭就鉴定报告及相关专业问题接受质证',serviceid:20,order:116,type:1},116:{text:'编制影响工程成本的资源要素清单',serviceid:21,order:117,type:0},117:{text:'调查人工、材料、设备和施工机械的市场供应情况，主要是价格情况',serviceid:21,order:118,type:0},118:{text:'测算、分析、计算工程成本费用，结合其他相关因素，编制并出具工程成本测算报告',serviceid:21,order:119,type:0},119:{text:'参加与工程成本测算相关的会议',serviceid:21,order:120,type:0},120:{text:'审核及分析资源配置、施工措施、施工管理方案的经济合理性',serviceid:21,order:121,type:1},121:{text:'对比工程成本与投资估算、设计概算、施工图预算、工程量清单预算、合同价，并分析费用差异，提交分析报告',serviceid:21,order:122,type:1},122:{text:'编制影响工程成本的资源要素清单或成本组成科目',serviceid:22,order:123,type:0},123:{text:'收集人工、材料、设备、施工机械、措施、税费等实际发生的费用',serviceid:22,order:124,type:0},124:{text:'统计与汇总、拆解与合并、对比与分析工程成本各项费用，编制并出具工程成本核算报告',serviceid:22,order:125,type:0},125:{text:'参加与工程成本核算相关的会议',serviceid:22,order:126,type:0},126:{text:'分析实际工程成本与测算工程成本差异的合理性，提交分析报告',serviceid:22,order:127,type:1},127:{text:'归纳与总结实际工程成本与测算工程成本的差异原因，提出改进建议',serviceid:22,order:128,type:1},128:{text:'依据本项目在招标阶段确认的设计图纸工程量，结合工程量清单计量支付规则，对设计工程量进行复核，包括构件工程量、明细表工程量和汇总表工程量，同时与相关方核对工程量',serviceid:23,order:129,type:0},129:{text:'依据核对后确认的设计图纸数量，细化与合并招标工程量清单或合同工程量清单，建立各维度清单间的数据链接，与相关单位完成核对与确认',serviceid:23,order:130,type:0},130:{text:'依据确定的招标工程量清单或合同工程量清单，拆解与合并相应的清单费用，与相关单位完成核对与确认',serviceid:23,order:131,type:1},131:{text:'现场勘查与测量现场实施工程量',serviceid:23,order:132,type:1},132:{text:'完成设计图纸所载数量与复核后的数量进行对比与分析，提供对比分析报告',serviceid:23,order:133,type:1},133:{text:'参加计算工程量相关的会议',serviceid:23,order:134,type:0},134:{text:'协助委托人处理涉及工程数量的争议、纠纷、仲裁或诉讼事务',serviceid:23,order:135,type:1},135:{text:'完成工程变更费用的测算',serviceid:24,order:136,type:0},136:{text:'完成新增预算单价或合同单价的计算与核定',serviceid:24,order:137,type:0},137:{text:'按施工图预算或合同清单方式完成工程变更费用的计算',serviceid:24,order:138,type:0},138:{text:'完成价格波动引起的价差费用的计算',serviceid:24,order:139,type:1},139:{text:'完成索赔与补偿费用的计算，如加速施工费用、暂停施工补偿等',serviceid:24,order:140,type:1},140:{text:'协助委托人处理涉及工程变更费用的争议与纠纷、仲裁与诉讼',serviceid:24,order:141,type:1},141:{text:'分析、论证及评估影响投资估算的主要因素',serviceid:25,order:142,type:0},142:{text:'根据分析论证结果，完成调整后投资估算文件及主要技术经济指标，与相关单位核对数据',serviceid:25,order:143,type:0},143:{text:'完成调整后投资估算与原批复估算的对比及原因分析',serviceid:25,order:144,type:0},144:{text:'出席与投资估算调整工作相关的会议',serviceid:25,order:145,type:0},145:{text:'协助调规报告编制单位完成报告的造价专业部分的内容',serviceid:25,order:146,type:1},146:{text:'分析、论证及评估影响设计概算的主要因素',serviceid:26,order:147,type:0},147:{text:'根据分析论证结果，编制调整后设计概算文件及主要技术经济指标，与相关单位核对数据',serviceid:26,order:148,type:0},148:{text:'完成调整后概算与原批复概算的对比及原因分析，完成调整概算报告',serviceid:26,order:149,type:0},149:{text:'出席与概算调整工作相关的会议',serviceid:26,order:150,type:0},150:{text:'协助委托人开展项目预估决算费用的测算、估算工作',serviceid:26,order:151,type:1},151:{text:'检查相关单位对工程造价管理法律法规、规章制度以及工程造价依据的执行情况',serviceid:27,order:152,type:0},152:{text:'检查各阶段造价文件编制、审查（批）或备案以及对批复意见的落实情况',serviceid:27,order:153,type:0},153:{text:'检查造价管理台账和计量支付制度的建立与执行、造价全过程管理与控制情况',serviceid:27,order:154,type:0},154:{text:'检查工程变更管理情况',serviceid:27,order:155,type:0},155:{text:'检查项目造价信息的收集、分析及报送情况',serviceid:27,order:156,type:0},156:{text:'检查项目从业单位的造价人员执业情况',serviceid:27,order:157,type:0},157:{text:'协助委托人进行现场核查、资料抽检和台账复核工作',serviceid:27,order:158,type:0},158:{text:'协助委托人整理检查结果和起草检查报告等工作',serviceid:27,order:159,type:0},159:{text:'作为造价咨询服务总体协调单位，依据造价技术标准的具体条款或委托方的个性化需求，进一步细化各项工作的具体要求，检查其他服务单位的造价文件的组成完整性、电子文件格式是否符合要求、电子版与纸质版是否对应、造价文件报表的规范性',serviceid:-1,order:160,type:4},160:{text:'作为造价咨询服务总体协调单位，负责总体协调其他咨询人或专家团队的工作，确保各方在项目服务中的沟通顺畅，监控造价咨询服务的进展情况，确保各咨询人按时完成工作',serviceid:-1,order:161,type:4},}"}]